{"text_format":"1","workbook":"xlsx","n_sheets":10,"sheets":["Hoja1","Modificar datos","Ranking","Hoja3","Hoja5","Hoja6","Hoja7","Hoja8","Hoja9","Hoja11"],"not_rendered":{"charts":0,"images":2,"macros":1,"external_links":0,"defined_names":3,"comments":0,"pivot_tables":0},"unopened":[],"bounds":{"document_bytes":16777216,"sheet_cells":100000,"rows_first":2000,"rows_last":500,"rows_between":2000,"halvings":0,"cell_chars":16384,"cell_head_chars":4096},"cells_cut":0,"cells_raw":0,"read":"whole","date_system":"1900"}

{"sheet":"Hoja1","index":0,"n_rows":28,"n_cols":47,"rows_kept":28,"cut":false,"hidden":true,"merged":[]}
["CAPITANIA","Numero Total","<03","<03,5","<04","<04,5","<05","<06","<08","<12","<15","<20","<24",">=24","MOTOS","Misma Provincia","Diferente Provincia","Lista 6","Lista 7","RIGIDO","SEMIRIGIDO","NEUMATICO","Sin Datos","VELA","Total ANT","03 ANT","035 ANT","04 ANT","045 ANT","05 ANT","06 ANT","075 ANT","12 ANT","15 ANT","20 ANT","24 ANT",">24 ANT","Motos ANT","Misma ANT","Dif ANT","6 ANT","7 ANT","Rig ANT","Semi ANT","neu ANT","sd ANT","Vela ANT"]
["A CORUÑA",10,null,null,null,null,null,1,3,5,null,null,null,null,1,2,8,3,7,7,0,0,0,2,7,null,null,null,null,2,4,null,1,null,null,null,null,null,2,5,0,7,5,1,0,0,1]
["ALGECIRAS",10,null,1,null,null,1,1,4,null,null,1,null,null,2,1,9,1,9,4,3,1,0,0,7,null,null,2,1,1,null,2,null,1,null,null,null,null,3,4,0,7,3,2,2,0,0]
["ALICANTE",14,1,null,null,null,null,6,2,null,null,null,null,null,5,7,7,5,9,5,3,0,0,1,24,1,3,null,1,1,9,3,1,null,null,null,null,5,14,10,0,24,12,2,3,0,2]
["ALMERIA",11,3,1,null,null,1,3,1,null,null,null,null,null,2,6,5,1,10,2,3,4,0,0,8,null,1,1,null,1,null,4,null,null,null,null,null,1,3,5,0,8,5,0,2,0,0]
["AVILES",null,null,null,null,null,null,null,null,null,null,null,null,null,null,null,null,null,null,null,null,null,null,null,1,null,null,null,null,null,1,null,null,null,null,null,null,null,1,null,0,1,0,0,0,1,0]
["BARCELONA",20,null,1,1,null,null,3,8,5,1,null,null,null,1,11,9,0,20,14,1,2,0,2,15,null,1,null,1,1,3,2,4,1,1,null,null,1,8,7,3,12,9,1,3,0,1]
["BILBAO",14,null,3,null,null,1,1,1,4,null,null,null,null,4,5,9,2,12,3,2,1,0,4,13,null,null,null,null,null,4,1,null,3,null,null,null,5,2,11,0,13,5,2,0,0,1]
["CADIZ",6,null,null,null,1,2,1,1,null,null,null,null,null,1,4,2,0,6,4,1,0,0,0,11,1,1,null,4,null,3,1,null,null,null,null,null,1,6,5,0,11,4,4,2,0,0]
["CARTAGENA",14,1,1,null,1,1,2,null,1,null,null,null,null,7,9,5,5,9,3,1,2,0,1,10,1,2,3,2,null,null,1,null,null,null,null,null,1,7,3,0,10,4,1,4,0,0]
["CASTELLON",11,1,1,null,1,null,1,2,1,null,null,null,null,4,3,8,1,10,4,0,2,0,1,1,null,null,null,null,null,null,1,null,null,null,null,null,null,null,1,0,1,1,0,0,0,0]
["GIJON",1,null,null,null,null,null,1,null,null,null,null,null,null,null,null,1,0,1,1,0,0,0,0,4,null,null,null,1,null,1,2,null,null,null,null,null,null,1,3,0,4,3,1,0,0,0]
["HUELVA",10,1,null,3,1,null,null,null,null,null,null,null,null,5,9,1,3,7,0,1,4,0,0,2,null,1,null,null,null,null,null,null,null,null,null,null,1,2,null,0,2,1,0,0,0,0]
["LAS PALMAS",11,null,1,6,1,null,1,null,1,1,null,null,null,null,11,null,4,7,3,5,3,0,0,8,1,4,null,null,2,null,1,null,null,null,null,null,null,8,null,1,7,2,0,6,0,0]
["LUGO",1,null,null,null,null,null,1,null,null,null,null,null,null,null,null,1,0,1,1,0,0,0,0,1,null,null,null,1,null,null,null,null,null,null,null,null,null,null,1,0,1,1,0,0,0,0]
["MALAGA",14,null,4,3,1,null,4,1,1,null,null,null,null,null,11,3,4,10,8,1,3,0,2,6,null,2,null,null,null,null,null,null,null,1,null,null,3,4,2,0,6,1,1,1,0,0]
["MELILLA",2,null,null,null,null,null,null,null,null,null,null,null,null,2,2,null,0,2,0,0,0,0,0,1,null,null,null,null,null,null,null,null,null,null,null,null,1,1,null,0,1,0,0,0,0,0]
["MOTRIL",1,null,null,null,null,null,null,null,null,null,null,null,null,1,1,null,0,1,0,0,0,0,0,6,null,null,2,null,null,null,null,null,null,null,null,null,4,4,2,0,6,0,0,2,0,0]
["PALAMOS",4,2,null,null,null,null,null,1,null,1,null,null,null,null,2,2,1,3,2,0,2,0,0,5,null,null,1,null,1,null,3,null,null,null,null,null,null,3,2,2,3,4,0,1,0,0]
["PALMA MALLORCA",16,null,1,1,null,null,5,4,2,null,null,null,null,3,13,3,3,13,5,6,1,0,1,21,null,null,1,3,1,5,4,3,2,1,null,null,1,16,5,2,19,14,3,0,0,3]
["PASAJES",null,null,null,null,null,null,null,null,null,null,null,null,null,null,null,null,null,null,null,null,null,null,null,1,null,null,1,null,null,null,null,null,null,null,null,null,null,null,1,0,1,0,1,0,0,0]
["SANTA CRUZ DE TENERIFE",9,null,1,1,null,1,3,2,null,null,null,null,null,1,6,3,1,8,5,0,2,1,0,2,null,null,null,1,null,null,null,1,null,null,null,null,null,1,1,2,0,2,0,0,0,0]
["SANTANDER",8,null,1,null,1,1,2,2,1,null,null,null,null,null,6,2,0,8,5,1,1,0,1,1,null,null,null,null,null,1,null,null,null,null,null,null,null,1,null,0,1,1,0,0,0,0]
["SEVILLA",3,null,null,null,null,1,1,1,null,null,null,null,null,null,1,2,0,3,3,0,0,0,0,9,1,2,1,2,null,1,1,1,null,null,null,null,null,5,4,1,8,2,2,5,0,0]
["TARRAGONA",4,1,null,2,null,null,null,null,null,1,null,null,null,null,2,2,0,4,2,1,1,0,0,4,null,null,null,null,null,1,2,null,1,null,null,null,null,2,2,0,4,4,0,0,0,0]
["VALENCIA",3,null,null,null,null,null,1,1,1,null,null,null,null,null,2,1,0,3,2,0,0,0,1,6,1,null,1,null,1,1,null,1,1,null,null,null,null,5,1,0,6,3,0,1,0,2]
["VIGO",14,null,null,1,null,2,3,4,1,1,null,null,null,2,8,6,3,11,6,4,0,0,2,6,null,null,null,null,null,2,1,1,1,null,null,null,1,3,3,0,6,3,1,0,0,1]
["VILAGARCIA DE AROUSA",15,null,null,null,3,3,6,1,null,null,null,null,null,2,3,12,0,15,13,0,0,0,0,12,null,1,7,1,null,1,null,null,null,null,null,null,2,2,10,0,12,10,0,0,0,0]

{"sheet":"Modificar datos","index":1,"n_rows":2,"n_cols":2,"rows_kept":2,"cut":false,"hidden":false,"merged":[]}
["Mes de Análisis","Enero"]
["Fecha Publicación","2020-02-18"]

{"sheet":"Ranking","index":2,"n_rows":78,"n_cols":23,"rows_kept":78,"cut":false,"hidden":false,"merged":[[4,0,5,1],[4,6,5,7],[4,12,5,13],[4,18,5,19],[42,0,43,1],[42,6,43,7],[42,12,43,13],[42,18,43,19],[39,8,39,9],[39,14,39,15],[76,12,77,13],[42,8,42,9],[39,20,39,21],[77,2,77,3],[77,8,77,9],[77,14,77,15],[38,12,39,13],[38,18,39,19],[76,18,77,19],[77,20,77,21],[76,0,77,1],[76,6,77,7],[39,2,39,3],[38,0,39,1],[38,6,39,7],[42,2,42,3],[1,9,1,22],[42,14,42,15],[42,20,42,21],[2,10,2,22],[0,9,0,22],[4,2,4,3],[4,8,4,9],[4,14,4,15],[4,20,4,21]]}
[null,null,null,null,null,null,null,null,null,"Ranking Matriculaciones Embarcaciones Nuevas"]
[null,null,null,null,null,null,null,null,null,"Enero-Enero"]
[null,null,null,null,null,null,null,null,null,null,"2021-02-01"]
[]
["CAPITANIA",null,"Numero Total",null,null,null,"CAPITANIA",null,"Lista 6","6 ANT",null,null,"CAPITANIA",null,"Lista 7","7 ANT",null,null,"CAPITANIA",null,"MOTOS"]
[null,null,"Act","Ant","% Dif.",null,null,null,{"$f":"+C6","v":"Act"},{"$f":"+D6","v":"Ant"},{"$f":"+E6","v":"% Dif."},null,null,null,{"$f":"+I6","v":"Act"},{"$f":"+J6","v":"Ant"},{"$f":"+K6","v":"% Dif."},null,null,null,{"$f":"+O6","v":"Act"},{"$f":"+P6","v":"Ant"},{"$f":"+Q6","v":"% Dif."}]
[1,"BARCELONA",22,20,0.10000000000000009,null,1,"PALMA MALLORCA",6,4,0.5,null,1,"BARCELONA",19,20,-5.0000000000000044E-2,null,1,"CARTAGENA",8,7,0.14285714285714279]
[2,"CASTELLON",15,11,0.36363636363636354,null,2,"A CORUÑA",4,3,0.33333333333333326,null,2,"CASTELLON",15,10,0.5,null,2,"CASTELLON",6,4,0.5]
[3,"PALMA MALLORCA",14,16,-0.125,null,3,"BARCELONA",3,0,"",null,3,"ALICANTE",11,9,0.22222222222222232,null,3,"A CORUÑA",5,1,4]
[4,"A CORUÑA",13,10,0.30000000000000004,null,4,"VALENCIA",2,0,"",null,4,"ALMERIA",11,10,0.10000000000000009,null,4,"ALMERIA",3,2,0.5]
[5,"ALICANTE",12,14,-0.1428571428571429,null,5,"ALICANTE",1,5,-0.8,null,5,"ALGECIRAS",10,9,0.11111111111111116,null,5,"ALICANTE",2,5,-0.6]
[6,"ALMERIA",11,11,0,null,6,"CADIZ",1,0,"",null,6,"CADIZ",10,6,0.66666666666666674,null,6,"BILBAO",2,4,-0.5]
[7,"CADIZ",11,6,0.83333333333333326,null,7,"CARTAGENA",1,5,-0.8,null,7,"CARTAGENA",10,9,0.11111111111111116,null,7,"ALGECIRAS",1,2,-0.5]
[8,"CARTAGENA",11,14,-0.2142857142857143,null,8,"HUELVA",1,3,-0.66666666666666674,null,8,"A CORUÑA",9,7,0.28571428571428581,null,8,"BARCELONA",1,1,0]
[9,"ALGECIRAS",10,10,0,null,9,"MALAGA",1,4,-0.75,null,9,"MALAGA",8,10,-0.19999999999999996,null,9,"CADIZ",1,1,0]
[10,"MALAGA",9,14,-0.3571428571428571,null,10,"MOTRIL",1,0,"",null,10,"PALMA MALLORCA",8,12,-0.33333333333333337,null,10,"MOTRIL",1,1,0]
[11,"VALENCIA",9,3,2,null,11,"TARRAGONA",1,0,"",null,11,"SANTANDER",7,8,-0.125,null,11,"VALENCIA",1,0,""]
[12,"TARRAGONA",8,4,1,null,12,"ALGECIRAS",0,1,-1,null,12,"TARRAGONA",7,4,0.75,null,12,"VIGO",1,2,-0.5]
[13,"SANTANDER",7,8,-0.125,null,13,"ALMERIA",0,1,-1,null,13,"VALENCIA",7,3,1.3333333333333335,null,13,"AVILES",0,0,""]
[14,"BILBAO",6,14,-0.5714285714285714,null,14,"AVILES",0,0,"",null,14,"BILBAO",6,12,-0.5,null,14,"GIJON",0,0,""]
[15,"LAS PALMAS",5,11,-0.54545454545454541,null,15,"BILBAO",0,2,-1,null,15,"LAS PALMAS",5,7,-0.2857142857142857,null,15,"HUELVA",0,5,-1]
[16,"VIGO",4,14,-0.7142857142857143,null,16,"CASTELLON",0,1,-1,null,16,"VIGO",4,11,-0.63636363636363635,null,16,"LAS PALMAS",0,0,""]
[17,"AVILES",2,0,"",null,17,"GIJON",0,0,"",null,17,"AVILES",2,0,"",null,17,"LUGO",0,0,""]
[18,"HUELVA",2,10,-0.8,null,18,"LAS PALMAS",0,4,-1,null,18,"SANTA CRUZ DE TENERIFE",2,8,-0.75,null,18,"MALAGA",0,0,""]
[19,"SANTA CRUZ DE TENERIFE",2,9,-0.77777777777777779,null,19,"LUGO",0,0,"",null,19,"SEVILLA",2,3,-0.33333333333333337,null,19,"MELILLA",0,2,-1]
[20,"SEVILLA",2,3,-0.33333333333333337,null,20,"MELILLA",0,0,"",null,20,"VILAGARCIA DE AROUSA",2,15,-0.8666666666666667,null,20,"PALAMOS",0,0,""]
[21,"VILAGARCIA DE AROUSA",2,15,-0.8666666666666667,null,21,"PALAMOS",0,1,-1,null,21,"GIJON",1,1,0,null,21,"PALMA MALLORCA",0,3,-1]
[22,"GIJON",1,1,0,null,22,"PASAJES",0,0,"",null,22,"HUELVA",1,7,-0.85714285714285721,null,22,"PASAJES",0,0,""]
[23,"LUGO",1,1,0,null,23,"SANTA CRUZ DE TENERIFE",0,1,-1,null,23,"LUGO",1,1,0,null,23,"SANTA CRUZ DE TENERIFE",0,1,-1]
[24,"MELILLA",1,2,-0.5,null,24,"SANTANDER",0,0,"",null,24,"MELILLA",1,2,-0.5,null,24,"SANTANDER",0,0,""]
[25,"MOTRIL",1,1,0,null,25,"SEVILLA",0,0,"",null,25,"PALAMOS",1,3,-0.66666666666666674,null,25,"SEVILLA",0,0,""]
[26,"PALAMOS",1,4,-0.75,null,26,"VIGO",0,3,-1,null,26,"PASAJES",1,0,"",null,26,"TARRAGONA",0,0,""]
[27,"PASAJES",1,0,"",null,27,"VILAGARCIA DE AROUSA",0,0,"",null,27,"MOTRIL",0,1,-1,null,27,"VILAGARCIA DE AROUSA",0,2,-1]
[28,0,0,0,"",null,28,0,0,0,"",null,28,0,0,0,"",null,28,0,0,0,""]
[28,0,0,0,"",null,28,0,0,0,"",null,28,0,0,0,"",null,28,0,0,0,""]
[29,0,0,0,"",null,29,0,0,0,"",null,29,0,0,0,"",null,29,0,0,0,""]
[30,0,0,0,"",null,30,0,0,0,"",null,30,0,0,0,"",null,30,0,0,0,""]
[31,0,0,0,"",null,31,0,0,0,"",null,31,0,0,0,"",null,31,0,0,0,""]
[null,null,{"$f":"SUM(C7:C38)","v":183},{"$f":"SUM(D7:D38)","v":226},{"$f":"IF(D39=0,\"\",C39/D39-1)","v":-0.19026548672566368},null,null,null,{"$f":"SUM(I7:I38)","v":22},{"$f":"SUM(J7:J38)","v":38},{"$f":"IF(J39=0,\"\",I39/J39-1)","v":-0.42105263157894735},null,null,null,{"$f":"SUM(O7:O38)","v":161},{"$f":"SUM(P7:P38)","v":188},{"$f":"IF(P39=0,\"\",O39/P39-1)","v":-0.1436170212765957},null,null,null,{"$f":"SUM(U7:U38)","v":32},{"$f":"SUM(V7:V38)","v":43},{"$f":"IF(V39=0,\"\",U39/V39-1)","v":-0.2558139534883721}]
[null,null,{"$f":"IF(D39=0,\"\",C39/D39-1)","v":-0.19026548672566368},null,null,null,null,null,{"$f":"IF(J39=0,\"\",I39/J39-1)","v":-0.42105263157894735},null,null,null,null,null,{"$f":"IF(P39=0,\"\",O39/P39-1)","v":-0.1436170212765957},null,null,null,null,null,{"$f":"IF(V39=0,\"\",U39/V39-1)","v":-0.2558139534883721}]
[]
[]
["CAPITANIA",null,"RIGIDO","Rig ANT",null,null,"CAPITANIA",null,"SEMIRIGIDO","Semi ANT",null,null,"CAPITANIA",null,"NEUMATICO","neu ANT",null,null,"CAPITANIA",null,"VELA","Vela ANT"]
[null,null,"Act","Ant","% Dif.",null,null,null,{"$f":"+C44","v":"Act"},{"$f":"+D44","v":"Ant"},{"$f":"+E44","v":"% Dif."},null,null,null,{"$f":"+I44","v":"Act"},{"$f":"+J44","v":"Ant"},{"$f":"+K44","v":"% Dif."},null,null,null,{"$f":"+O44","v":"Act"},{"$f":"+P44","v":"Ant"},{"$f":"+Q44","v":"% Dif."}]
[1,"BARCELONA",14,14,0,null,1,"PALMA MALLORCA",3,6,-0.5,null,1,"ALGECIRAS",4,1,3,null,1,"BARCELONA",3,2,0.5]
[2,"PALMA MALLORCA",10,5,1,null,2,"ALMERIA",2,3,-0.33333333333333337,null,2,"ALMERIA",3,4,-0.25,null,2,"CADIZ",3,0,""]
[3,"ALICANTE",9,5,0.8,null,3,"BARCELONA",2,1,1,null,3,"LAS PALMAS",3,3,0,null,3,"CASTELLON",3,1,2]
[4,"A CORUÑA",8,7,0.14285714285714279,null,4,"ALGECIRAS",1,3,-0.66666666666666674,null,4,"MALAGA",3,3,0,null,4,"ALGECIRAS",1,0,""]
[5,"CASTELLON",6,4,0.5,null,5,"CADIZ",1,1,0,null,5,"BARCELONA",2,2,0,null,5,"ALICANTE",1,1,0]
[6,"MALAGA",6,8,-0.25,null,6,"LAS PALMAS",1,5,-0.8,null,6,"CADIZ",2,0,"",null,6,"GIJON",1,0,""]
[7,"VALENCIA",6,2,2,null,7,"SANTA CRUZ DE TENERIFE",1,0,"",null,7,"SANTANDER",2,1,1,null,7,"HUELVA",1,0,""]
[8,"TARRAGONA",5,2,1.5,null,8,"SANTANDER",1,1,0,null,8,"TARRAGONA",2,1,1,null,8,"PALMA MALLORCA",1,1,0]
[9,"CADIZ",4,4,0,null,9,"VALENCIA",1,0,"",null,9,"VIGO",2,0,"",null,9,"TARRAGONA",1,0,""]
[10,"SANTANDER",4,5,-0.19999999999999996,null,10,"VILAGARCIA DE AROUSA",1,0,"",null,10,"BILBAO",1,1,0,null,10,"VALENCIA",1,1,0]
[11,"ALGECIRAS",3,4,-0.25,null,11,"A CORUÑA",0,0,"",null,11,"CARTAGENA",1,2,-0.5,null,11,"A CORUÑA",0,2,-1]
[12,"ALMERIA",3,2,0.5,null,12,"ALICANTE",0,3,-1,null,12,"SANTA CRUZ DE TENERIFE",1,2,-0.5,null,12,"ALMERIA",0,0,""]
[13,"BILBAO",3,3,0,null,13,"AVILES",0,0,"",null,13,"A CORUÑA",0,0,"",null,13,"AVILES",0,0,""]
[14,"AVILES",2,0,"",null,14,"BILBAO",0,2,-1,null,14,"ALICANTE",0,0,"",null,14,"BILBAO",0,4,-1]
[15,"CARTAGENA",2,3,-0.33333333333333337,null,15,"CARTAGENA",0,1,-1,null,15,"AVILES",0,0,"",null,15,"CARTAGENA",0,1,-1]
[16,"SEVILLA",2,3,-0.33333333333333337,null,16,"CASTELLON",0,0,"",null,16,"CASTELLON",0,2,-1,null,16,"LAS PALMAS",0,0,""]
[17,"HUELVA",1,0,"",null,17,"GIJON",0,0,"",null,17,"GIJON",0,0,"",null,17,"LUGO",0,0,""]
[18,"LUGO",1,1,0,null,18,"HUELVA",0,1,-1,null,18,"HUELVA",0,4,-1,null,18,"MALAGA",0,2,-1]
[19,"MELILLA",1,0,"",null,19,"LUGO",0,0,"",null,19,"LUGO",0,0,"",null,19,"MELILLA",0,0,""]
[20,"PALAMOS",1,2,-0.5,null,20,"MALAGA",0,1,-1,null,20,"MELILLA",0,0,"",null,20,"MOTRIL",0,0,""]
[21,"PASAJES",1,0,"",null,21,"MELILLA",0,0,"",null,21,"MOTRIL",0,0,"",null,21,"PALAMOS",0,0,""]
[22,"VIGO",1,6,-0.83333333333333337,null,22,"MOTRIL",0,0,"",null,22,"PALAMOS",0,2,-1,null,22,"PASAJES",0,0,""]
[23,"VILAGARCIA DE AROUSA",1,13,-0.92307692307692313,null,23,"PALAMOS",0,0,"",null,23,"PALMA MALLORCA",0,1,-1,null,23,"SANTA CRUZ DE TENERIFE",0,0,""]
[24,"GIJON",0,1,-1,null,24,"PASAJES",0,0,"",null,24,"PASAJES",0,0,"",null,24,"SANTANDER",0,1,-1]
[25,"LAS PALMAS",0,3,-1,null,25,"SEVILLA",0,0,"",null,25,"SEVILLA",0,0,"",null,25,"SEVILLA",0,0,""]
[26,"MOTRIL",0,0,"",null,26,"TARRAGONA",0,1,-1,null,26,"VALENCIA",0,0,"",null,26,"VIGO",0,2,-1]
[27,"SANTA CRUZ DE TENERIFE",0,5,-1,null,27,"VIGO",0,4,-1,null,27,"VILAGARCIA DE AROUSA",0,0,"",null,27,"VILAGARCIA DE AROUSA",0,0,""]
[28,0,0,0,"",null,28,0,0,0,"",null,28,0,0,0,"",null,28,0,0,0,""]
[28,0,0,0,"",null,28,0,0,0,"",null,28,0,0,0,"",null,28,0,0,0,""]
[29,0,0,0,"",null,29,0,0,0,"",null,29,0,0,0,"",null,29,0,0,0,""]
[30,0,0,0,"",null,30,0,0,0,"",null,30,0,0,0,"",null,30,0,0,0,""]
[31,0,0,0,"",null,31,0,0,0,"",null,31,0,0,0,"",null,31,0,0,0,""]
[null,null,{"$f":"SUM(C45:C76)","v":94},{"$f":"SUM(D45:D76)","v":102},{"$f":"IF(D77=0,\"\",C77/D77-1)","v":-7.8431372549019662E-2},null,null,null,{"$f":"SUM(I45:I76)","v":14},{"$f":"SUM(J45:J76)","v":33},{"$f":"IF(J77=0,\"\",I77/J77-1)","v":-0.57575757575757569},null,null,null,{"$f":"SUM(O45:O76)","v":26},{"$f":"SUM(P45:P76)","v":29},{"$f":"IF(P77=0,\"\",O77/P77-1)","v":-0.10344827586206895},null,null,null,{"$f":"SUM(U45:U76)","v":16},{"$f":"SUM(V45:V76)","v":18},{"$f":"IF(V77=0,\"\",U77/V77-1)","v":-0.11111111111111116}]
[null,null,{"$f":"IF(D77=0,\"\",C77/D77-1)","v":-7.8431372549019662E-2},null,null,null,null,null,{"$f":"IF(J77=0,\"\",I77/J77-1)","v":-0.57575757575757569},null,null,null,null,null,{"$f":"IF(P77=0,\"\",O77/P77-1)","v":-0.10344827586206895},null,null,null,null,null,{"$f":"IF(V77=0,\"\",U77/V77-1)","v":-0.11111111111111116}]

{"sheet":"Hoja3","index":3,"n_rows":28,"n_cols":47,"rows_kept":28,"cut":false,"hidden":true,"merged":[]}
["CAPITANIA","Numero Total","<03","<03,5","<04","<04,5","<05","<06","<08","<12","<15","<20","<24",">=24","MOTOS","Misma Provincia","Diferente Provincia","Lista 6","Lista 7","RIGIDO","SEMIRIGIDO","NEUMATICO","Sin Datos","VELA","Total ANT","03 ANT","035 ANT","04 ANT","045 ANT","05 ANT","06 ANT","075 ANT","12 ANT","15 ANT","20 ANT","24 ANT",">24 ANT","Motos ANT","Misma ANT","Dif ANT","6 ANT","7 ANT","Rig ANT","Semi ANT","neu ANT","sd ANT","Vela ANT"]
["A CORUÑA",10,null,null,null,null,null,1,3,5,null,null,null,null,1,2,8,3,7,7,0,0,0,2,7,null,null,null,null,2,4,null,1,null,null,null,null,null,2,5,0,7,5,1,0,0,1]
["ALGECIRAS",10,null,1,null,null,1,1,4,null,null,1,null,null,2,1,9,1,9,4,3,1,0,0,7,null,null,2,1,1,null,2,null,1,null,null,null,null,3,4,0,7,3,2,2,0,0]
["ALICANTE",14,1,null,null,null,null,6,2,null,null,null,null,null,5,7,7,5,9,5,3,0,0,1,24,1,3,null,1,1,9,3,1,null,null,null,null,5,14,10,0,24,12,2,3,0,2]
["ALMERIA",11,3,1,null,null,1,3,1,null,null,null,null,null,2,6,5,1,10,2,3,4,0,0,8,null,1,1,null,1,null,4,null,null,null,null,null,1,3,5,0,8,5,0,2,0,0]
["AVILES",null,null,null,null,null,null,null,null,null,null,null,null,null,null,null,null,null,null,null,null,null,null,null,1,null,null,null,null,null,1,null,null,null,null,null,null,null,1,null,0,1,0,0,0,1,0]
["BARCELONA",20,null,1,1,null,null,3,8,5,1,null,null,null,1,11,9,0,20,14,1,2,0,2,15,null,1,null,1,1,3,2,4,1,1,null,null,1,8,7,3,12,9,1,3,0,1]
["BILBAO",14,null,3,null,null,1,1,1,4,null,null,null,null,4,5,9,2,12,3,2,1,0,4,13,null,null,null,null,null,4,1,null,3,null,null,null,5,2,11,0,13,5,2,0,0,1]
["CADIZ",6,null,null,null,1,2,1,1,null,null,null,null,null,1,4,2,0,6,4,1,0,0,0,11,1,1,null,4,null,3,1,null,null,null,null,null,1,6,5,0,11,4,4,2,0,0]
["CARTAGENA",14,1,1,null,1,1,2,null,1,null,null,null,null,7,9,5,5,9,3,1,2,0,1,10,1,2,3,2,null,null,1,null,null,null,null,null,1,7,3,0,10,4,1,4,0,0]
["CASTELLON",11,1,1,null,1,null,1,2,1,null,null,null,null,4,3,8,1,10,4,0,2,0,1,1,null,null,null,null,null,null,1,null,null,null,null,null,null,null,1,0,1,1,0,0,0,0]
["GIJON",1,null,null,null,null,null,1,null,null,null,null,null,null,null,null,1,0,1,1,0,0,0,0,4,null,null,null,1,null,1,2,null,null,null,null,null,null,1,3,0,4,3,1,0,0,0]
["HUELVA",10,1,null,3,1,null,null,null,null,null,null,null,null,5,9,1,3,7,0,1,4,0,0,2,null,1,null,null,null,null,null,null,null,null,null,null,1,2,null,0,2,1,0,0,0,0]
["LAS PALMAS",11,null,1,6,1,null,1,null,1,1,null,null,null,null,11,null,4,7,3,5,3,0,0,8,1,4,null,null,2,null,1,null,null,null,null,null,null,8,null,1,7,2,0,6,0,0]
["LUGO",1,null,null,null,null,null,1,null,null,null,null,null,null,null,null,1,0,1,1,0,0,0,0,1,null,null,null,1,null,null,null,null,null,null,null,null,null,null,1,0,1,1,0,0,0,0]
["MALAGA",14,null,4,3,1,null,4,1,1,null,null,null,null,null,11,3,4,10,8,1,3,0,2,6,null,2,null,null,null,null,null,null,null,1,null,null,3,4,2,0,6,1,1,1,0,0]
["MELILLA",2,null,null,null,null,null,null,null,null,null,null,null,null,2,2,null,0,2,0,0,0,0,0,1,null,null,null,null,null,null,null,null,null,null,null,null,1,1,null,0,1,0,0,0,0,0]
["MOTRIL",1,null,null,null,null,null,null,null,null,null,null,null,null,1,1,null,0,1,0,0,0,0,0,6,null,null,2,null,null,null,null,null,null,null,null,null,4,4,2,0,6,0,0,2,0,0]
["PALAMOS",4,2,null,null,null,null,null,1,null,1,null,null,null,null,2,2,1,3,2,0,2,0,0,5,null,null,1,null,1,null,3,null,null,null,null,null,null,3,2,2,3,4,0,1,0,0]
["PALMA MALLORCA",16,null,1,1,null,null,5,4,2,null,null,null,null,3,13,3,3,13,5,6,1,0,1,21,null,null,1,3,1,5,4,3,2,1,null,null,1,16,5,2,19,14,3,0,0,3]
["PASAJES",null,null,null,null,null,null,null,null,null,null,null,null,null,null,null,null,null,null,null,null,null,null,null,1,null,null,1,null,null,null,null,null,null,null,null,null,null,null,1,0,1,0,1,0,0,0]
["SANTA CRUZ DE TENERIFE",9,null,1,1,null,1,3,2,null,null,null,null,null,1,6,3,1,8,5,0,2,1,0,2,null,null,null,1,null,null,null,1,null,null,null,null,null,1,1,2,0,2,0,0,0,0]
["SANTANDER",8,null,1,null,1,1,2,2,1,null,null,null,null,null,6,2,0,8,5,1,1,0,1,1,null,null,null,null,null,1,null,null,null,null,null,null,null,1,null,0,1,1,0,0,0,0]
["SEVILLA",3,null,null,null,null,1,1,1,null,null,null,null,null,null,1,2,0,3,3,0,0,0,0,9,1,2,1,2,null,1,1,1,null,null,null,null,null,5,4,1,8,2,2,5,0,0]
["TARRAGONA",4,1,null,2,null,null,null,null,null,1,null,null,null,null,2,2,0,4,2,1,1,0,0,4,null,null,null,null,null,1,2,null,1,null,null,null,null,2,2,0,4,4,0,0,0,0]
["VALENCIA",3,null,null,null,null,null,1,1,1,null,null,null,null,null,2,1,0,3,2,0,0,0,1,6,1,null,1,null,1,1,null,1,1,null,null,null,null,5,1,0,6,3,0,1,0,2]
["VIGO",14,null,null,1,null,2,3,4,1,1,null,null,null,2,8,6,3,11,6,4,0,0,2,6,null,null,null,null,null,2,1,1,1,null,null,null,1,3,3,0,6,3,1,0,0,1]
["VILAGARCIA DE AROUSA",15,null,null,null,3,3,6,1,null,null,null,null,null,2,3,12,0,15,13,0,0,0,0,12,null,1,7,1,null,1,null,null,null,null,null,null,2,2,10,0,12,10,0,0,0,0]

{"sheet":"Hoja5","index":4,"n_rows":146,"n_cols":47,"rows_kept":146,"cut":false,"hidden":true,"merged":[]}
["ASTILLERO","Numero Total","<03","<03,5","<04","<04,5","<05","<06","<08","<12","<15","<20","<24",">=24","MOTOS","Misma Provincia","Diferente Provincia","Lista 6","Lista 7","RIGIDO","SEMIRIGIDO","NEUMATICO","Sin Datos","VELA","SumaDeTotal ANT","SumaDe03 ANT","SumaDe035 ANT","SumaDe04 ANT","SumaDe045 ANT","SumaDe05 ANT","SumaDe06 ANT","SumaDe08 ANT","SumaDe12 ANT","SumaDe15 ANT","SumaDe20 ANT","SumaDe24 ANT","SumaDe>24 ANT","SumaDeMotos ANT","SumaDeMisma ANT","SumaDeDif ANT","SumaDe6 ANT","SumaDe7 ANT","SumaDeRig ANT","SumaDeSemi ANT","SumaDeneu ANT","SumaDesd ANT","SumaDeVela ANT"]
["BOMBARDIER",36,null,null,null,null,null,null,null,null,null,null,null,null,36,19,17,10,26,0,0,0,0,0,17,null,null,null,null,null,null,null,null,null,null,null,null,17,11,6,0,17,0,0,0,0,0]
["JEANNEAU",13,null,null,null,null,null,3,7,3,null,null,null,null,null,4,9,0,13,11,0,0,0,2,8,null,null,null,null,null,null,4,1,2,1,null,null,null,2,6,1,7,7,0,0,0,1]
["QUICKSILVER",13,1,1,1,null,1,4,5,null,null,null,null,null,null,7,6,1,12,10,0,3,0,0,15,null,null,null,1,4,4,6,null,null,null,null,null,null,5,10,0,15,15,0,0,0,0]
["ASTIXANO",11,null,null,null,2,2,6,1,null,null,null,null,null,null,2,9,0,11,11,0,0,0,0,10,null,1,7,1,null,1,null,null,null,null,null,null,null,null,10,0,10,10,0,0,0,0]
["DIPOL",9,null,null,2,2,null,5,null,null,null,null,null,null,null,7,2,2,7,9,0,0,0,0,2,null,null,null,1,null,1,null,null,null,null,null,null,null,2,null,0,2,2,0,0,0,0]
["BENETEAU",7,null,null,null,null,null,null,5,1,1,null,null,null,null,2,5,0,7,4,0,0,0,3,8,null,null,null,null,null,null,3,1,4,null,null,null,null,5,3,1,7,4,0,0,0,4]
["SIN DATOS",7,null,null,1,2,null,1,1,1,1,null,null,null,null,4,3,1,6,3,1,0,1,2,4,null,null,1,null,null,null,1,1,1,null,null,null,null,3,1,1,3,3,0,0,0,1]
["YAMAHA",7,null,null,null,null,null,null,null,null,null,null,null,null,7,5,2,2,5,0,0,0,0,0,9,null,null,null,null,null,null,null,null,null,null,null,null,9,6,3,2,7,0,0,0,0,0]
["OZEAM",6,3,3,null,null,null,null,null,null,null,null,null,null,null,4,2,0,6,0,0,6,0,0,3,null,3,null,null,null,null,null,null,null,null,null,null,null,3,null,0,3,0,0,3,0,0]
["ZODIAC",6,null,2,1,1,null,1,1,null,null,null,null,null,null,2,4,0,6,0,4,2,0,0,6,1,2,1,1,null,1,null,null,null,null,null,null,null,3,3,0,6,0,4,2,0,0]
["COBRA INFLABLE",5,1,null,3,null,null,1,null,null,null,null,null,null,null,4,1,3,2,0,1,4,0,0,1,null,null,null,null,null,1,null,null,null,null,null,null,null,null,1,0,1,0,1,0,0,0]
["HONDA HONWAVE",4,1,1,2,null,null,null,null,null,null,null,null,null,null,4,null,0,4,0,0,4,0,0,1,null,null,1,null,null,null,null,null,null,null,null,null,null,null,1,0,1,0,0,1,0,0]
["BAVARIA",3,null,null,null,null,null,null,null,3,null,null,null,null,null,2,1,2,1,2,0,0,0,1,1,null,null,null,null,null,null,null,1,null,null,null,null,null,1,null,0,1,1,0,0,0,0]
["J BOATS",3,null,null,null,null,null,null,null,3,null,null,null,null,null,1,2,1,2,0,0,0,0,3]
["SEA RIB´S",3,null,null,null,1,null,2,null,null,null,null,null,null,null,2,1,1,2,0,3,0,0,0,1,null,null,null,null,null,1,null,null,null,null,null,null,null,1,null,0,1,0,1,0,0,0]
["AGF",2,null,null,null,null,1,null,1,null,null,null,null,null,null,1,1,0,2,2,0,0,0,0,1,null,null,null,null,null,1,null,null,null,null,null,null,null,null,1,0,1,1,0,0,0,0]
["APEX INFLATABLES",2,null,null,2,null,null,null,null,null,null,null,null,null,null,2,null,0,2,0,2,0,0,0]
["ASTEC",2,null,null,1,null,null,null,1,null,null,null,null,null,null,1,1,0,2,1,1,0,0,0]
["AZIMUT",2,null,null,null,null,null,null,null,null,1,1,null,null,null,1,1,0,2,2,0,0,0,0]
["BAYLINER",2,null,null,null,null,null,2,null,null,null,null,null,null,null,1,1,0,2,2,0,0,0,0,5,null,null,null,null,1,3,1,null,null,null,null,null,null,1,4,0,5,5,0,0,0,0]
["BOMBARD",2,null,null,null,null,null,2,null,null,null,null,null,null,null,1,1,1,1,0,2,0,0,0]
["CANTIERI CAPELLI",2,null,null,null,null,null,null,1,1,null,null,null,null,null,2,null,1,1,0,2,0,0,0,1,null,null,null,null,null,null,null,1,null,null,null,null,null,null,1,0,1,0,1,0,0,0]
["GOLDEN SHIP",2,null,null,null,null,1,1,null,null,null,null,null,null,null,1,1,0,2,0,1,1,0,0]
["INVICTUS",2,null,null,null,null,null,1,1,null,null,null,null,null,null,1,1,2,0,2,0,0,0,0]
["LOMAC",2,null,null,2,null,null,null,null,null,null,null,null,null,null,2,null,2,0,0,2,0,0,0,1,null,null,1,null,null,null,null,null,null,null,null,null,null,null,1,0,1,0,1,0,0,0]
["OBE & CARMEN",2,null,null,null,null,1,null,1,null,null,null,null,null,null,1,1,0,2,2,0,0,0,0]
["OKI BOATS",2,null,null,null,null,null,2,null,null,null,null,null,null,null,1,1,0,2,2,0,0,0,0,1,null,null,null,null,null,1,null,null,null,null,null,null,null,1,null,0,1,1,0,0,0,0]
["PROTENDER",2,1,1,null,null,null,null,null,null,null,null,null,null,null,2,null,0,2,0,0,2,0,0]
["WILLIAMS MARINE",2,null,2,null,null,null,null,null,null,null,null,null,null,null,1,1,0,2,0,2,0,0,0]
["ACHA",1,null,null,null,null,null,null,null,1,null,null,null,null,null,null,1,1,0,1,0,0,0,0]
["ALLEGRA",1,null,null,null,null,null,1,null,null,null,null,null,null,null,1,null,1,0,1,0,0,0,0]
["AMANAY",1,null,null,null,1,null,null,null,null,null,null,null,null,null,1,null,0,1,0,1,0,0,0]
["ASTILLEROS HAZ",1,null,null,null,null,null,1,null,null,null,null,null,null,null,null,1,0,1,1,0,0,0,0,1,null,null,null,null,1,null,null,null,null,null,null,null,null,null,1,0,1,1,0,0,0,0]
["ASTILUX",1,null,null,null,null,null,1,null,null,null,null,null,null,null,1,null,0,1,1,0,0,0,0]
["B2 MARINE",1,null,null,null,null,null,1,null,null,null,null,null,null,null,1,null,0,1,1,0,0,0,0]
["BOSTON WHALER",1,null,null,null,null,null,null,null,1,null,null,null,null,null,1,null,0,1,1,0,0,0,0]
["BWA",1,null,null,null,null,null,1,null,null,null,null,null,null,null,null,1,0,1,0,1,0,0,0,1,null,null,null,null,null,1,null,null,null,null,null,null,null,null,1,0,1,0,1,0,0,0]
["CEREIXO",1,null,null,null,null,null,1,null,null,null,null,null,null,null,1,null,0,1,1,0,0,0,0]
["CHAPARRAL",1,null,null,null,null,null,null,1,null,null,null,null,null,null,null,1,0,1,1,0,0,0,0]
["CRANCHI",1,null,null,null,null,null,null,null,1,null,null,null,null,null,1,null,0,1,1,0,0,0,0,1,null,null,null,null,null,null,null,1,null,null,null,null,null,null,1,0,1,1,0,0,0,0]
["DAGANZ",1,null,null,null,null,1,null,null,null,null,null,null,null,null,1,null,0,1,1,0,0,0,0]
["DUFOUR",1,null,null,null,null,null,null,null,1,null,null,null,null,null,1,null,0,1,0,0,0,0,1]
["DUROMAR",1,null,1,null,null,null,null,null,null,null,null,null,null,null,1,null,0,1,0,0,1,0,0]
["EOLO",1,null,null,null,null,null,1,null,null,null,null,null,null,null,null,1,0,1,1,0,0,0,0]
["FAETON",1,null,null,null,null,null,null,1,null,null,null,null,null,null,null,1,0,1,1,0,0,0,0]
["FIBRAMAR",1,null,null,null,null,null,null,1,null,null,null,null,null,null,1,null,0,1,1,0,0,0,0]
["FOUR WINNS",1,null,null,null,null,null,1,null,null,null,null,null,null,null,null,1,0,1,1,0,0,0,0,1,null,null,null,null,null,null,1,null,null,null,null,null,null,1,null,0,1,1,0,0,0,0]
["GENESIS",1,1,null,null,null,null,null,null,null,null,null,null,null,null,1,null,0,1,0,1,0,0,0]
["GIRBAU",1,null,null,null,null,null,null,1,null,null,null,null,null,null,null,1,0,1,1,0,0,0,0]
["GRAUVELL",1,null,1,null,null,null,null,null,null,null,null,null,null,null,1,null,0,1,0,0,1,0,0,1,null,null,null,1,null,null,null,null,null,null,null,null,null,1,null,0,1,0,0,1,0,0]
["GROSTAR",1,null,null,null,null,null,null,1,null,null,null,null,null,null,null,1,0,1,1,0,0,0,0]
["HALLBERG RASSY",1,null,null,null,null,null,null,null,1,null,null,null,null,null,1,null,0,1,0,0,0,0,1]
["HARMONY",1,null,null,null,null,null,null,null,null,1,null,null,null,null,1,null,1,0,1,0,0,0,0]
["JACKSON KAYAK",1,null,null,null,null,1,null,null,null,null,null,null,null,null,1,null,0,1,1,0,0,0,0]
["JAGO",1,null,1,null,null,null,null,null,null,null,null,null,null,null,1,null,0,1,0,0,1,0,0]
["JOUET",1,null,null,null,null,null,null,null,1,null,null,null,null,null,1,null,0,1,0,0,0,0,1]
["KARNIC",1,null,null,null,null,null,1,null,null,null,null,null,null,null,1,null,0,1,1,0,0,0,0]
["KIMPLE",1,null,null,null,null,1,null,null,null,null,null,null,null,null,null,1,0,1,1,0,0,0,0]
["KYBIN",1,null,1,null,null,null,null,null,null,null,null,null,null,null,null,1,0,1,0,0,1,0,0,1,1,null,null,null,null,null,null,null,null,null,null,null,null,1,null,0,1,0,0,1,0,0]
["LA NORIA",1,null,1,null,null,null,null,null,null,null,null,null,null,null,1,null,0,1,1,0,0,0,0]
["LAGOON",1,null,null,null,null,null,null,null,1,null,null,null,null,null,null,1,1,0,1,0,0,0,0]
["LEMA",1,null,null,null,null,null,null,1,null,null,null,null,null,null,null,1,0,1,1,0,0,0,0,1,null,null,null,null,null,1,null,null,null,null,null,null,null,null,1,0,1,1,0,0,0,0]
["LODESTAR",1,null,null,null,null,1,null,null,null,null,null,null,null,null,null,1,0,1,0,1,0,0,0,3,null,null,null,3,null,null,null,null,null,null,null,null,null,1,2,0,3,0,3,0,0,0]
["MARINE",1,null,null,1,null,null,null,null,null,null,null,null,null,null,1,null,0,1,1,0,0,0,0]
["MAXUM",1,null,null,null,null,null,1,null,null,null,null,null,null,null,1,null,0,1,1,0,0,0,0]
["MERCURY",1,null,null,null,1,null,null,null,null,null,null,null,null,null,1,null,0,1,0,1,0,0,0,3,1,1,null,null,1,null,null,null,null,null,null,null,null,2,1,0,3,0,0,3,0,0]
["MERY NAUTIC",1,null,null,null,null,null,1,null,null,null,null,null,null,null,1,null,0,1,1,0,0,0,0]
["MINIJET",1,1,null,null,null,null,null,null,null,null,null,null,null,null,null,1,0,1,0,1,0,0,0]
["MONTEREY BOATS",1,null,null,null,null,null,null,1,null,null,null,null,null,null,null,1,0,1,1,0,0,0,0,1,null,null,null,null,null,1,null,null,null,null,null,null,null,1,null,0,1,1,0,0,0,0]
["NARWHAL",1,null,null,null,null,1,null,null,null,null,null,null,null,null,1,null,0,1,0,1,0,0,0,1,null,null,null,null,null,1,null,null,null,null,null,null,null,1,null,0,1,0,1,0,0,0]
["NAUTITECH",1,null,null,null,null,null,null,null,1,null,null,null,null,null,null,1,0,1,0,0,0,0,1]
["NEUVISA",1,null,null,null,null,1,null,null,null,null,null,null,null,null,1,null,0,1,0,1,0,0,0,1,null,null,1,null,null,null,null,null,null,null,null,null,null,null,1,0,1,0,1,0,0,0]
["OCEAN BAY BOATS",1,null,null,1,null,null,null,null,null,null,null,null,null,null,null,1,0,1,0,0,1,0,0,7,null,null,7,null,null,null,null,null,null,null,null,null,null,6,1,0,7,0,0,7,0,0]
["ORCA",1,null,null,null,null,null,null,1,null,null,null,null,null,null,1,null,0,1,1,0,0,0,0,1,null,null,null,null,null,1,null,null,null,null,null,null,null,1,null,0,1,1,0,0,0,0]
["OTERO & LOSADA",1,null,null,null,null,1,null,null,null,null,null,null,null,null,null,1,0,1,1,0,0,0,0]
["PECOSI",1,null,null,null,null,null,1,null,null,null,null,null,null,null,1,null,0,1,1,0,0,0,0]
["REMUS",1,null,null,null,null,null,1,null,null,null,null,null,null,null,null,1,0,1,1,0,0,0,0]
["RIBERA",1,null,null,null,null,null,null,1,null,null,null,null,null,null,1,null,0,1,0,1,0,0,0,1,null,null,null,null,null,null,1,null,null,null,null,null,null,null,1,0,1,0,1,0,0,0]
["RODMAN",1,null,null,null,null,null,null,null,1,null,null,null,null,null,1,null,0,1,1,0,0,0,0]
["SACS",1,null,null,null,null,null,null,1,null,null,null,null,null,null,null,1,0,1,0,1,0,0,0]
["SAVER",1,null,null,null,null,null,1,null,null,null,null,null,null,null,1,null,0,1,1,0,0,0,0]
["SEA DOO",1,null,null,null,null,1,null,null,null,null,null,null,null,null,1,null,0,1,1,0,0,0,0]
["SEA PRO",1,null,null,null,null,null,null,1,null,null,null,null,null,null,null,1,0,1,1,0,0,0,0]
["SEA RAY",1,null,null,null,null,null,null,1,null,null,null,null,null,null,null,1,0,1,1,0,0,0,0,2,null,null,null,null,null,1,null,null,null,1,null,null,null,1,1,0,2,2,0,0,0,0]
["SEVIPOL",1,null,null,null,null,null,null,null,1,null,null,null,null,null,null,1,0,1,0,0,0,0,1]
["SUZUMAR",1,1,null,null,null,null,null,null,null,null,null,null,null,null,null,1,0,1,0,0,1,0,0]
["TECNOFIBER",1,null,null,null,null,null,null,1,null,null,null,null,null,null,1,null,1,0,1,0,0,0,0]
["TRIMARCHI ANTONINO ANDREA",1,null,null,null,null,null,1,null,null,null,null,null,null,null,1,null,1,0,1,0,0,0,0]
["UNIESSE",1,null,null,null,null,null,null,null,null,1,null,null,null,null,1,null,1,0,1,0,0,0,0]
["VALIANT",1,null,null,null,null,null,1,null,null,null,null,null,null,null,null,1,0,1,0,1,0,0,0]
["VANGUARD",1,null,null,null,null,null,null,1,null,null,null,null,null,null,1,null,1,0,0,1,0,0,0,2,null,null,null,null,null,1,1,null,null,null,null,null,null,2,null,0,2,0,2,0,0,0]
["WRIGHTON",1,null,null,null,null,null,null,null,1,null,null,null,null,null,1,null,0,1,0,0,0,0,1]
["ZURITA",1,null,1,null,null,null,null,null,null,null,null,null,null,null,1,null,0,1,0,0,1,0,0]
["AQUAPARX",null,null,null,null,null,null,null,null,null,null,null,null,null,null,null,null,null,null,null,null,null,null,null,2,1,1,null,null,null,null,null,null,null,null,null,null,null,2,null,0,2,0,0,2,0,0]
["ARVOR",null,null,null,null,null,null,null,null,null,null,null,null,null,null,null,null,null,null,null,null,null,null,null,1,null,null,null,null,null,1,null,null,null,null,null,null,null,1,null,0,1,1,0,0,0,0]
["AUXINAVY",null,null,null,null,null,null,null,null,null,null,null,null,null,null,null,null,null,null,null,null,null,null,null,1,null,null,null,null,null,1,null,null,null,null,null,null,null,null,1,0,1,1,0,0,0,0]
["AVON",null,null,null,null,null,null,null,null,null,null,null,null,null,null,null,null,null,null,null,null,null,null,null,2,null,1,null,1,null,null,null,null,null,null,null,null,null,1,1,0,2,0,2,0,0,0]
["BIANCA",null,null,null,null,null,null,null,null,null,null,null,null,null,null,null,null,null,null,null,null,null,null,null,1,null,null,null,null,null,null,null,1,null,null,null,null,null,1,null,0,1,0,0,0,0,1]
["CANTIERI DEL PARDO",null,null,null,null,null,null,null,null,null,null,null,null,null,null,null,null,null,null,null,null,null,null,null,1,null,null,null,null,null,null,null,null,1,null,null,null,null,null,1,0,1,1,0,0,0,0]
["CAPEADOR",null,null,null,null,null,null,null,null,null,null,null,null,null,null,null,null,null,null,null,null,null,null,null,1,null,null,null,null,null,null,1,null,null,null,null,null,null,1,null,0,1,1,0,0,0,0]
["CATANA",null,null,null,null,null,null,null,null,null,null,null,null,null,null,null,null,null,null,null,null,null,null,null,1,null,null,null,null,null,null,null,null,null,1,null,null,null,null,1,0,1,0,0,0,0,1]
["CHARACTER BOATS",null,null,null,null,null,null,null,null,null,null,null,null,null,null,null,null,null,null,null,null,null,null,null,1,null,null,null,null,null,1,null,null,null,null,null,null,null,null,1,0,1,0,0,0,0,1]
["CONSTRUCCIONES DE BARCOS DEL SUR",null,null,null,null,null,null,null,null,null,null,null,null,null,null,null,null,null,null,null,null,null,null,null,1,null,null,null,null,null,null,1,null,null,null,null,null,null,1,null,0,1,0,1,0,0,0]
["CYP",null,null,null,null,null,null,null,null,null,null,null,null,null,null,null,null,null,null,null,null,null,null,null,1,null,null,null,null,null,1,null,null,null,null,null,null,null,1,null,0,1,1,0,0,0,0]
["DUBHE",null,null,null,null,null,null,null,null,null,null,null,null,null,null,null,null,null,null,null,null,null,null,null,1,null,null,null,null,null,null,1,null,null,null,null,null,null,1,null,0,1,1,0,0,0,0]
["DUCAUTO",null,null,null,null,null,null,null,null,null,null,null,null,null,null,null,null,null,null,null,null,null,null,null,1,null,null,1,null,null,null,null,null,null,null,null,null,null,null,1,0,1,1,0,0,0,0]
["ELAN MARINE",null,null,null,null,null,null,null,null,null,null,null,null,null,null,null,null,null,null,null,null,null,null,null,1,null,null,null,null,null,null,null,1,null,null,null,null,null,1,null,0,1,0,0,0,0,1]
["ELIMAT",null,null,null,null,null,null,null,null,null,null,null,null,null,null,null,null,null,null,null,null,null,null,null,1,null,null,null,null,null,1,null,null,null,null,null,null,null,null,1,1,0,1,0,0,0,0]
["ESTABLE",null,null,null,null,null,null,null,null,null,null,null,null,null,null,null,null,null,null,null,null,null,null,null,1,null,null,null,1,null,null,null,null,null,null,null,null,null,1,null,0,1,1,0,0,0,0]
["FAIRLINE",null,null,null,null,null,null,null,null,null,null,null,null,null,null,null,null,null,null,null,null,null,null,null,1,null,null,null,null,null,null,null,1,null,null,null,null,null,1,null,0,1,1,0,0,0,0]
["FIBER CRAFT",null,null,null,null,null,null,null,null,null,null,null,null,null,null,null,null,null,null,null,null,null,null,null,2,null,null,null,1,1,null,null,null,null,null,null,null,null,2,null,0,2,2,0,0,0,0]
["FIBERPLAST",null,null,null,null,null,null,null,null,null,null,null,null,null,null,null,null,null,null,null,null,null,null,null,1,null,null,null,1,null,null,null,null,null,null,null,null,null,null,1,0,1,1,0,0,0,0]
["FISHERPRO",null,null,null,null,null,null,null,null,null,null,null,null,null,null,null,null,null,null,null,null,null,null,null,2,null,2,null,null,null,null,null,null,null,null,null,null,null,2,null,0,2,0,0,2,0,0]
["FISHING",null,null,null,null,null,null,null,null,null,null,null,null,null,null,null,null,null,null,null,null,null,null,null,1,null,null,null,null,null,null,1,null,null,null,null,null,null,1,null,1,0,1,0,0,0,0]
["FREZETWELT GARHERR",null,null,null,null,null,null,null,null,null,null,null,null,null,null,null,null,null,null,null,null,null,null,null,1,null,null,null,null,null,1,null,null,null,null,null,null,null,1,null,0,1,0,0,1,0,0]
["HYDRO FORCE",null,null,null,null,null,null,null,null,null,null,null,null,null,null,null,null,null,null,null,null,null,null,null,2,null,2,null,null,null,null,null,null,null,null,null,null,null,2,null,0,2,0,0,2,0,0]
["JEMAR",null,null,null,null,null,null,null,null,null,null,null,null,null,null,null,null,null,null,null,null,null,null,null,1,null,null,null,null,null,1,null,null,null,null,null,null,null,1,null,0,1,0,0,0,1,0]
["KAWASAKI",null,null,null,null,null,null,null,null,null,null,null,null,null,null,null,null,null,null,null,null,null,null,null,1,null,null,null,null,null,null,null,null,null,null,null,null,1,null,1,0,1,0,0,0,0,0]
["LATREX",null,null,null,null,null,null,null,null,null,null,null,null,null,null,null,null,null,null,null,null,null,null,null,1,null,1,null,null,null,null,null,null,null,null,null,null,null,1,null,0,1,1,0,0,0,0]
["LIAN YA",null,null,null,null,null,null,null,null,null,null,null,null,null,null,null,null,null,null,null,null,null,null,null,1,null,null,null,1,null,null,null,null,null,null,null,null,null,1,null,0,1,0,0,1,0,0]
["MARETI",null,null,null,null,null,null,null,null,null,null,null,null,null,null,null,null,null,null,null,null,null,null,null,2,null,null,null,2,null,null,null,null,null,null,null,null,null,null,2,0,2,2,0,0,0,0]
["NAUTICA ESPOSITO",null,null,null,null,null,null,null,null,null,null,null,null,null,null,null,null,null,null,null,null,null,null,null,1,null,null,null,null,null,null,1,null,null,null,null,null,null,null,1,0,1,1,0,0,0,0]
["OCQUETEAU",null,null,null,null,null,null,null,null,null,null,null,null,null,null,null,null,null,null,null,null,null,null,null,2,null,null,null,null,null,null,2,null,null,null,null,null,null,1,1,0,2,2,0,0,0,0]
["PACIFIC CRAFT",null,null,null,null,null,null,null,null,null,null,null,null,null,null,null,null,null,null,null,null,null,null,null,2,null,null,null,null,null,2,null,null,null,null,null,null,null,2,null,0,2,2,0,0,0,0]
["PLASTIMO",null,null,null,null,null,null,null,null,null,null,null,null,null,null,null,null,null,null,null,null,null,null,null,1,null,1,null,null,null,null,null,null,null,null,null,null,null,1,null,1,0,0,0,1,0,0]
["POST CONSTRUCCION",null,null,null,null,null,null,null,null,null,null,null,null,null,null,null,null,null,null,null,null,null,null,null,1,null,null,null,null,null,null,null,null,1,null,null,null,null,null,1,0,1,1,0,0,0,0]
["PRONAUTICA",null,null,null,null,null,null,null,null,null,null,null,null,null,null,null,null,null,null,null,null,null,null,null,1,null,null,null,null,null,null,null,1,null,null,null,null,null,null,1,1,0,1,0,0,0,0]
["RIO IBERICA",null,null,null,null,null,null,null,null,null,null,null,null,null,null,null,null,null,null,null,null,null,null,null,1,null,null,null,null,null,null,1,null,null,null,null,null,null,1,null,0,1,1,0,0,0,0]
["SABOR",null,null,null,null,null,null,null,null,null,null,null,null,null,null,null,null,null,null,null,null,null,null,null,2,null,null,null,null,1,1,null,null,null,null,null,null,null,1,1,0,2,2,0,0,0,0]
["SELVA",null,null,null,null,null,null,null,null,null,null,null,null,null,null,null,null,null,null,null,null,null,null,null,1,null,null,null,null,null,1,null,null,null,null,null,null,null,null,1,0,1,1,0,0,0,0]
["SENTINEL",null,null,null,null,null,null,null,null,null,null,null,null,null,null,null,null,null,null,null,null,null,null,null,3,null,null,null,1,null,null,2,null,null,null,null,null,null,null,3,0,3,3,0,0,0,0]
["SESSA",null,null,null,null,null,null,null,null,null,null,null,null,null,null,null,null,null,null,null,null,null,null,null,1,null,null,null,null,null,null,null,1,null,null,null,null,null,null,1,0,1,1,0,0,0,0]
["STARFISHER",null,null,null,null,null,null,null,null,null,null,null,null,null,null,null,null,null,null,null,null,null,null,null,1,null,null,null,null,null,1,null,null,null,null,null,null,null,1,null,0,1,1,0,0,0,0]
["TARGA",null,null,null,null,null,null,null,null,null,null,null,null,null,null,null,null,null,null,null,null,null,null,null,1,null,null,null,null,null,null,null,1,null,null,null,null,null,1,null,0,1,1,0,0,0,0]
["TRACKER MARINE",null,null,null,null,null,null,null,null,null,null,null,null,null,null,null,null,null,null,null,null,null,null,null,1,null,null,null,null,null,1,null,null,null,null,null,null,null,null,1,0,1,1,0,0,0,0]
["TWISTER BOATS",null,null,null,null,null,null,null,null,null,null,null,null,null,null,null,null,null,null,null,null,null,null,null,3,null,null,null,1,null,2,null,null,null,null,null,null,null,3,null,0,3,0,0,3,0,0]
["VETUS",null,null,null,null,null,null,null,null,null,null,null,null,null,null,null,null,null,null,null,null,null,null,null,1,1,null,null,null,null,null,null,null,null,null,null,null,null,null,1,0,1,0,0,1,0,0]
["VIAMARE",null,null,null,null,null,null,null,null,null,null,null,null,null,null,null,null,null,null,null,null,null,null,null,1,null,1,null,null,null,null,null,null,null,null,null,null,null,1,null,0,1,0,0,1,0,0]
["VORAZ",null,null,null,null,null,null,null,null,null,null,null,null,null,null,null,null,null,null,null,null,null,null,null,1,null,null,null,null,1,null,null,null,null,null,null,null,null,1,null,1,0,1,0,0,0,0]
["WALKER BAY",null,null,null,null,null,null,null,null,null,null,null,null,null,null,null,null,null,null,null,null,null,null,null,1,1,null,null,null,null,null,null,null,null,null,null,null,null,1,null,0,1,1,0,0,0,0]
["WAUQUIEZ",null,null,null,null,null,null,null,null,null,null,null,null,null,null,null,null,null,null,null,null,null,null,null,1,null,null,null,null,null,null,null,1,null,null,null,null,null,1,null,0,1,0,0,0,0,1]
["WHALY",null,null,null,null,null,null,null,null,null,null,null,null,null,null,null,null,null,null,null,null,null,null,null,3,null,1,null,1,1,null,null,null,null,null,null,null,null,2,1,1,2,3,0,0,0,0]
["WINDY",null,null,null,null,null,null,null,null,null,null,null,null,null,null,null,null,null,null,null,null,null,null,null,2,null,null,null,null,null,null,1,null,1,null,null,null,null,1,1,0,2,2,0,0,0,0]
["YAM",null,null,null,null,null,null,null,null,null,null,null,null,null,null,null,null,null,null,null,null,null,null,null,1,null,null,null,null,null,1,null,null,null,null,null,null,null,null,1,0,1,0,1,0,0,0]
["ZEBEC",null,null,null,null,null,null,null,null,null,null,null,null,null,null,null,null,null,null,null,null,null,null,null,1,null,1,null,null,null,null,null,null,null,null,null,null,null,1,null,0,1,0,1,0,0,0]

{"sheet":"Hoja6","index":5,"n_rows":282,"n_cols":48,"rows_kept":282,"cut":false,"hidden":true,"merged":[]}
["CAPITANIA","ASTILLERO","Numero Total","<03","<03,5","<04","<04,5","<05","<06","<08","<12","<15","<20","<24",">=24","MOTOS","Misma Provincia","Diferente Provincia","Lista 6","Lista 7","RIGIDO","SEMIRIGIDO","NEUMATICO","Sin Datos","VELA","Total ANT","03 ANT","035 ANT","04 ANT","045 ANT","05 ANT","06 ANT","08 ANT","12 ANT","15 ANT","20 ANT","24 ANT",">24 ANT","Motos ANT","Misma ANT","Dif ANT","6 ANT","7 ANT","Rig ANT","Semi ANT","neu ANT","sd ANT","Vela ANT"]
["A CORUÑA","ACHA",1,null,null,null,null,null,null,null,1,null,null,null,null,null,null,1,1,0,1,0,0,0,0]
["A CORUÑA","BAVARIA",1,null,null,null,null,null,null,null,1,null,null,null,null,null,null,1,1,0,1,0,0,0,0]
["A CORUÑA","CEREIXO",1,null,null,null,null,null,1,null,null,null,null,null,null,null,1,null,0,1,1,0,0,0,0]
["A CORUÑA","CHAPARRAL",1,null,null,null,null,null,null,1,null,null,null,null,null,null,null,1,0,1,1,0,0,0,0]
["A CORUÑA","GROSTAR",1,null,null,null,null,null,null,1,null,null,null,null,null,null,null,1,0,1,1,0,0,0,0]
["A CORUÑA","JEANNEAU",1,null,null,null,null,null,null,1,null,null,null,null,null,null,null,1,0,1,1,0,0,0,0]
["A CORUÑA","LAGOON",1,null,null,null,null,null,null,null,1,null,null,null,null,null,null,1,1,0,1,0,0,0,0]
["A CORUÑA","NAUTITECH",1,null,null,null,null,null,null,null,1,null,null,null,null,null,null,1,0,1,0,0,0,0,1]
["A CORUÑA","SIN DATOS",1,null,null,null,null,null,null,null,1,null,null,null,null,null,null,1,0,1,0,0,0,0,1]
["A CORUÑA","YAMAHA",1,null,null,null,null,null,null,null,null,null,null,null,null,1,1,null,0,1,0,0,0,0,0]
["A CORUÑA","BAYLINER",null,null,null,null,null,null,null,null,null,null,null,null,null,null,null,null,null,null,null,null,null,null,null,1,null,null,null,null,null,1,null,null,null,null,null,null,null,null,1,0,1,1,0,0,0,0]
["A CORUÑA","LEMA",null,null,null,null,null,null,null,null,null,null,null,null,null,null,null,null,null,null,null,null,null,null,null,1,null,null,null,null,null,1,null,null,null,null,null,null,null,null,1,0,1,1,0,0,0,0]
["A CORUÑA","NARWHAL",null,null,null,null,null,null,null,null,null,null,null,null,null,null,null,null,null,null,null,null,null,null,null,1,null,null,null,null,null,1,null,null,null,null,null,null,null,1,null,0,1,0,1,0,0,0]
["A CORUÑA","QUICKSILVER",null,null,null,null,null,null,null,null,null,null,null,null,null,null,null,null,null,null,null,null,null,null,null,2,null,null,null,null,2,null,null,null,null,null,null,null,null,null,2,0,2,2,0,0,0,0]
["A CORUÑA","SELVA",null,null,null,null,null,null,null,null,null,null,null,null,null,null,null,null,null,null,null,null,null,null,null,1,null,null,null,null,null,1,null,null,null,null,null,null,null,null,1,0,1,1,0,0,0,0]
["A CORUÑA","WAUQUIEZ",null,null,null,null,null,null,null,null,null,null,null,null,null,null,null,null,null,null,null,null,null,null,null,1,null,null,null,null,null,null,null,1,null,null,null,null,null,1,null,0,1,0,0,0,0,1]
["ALGECIRAS","AZIMUT",1,null,null,null,null,null,null,null,null,null,1,null,null,null,null,1,0,1,1,0,0,0,0]
["ALGECIRAS","BOMBARDIER",1,null,null,null,null,null,null,null,null,null,null,null,null,1,null,1,0,1,0,0,0,0,0]
["ALGECIRAS","INVICTUS",1,null,null,null,null,null,null,1,null,null,null,null,null,null,null,1,1,0,1,0,0,0,0]
["ALGECIRAS","JEANNEAU",1,null,null,null,null,null,null,1,null,null,null,null,null,null,null,1,0,1,1,0,0,0,0]
["ALGECIRAS","LODESTAR",1,null,null,null,null,1,null,null,null,null,null,null,null,null,null,1,0,1,0,1,0,0,0]
["ALGECIRAS","MONTEREY BOATS",1,null,null,null,null,null,null,1,null,null,null,null,null,null,null,1,0,1,1,0,0,0,0]
["ALGECIRAS","OZEAM",1,null,1,null,null,null,null,null,null,null,null,null,null,null,null,1,0,1,0,0,1,0,0]
["ALGECIRAS","RIBERA",1,null,null,null,null,null,null,1,null,null,null,null,null,null,1,null,0,1,0,1,0,0,0]
["ALGECIRAS","SEA RIB´S",1,null,null,null,null,null,1,null,null,null,null,null,null,null,null,1,0,1,0,1,0,0,0]
["ALGECIRAS","YAMAHA",1,null,null,null,null,null,null,null,null,null,null,null,null,1,null,1,0,1,0,0,0,0,0]
["ALGECIRAS","CONSTRUCCIONES DE BARCOS DEL SUR",null,null,null,null,null,null,null,null,null,null,null,null,null,null,null,null,null,null,null,null,null,null,null,1,null,null,null,null,null,null,1,null,null,null,null,null,null,1,null,0,1,0,1,0,0,0]
["ALGECIRAS","DUBHE",null,null,null,null,null,null,null,null,null,null,null,null,null,null,null,null,null,null,null,null,null,null,null,1,null,null,null,null,null,null,1,null,null,null,null,null,null,1,null,0,1,1,0,0,0,0]
["ALGECIRAS","LIAN YA",null,null,null,null,null,null,null,null,null,null,null,null,null,null,null,null,null,null,null,null,null,null,null,1,null,null,null,1,null,null,null,null,null,null,null,null,null,1,null,0,1,0,0,1,0,0]
["ALGECIRAS","NEUVISA",null,null,null,null,null,null,null,null,null,null,null,null,null,null,null,null,null,null,null,null,null,null,null,1,null,null,1,null,null,null,null,null,null,null,null,null,null,null,1,0,1,0,1,0,0,0]
["ALGECIRAS","OCEAN BAY BOATS",null,null,null,null,null,null,null,null,null,null,null,null,null,null,null,null,null,null,null,null,null,null,null,1,null,null,1,null,null,null,null,null,null,null,null,null,null,null,1,0,1,0,0,1,0,0]
["ALGECIRAS","WHALY",null,null,null,null,null,null,null,null,null,null,null,null,null,null,null,null,null,null,null,null,null,null,null,1,null,null,null,null,1,null,null,null,null,null,null,null,null,null,1,0,1,1,0,0,0,0]
["ALGECIRAS","WINDY",null,null,null,null,null,null,null,null,null,null,null,null,null,null,null,null,null,null,null,null,null,null,null,1,null,null,null,null,null,null,null,null,1,null,null,null,null,null,1,0,1,1,0,0,0,0]
["ALICANTE","BOMBARDIER",5,null,null,null,null,null,null,null,null,null,null,null,null,5,3,2,3,2,0,0,0,0,0,3,null,null,null,null,null,null,null,null,null,null,null,null,3,2,1,0,3,0,0,0,0,0]
["ALICANTE","ALLEGRA",1,null,null,null,null,null,1,null,null,null,null,null,null,null,1,null,1,0,1,0,0,0,0]
["ALICANTE","BAYLINER",1,null,null,null,null,null,1,null,null,null,null,null,null,null,null,1,0,1,1,0,0,0,0,1,null,null,null,null,null,1,null,null,null,null,null,null,null,null,1,0,1,1,0,0,0,0]
["ALICANTE","BENETEAU",1,null,null,null,null,null,null,1,null,null,null,null,null,null,1,null,0,1,0,0,0,0,1]
["ALICANTE","BWA",1,null,null,null,null,null,1,null,null,null,null,null,null,null,null,1,0,1,0,1,0,0,0,1,null,null,null,null,null,1,null,null,null,null,null,null,null,null,1,0,1,0,1,0,0,0]
["ALICANTE","GENESIS",1,1,null,null,null,null,null,null,null,null,null,null,null,null,1,null,0,1,0,1,0,0,0]
["ALICANTE","OKI BOATS",1,null,null,null,null,null,1,null,null,null,null,null,null,null,null,1,0,1,1,0,0,0,0,1,null,null,null,null,null,1,null,null,null,null,null,null,null,1,null,0,1,1,0,0,0,0]
["ALICANTE","QUICKSILVER",1,null,null,null,null,null,1,null,null,null,null,null,null,null,null,1,0,1,1,0,0,0,0,2,null,null,null,null,1,1,null,null,null,null,null,null,null,1,1,0,2,2,0,0,0,0]
["ALICANTE","TECNOFIBER",1,null,null,null,null,null,null,1,null,null,null,null,null,null,1,null,1,0,1,0,0,0,0]
["ALICANTE","VALIANT",1,null,null,null,null,null,1,null,null,null,null,null,null,null,null,1,0,1,0,1,0,0,0]
["ALICANTE","AUXINAVY",null,null,null,null,null,null,null,null,null,null,null,null,null,null,null,null,null,null,null,null,null,null,null,1,null,null,null,null,null,1,null,null,null,null,null,null,null,null,1,0,1,1,0,0,0,0]
["ALICANTE","BIANCA",null,null,null,null,null,null,null,null,null,null,null,null,null,null,null,null,null,null,null,null,null,null,null,1,null,null,null,null,null,null,null,1,null,null,null,null,null,1,null,0,1,0,0,0,0,1]
["ALICANTE","CHARACTER BOATS",null,null,null,null,null,null,null,null,null,null,null,null,null,null,null,null,null,null,null,null,null,null,null,1,null,null,null,null,null,1,null,null,null,null,null,null,null,null,1,0,1,0,0,0,0,1]
["ALICANTE","ESTABLE",null,null,null,null,null,null,null,null,null,null,null,null,null,null,null,null,null,null,null,null,null,null,null,1,null,null,null,1,null,null,null,null,null,null,null,null,null,1,null,0,1,1,0,0,0,0]
["ALICANTE","FREZETWELT GARHERR",null,null,null,null,null,null,null,null,null,null,null,null,null,null,null,null,null,null,null,null,null,null,null,1,null,null,null,null,null,1,null,null,null,null,null,null,null,1,null,0,1,0,0,1,0,0]
["ALICANTE","JEANNEAU",null,null,null,null,null,null,null,null,null,null,null,null,null,null,null,null,null,null,null,null,null,null,null,3,null,null,null,null,null,null,3,null,null,null,null,null,null,null,3,0,3,3,0,0,0,0]
["ALICANTE","LATREX",null,null,null,null,null,null,null,null,null,null,null,null,null,null,null,null,null,null,null,null,null,null,null,1,null,1,null,null,null,null,null,null,null,null,null,null,null,1,null,0,1,1,0,0,0,0]
["ALICANTE","MONTEREY BOATS",null,null,null,null,null,null,null,null,null,null,null,null,null,null,null,null,null,null,null,null,null,null,null,1,null,null,null,null,null,1,null,null,null,null,null,null,null,1,null,0,1,1,0,0,0,0]
["ALICANTE","SEA RAY",null,null,null,null,null,null,null,null,null,null,null,null,null,null,null,null,null,null,null,null,null,null,null,1,null,null,null,null,null,1,null,null,null,null,null,null,null,1,null,0,1,1,0,0,0,0]
["ALICANTE","VETUS",null,null,null,null,null,null,null,null,null,null,null,null,null,null,null,null,null,null,null,null,null,null,null,1,1,null,null,null,null,null,null,null,null,null,null,null,null,null,1,0,1,0,0,1,0,0]
["ALICANTE","VIAMARE",null,null,null,null,null,null,null,null,null,null,null,null,null,null,null,null,null,null,null,null,null,null,null,1,null,1,null,null,null,null,null,null,null,null,null,null,null,1,null,0,1,0,0,1,0,0]
["ALICANTE","YAMAHA",null,null,null,null,null,null,null,null,null,null,null,null,null,null,null,null,null,null,null,null,null,null,null,2,null,null,null,null,null,null,null,null,null,null,null,null,2,2,null,0,2,0,0,0,0,0]
["ALICANTE","ZEBEC",null,null,null,null,null,null,null,null,null,null,null,null,null,null,null,null,null,null,null,null,null,null,null,1,null,1,null,null,null,null,null,null,null,null,null,null,null,1,null,0,1,0,1,0,0,0]
["ALMERIA","BOMBARD",2,null,null,null,null,null,2,null,null,null,null,null,null,null,1,1,1,1,0,2,0,0,0]
["ALMERIA","BOMBARDIER",2,null,null,null,null,null,null,null,null,null,null,null,null,2,2,null,0,2,0,0,0,0,0]
["ALMERIA","COBRA INFLABLE",2,1,null,null,null,null,1,null,null,null,null,null,null,null,1,1,0,2,0,1,1,0,0]
["ALMERIA","QUICKSILVER",2,1,null,null,null,1,null,null,null,null,null,null,null,null,1,1,0,2,1,0,1,0,0,3,null,null,null,null,null,null,3,null,null,null,null,null,null,null,3,0,3,3,0,0,0,0]
["ALMERIA","JAGO",1,null,1,null,null,null,null,null,null,null,null,null,null,null,1,null,0,1,0,0,1,0,0]
["ALMERIA","LEMA",1,null,null,null,null,null,null,1,null,null,null,null,null,null,null,1,0,1,1,0,0,0,0]
["ALMERIA","OZEAM",1,1,null,null,null,null,null,null,null,null,null,null,null,null,null,1,0,1,0,0,1,0,0]
["ALMERIA","AQUAPARX",null,null,null,null,null,null,null,null,null,null,null,null,null,null,null,null,null,null,null,null,null,null,null,1,null,1,null,null,null,null,null,null,null,null,null,null,null,1,null,0,1,0,0,1,0,0]
["ALMERIA","ASTILLEROS HAZ",null,null,null,null,null,null,null,null,null,null,null,null,null,null,null,null,null,null,null,null,null,null,null,1,null,null,null,null,1,null,null,null,null,null,null,null,null,null,1,0,1,1,0,0,0,0]
["ALMERIA","BAYLINER",null,null,null,null,null,null,null,null,null,null,null,null,null,null,null,null,null,null,null,null,null,null,null,1,null,null,null,null,null,null,1,null,null,null,null,null,null,null,1,0,1,1,0,0,0,0]
["ALMERIA","OCEAN BAY BOATS",null,null,null,null,null,null,null,null,null,null,null,null,null,null,null,null,null,null,null,null,null,null,null,1,null,null,1,null,null,null,null,null,null,null,null,null,null,1,null,0,1,0,0,1,0,0]
["ALMERIA","YAMAHA",null,null,null,null,null,null,null,null,null,null,null,null,null,null,null,null,null,null,null,null,null,null,null,1,null,null,null,null,null,null,null,null,null,null,null,null,1,1,null,0,1,0,0,0,0,0]
["AVILES","JEMAR",null,null,null,null,null,null,null,null,null,null,null,null,null,null,null,null,null,null,null,null,null,null,null,1,null,null,null,null,null,1,null,null,null,null,null,null,null,1,null,0,1,0,0,0,1,0]
["BARCELONA","QUICKSILVER",4,null,null,1,null,null,2,1,null,null,null,null,null,null,4,null,0,4,3,0,1,0,0]
["BARCELONA","BENETEAU",3,null,null,null,null,null,null,2,null,1,null,null,null,null,null,3,0,3,2,0,0,0,1]
["BARCELONA","B2 MARINE",1,null,null,null,null,null,1,null,null,null,null,null,null,null,1,null,0,1,1,0,0,0,0]
["BARCELONA","BAVARIA",1,null,null,null,null,null,null,null,1,null,null,null,null,null,1,null,0,1,0,0,0,0,1,1,null,null,null,null,null,null,null,1,null,null,null,null,null,1,null,0,1,1,0,0,0,0]
["BARCELONA","BOMBARDIER",1,null,null,null,null,null,null,null,null,null,null,null,null,1,null,1,0,1,0,0,0,0,0]
["BARCELONA","BOSTON WHALER",1,null,null,null,null,null,null,null,1,null,null,null,null,null,1,null,0,1,1,0,0,0,0]
["BARCELONA","CRANCHI",1,null,null,null,null,null,null,null,1,null,null,null,null,null,1,null,0,1,1,0,0,0,0,1,null,null,null,null,null,null,null,1,null,null,null,null,null,null,1,0,1,1,0,0,0,0]
["BARCELONA","GIRBAU",1,null,null,null,null,null,null,1,null,null,null,null,null,null,null,1,0,1,1,0,0,0,0]
["BARCELONA","JEANNEAU",1,null,null,null,null,null,null,null,1,null,null,null,null,null,null,1,0,1,1,0,0,0,0,1,null,null,null,null,null,null,null,null,null,1,null,null,null,null,1,0,1,1,0,0,0,0]
["BARCELONA","OBE & CARMEN",1,null,null,null,null,null,null,1,null,null,null,null,null,null,null,1,0,1,1,0,0,0,0]
["BARCELONA","ORCA",1,null,null,null,null,null,null,1,null,null,null,null,null,null,1,null,0,1,1,0,0,0,0]
["BARCELONA","PROTENDER",1,null,1,null,null,null,null,null,null,null,null,null,null,null,1,null,0,1,0,0,1,0,0]
["BARCELONA","RODMAN",1,null,null,null,null,null,null,null,1,null,null,null,null,null,1,null,0,1,1,0,0,0,0]
["BARCELONA","SACS",1,null,null,null,null,null,null,1,null,null,null,null,null,null,null,1,0,1,0,1,0,0,0]
["BARCELONA","SEA PRO",1,null,null,null,null,null,null,1,null,null,null,null,null,null,null,1,0,1,1,0,0,0,0]
["BARCELONA","AVON",null,null,null,null,null,null,null,null,null,null,null,null,null,null,null,null,null,null,null,null,null,null,null,1,null,1,null,null,null,null,null,null,null,null,null,null,null,null,1,0,1,0,1,0,0,0]
["BARCELONA","BAYLINER",null,null,null,null,null,null,null,null,null,null,null,null,null,null,null,null,null,null,null,null,null,null,null,1,null,null,null,null,1,null,null,null,null,null,null,null,null,1,null,0,1,1,0,0,0,0]
["BARCELONA","CANTIERI DEL PARDO",null,null,null,null,null,null,null,null,null,null,null,null,null,null,null,null,null,null,null,null,null,null,null,1,null,null,null,null,null,null,null,null,1,null,null,null,null,null,1,0,1,1,0,0,0,0]
["BARCELONA","ELAN MARINE",null,null,null,null,null,null,null,null,null,null,null,null,null,null,null,null,null,null,null,null,null,null,null,1,null,null,null,null,null,null,null,1,null,null,null,null,null,1,null,0,1,0,0,0,0,1]
["BARCELONA","ELIMAT",null,null,null,null,null,null,null,null,null,null,null,null,null,null,null,null,null,null,null,null,null,null,null,1,null,null,null,null,null,1,null,null,null,null,null,null,null,null,1,1,0,1,0,0,0,0]
["BARCELONA","FISHING",null,null,null,null,null,null,null,null,null,null,null,null,null,null,null,null,null,null,null,null,null,null,null,1,null,null,null,null,null,null,1,null,null,null,null,null,null,1,null,1,0,1,0,0,0,0]
["BARCELONA","NAUTICA ESPOSITO",null,null,null,null,null,null,null,null,null,null,null,null,null,null,null,null,null,null,null,null,null,null,null,1,null,null,null,null,null,null,1,null,null,null,null,null,null,null,1,0,1,1,0,0,0,0]
["BARCELONA","TARGA",null,null,null,null,null,null,null,null,null,null,null,null,null,null,null,null,null,null,null,null,null,null,null,1,null,null,null,null,null,null,null,1,null,null,null,null,null,1,null,0,1,1,0,0,0,0]
["BARCELONA","TWISTER BOATS",null,null,null,null,null,null,null,null,null,null,null,null,null,null,null,null,null,null,null,null,null,null,null,3,null,null,null,1,null,2,null,null,null,null,null,null,null,3,null,0,3,0,0,3,0,0]
["BARCELONA","YAMAHA",null,null,null,null,null,null,null,null,null,null,null,null,null,null,null,null,null,null,null,null,null,null,null,1,null,null,null,null,null,null,null,null,null,null,null,null,1,null,1,1,0,0,0,0,0,0]
["BILBAO","BOMBARDIER",4,null,null,null,null,null,null,null,null,null,null,null,null,4,1,3,1,3,0,0,0,0,0,3,null,null,null,null,null,null,null,null,null,null,null,null,3,null,3,0,3,0,0,0,0,0]
["BILBAO","JEANNEAU",2,null,null,null,null,null,null,1,1,null,null,null,null,null,null,2,0,2,1,0,0,0,1,1,null,null,null,null,null,null,null,null,1,null,null,null,null,null,1,0,1,1,0,0,0,0]
["BILBAO","ASTILLEROS HAZ",1,null,null,null,null,null,1,null,null,null,null,null,null,null,null,1,0,1,1,0,0,0,0]
["BILBAO","HALLBERG RASSY",1,null,null,null,null,null,null,null,1,null,null,null,null,null,1,null,0,1,0,0,0,0,1]
["BILBAO","HONDA HONWAVE",1,null,1,null,null,null,null,null,null,null,null,null,null,null,1,null,0,1,0,0,1,0,0]
["BILBAO","J BOATS",1,null,null,null,null,null,null,null,1,null,null,null,null,null,1,null,1,0,0,0,0,0,1]
["BILBAO","JACKSON KAYAK",1,null,null,null,null,1,null,null,null,null,null,null,null,null,1,null,0,1,1,0,0,0,0]
["BILBAO","SEVIPOL",1,null,null,null,null,null,null,null,1,null,null,null,null,null,null,1,0,1,0,0,0,0,1]
["BILBAO","WILLIAMS MARINE",1,null,1,null,null,null,null,null,null,null,null,null,null,null,null,1,0,1,0,1,0,0,0]
["BILBAO","ZODIAC",1,null,1,null,null,null,null,null,null,null,null,null,null,null,null,1,0,1,0,1,0,0,0,1,null,null,null,null,null,1,null,null,null,null,null,null,null,null,1,0,1,0,1,0,0,0]
["BILBAO","BENETEAU",null,null,null,null,null,null,null,null,null,null,null,null,null,null,null,null,null,null,null,null,null,null,null,1,null,null,null,null,null,null,null,null,1,null,null,null,null,null,1,0,1,0,0,0,0,1]
["BILBAO","KAWASAKI",null,null,null,null,null,null,null,null,null,null,null,null,null,null,null,null,null,null,null,null,null,null,null,1,null,null,null,null,null,null,null,null,null,null,null,null,1,null,1,0,1,0,0,0,0,0]
["BILBAO","PACIFIC CRAFT",null,null,null,null,null,null,null,null,null,null,null,null,null,null,null,null,null,null,null,null,null,null,null,1,null,null,null,null,null,1,null,null,null,null,null,null,null,1,null,0,1,1,0,0,0,0]
["BILBAO","POST CONSTRUCCION",null,null,null,null,null,null,null,null,null,null,null,null,null,null,null,null,null,null,null,null,null,null,null,1,null,null,null,null,null,null,null,null,1,null,null,null,null,null,1,0,1,1,0,0,0,0]
["BILBAO","QUICKSILVER",null,null,null,null,null,null,null,null,null,null,null,null,null,null,null,null,null,null,null,null,null,null,null,1,null,null,null,null,null,null,1,null,null,null,null,null,null,null,1,0,1,1,0,0,0,0]
["BILBAO","SABOR",null,null,null,null,null,null,null,null,null,null,null,null,null,null,null,null,null,null,null,null,null,null,null,1,null,null,null,null,null,1,null,null,null,null,null,null,null,null,1,0,1,1,0,0,0,0]
["BILBAO","SEA RIB´S",null,null,null,null,null,null,null,null,null,null,null,null,null,null,null,null,null,null,null,null,null,null,null,1,null,null,null,null,null,1,null,null,null,null,null,null,null,1,null,0,1,0,1,0,0,0]
["BILBAO","YAMAHA",null,null,null,null,null,null,null,null,null,null,null,null,null,null,null,null,null,null,null,null,null,null,null,1,null,null,null,null,null,null,null,null,null,null,null,null,1,null,1,0,1,0,0,0,0,0]
["CADIZ","BOMBARDIER",1,null,null,null,null,null,null,null,null,null,null,null,null,1,null,1,0,1,0,0,0,0,0,1,null,null,null,null,null,null,null,null,null,null,null,null,1,1,null,0,1,0,0,0,0,0]
["CADIZ","DAGANZ",1,null,null,null,null,1,null,null,null,null,null,null,null,null,1,null,0,1,1,0,0,0,0]
["CADIZ","MERCURY",1,null,null,null,1,null,null,null,null,null,null,null,null,null,1,null,0,1,0,1,0,0,0,1,null,1,null,null,null,null,null,null,null,null,null,null,null,null,1,0,1,0,0,1,0,0]
["CADIZ","MERY NAUTIC",1,null,null,null,null,null,1,null,null,null,null,null,null,null,1,null,0,1,1,0,0,0,0]
["CADIZ","OBE & CARMEN",1,null,null,null,null,1,null,null,null,null,null,null,null,null,1,null,0,1,1,0,0,0,0]
["CADIZ","SIN DATOS",1,null,null,null,null,null,null,1,null,null,null,null,null,null,null,1,0,1,1,0,0,0,0]
["CADIZ","ARVOR",null,null,null,null,null,null,null,null,null,null,null,null,null,null,null,null,null,null,null,null,null,null,null,1,null,null,null,null,null,1,null,null,null,null,null,null,null,1,null,0,1,1,0,0,0,0]
["CADIZ","COBRA INFLABLE",null,null,null,null,null,null,null,null,null,null,null,null,null,null,null,null,null,null,null,null,null,null,null,1,null,null,null,null,null,1,null,null,null,null,null,null,null,null,1,0,1,0,1,0,0,0]
["CADIZ","FIBER CRAFT",null,null,null,null,null,null,null,null,null,null,null,null,null,null,null,null,null,null,null,null,null,null,null,1,null,null,null,1,null,null,null,null,null,null,null,null,null,1,null,0,1,1,0,0,0,0]
["CADIZ","LODESTAR",null,null,null,null,null,null,null,null,null,null,null,null,null,null,null,null,null,null,null,null,null,null,null,3,null,null,null,3,null,null,null,null,null,null,null,null,null,1,2,0,3,0,3,0,0,0]
["CADIZ","OCQUETEAU",null,null,null,null,null,null,null,null,null,null,null,null,null,null,null,null,null,null,null,null,null,null,null,1,null,null,null,null,null,null,1,null,null,null,null,null,null,1,null,0,1,1,0,0,0,0]
["CADIZ","ORCA",null,null,null,null,null,null,null,null,null,null,null,null,null,null,null,null,null,null,null,null,null,null,null,1,null,null,null,null,null,1,null,null,null,null,null,null,null,1,null,0,1,1,0,0,0,0]
["CADIZ","ZODIAC",null,null,null,null,null,null,null,null,null,null,null,null,null,null,null,null,null,null,null,null,null,null,null,1,1,null,null,null,null,null,null,null,null,null,null,null,null,null,1,0,1,0,0,1,0,0]
["CARTAGENA","BOMBARDIER",7,null,null,null,null,null,null,null,null,null,null,null,null,7,3,4,5,2,0,0,0,0,0,1,null,null,null,null,null,null,null,null,null,null,null,null,1,null,1,0,1,0,0,0,0,0]
["CARTAGENA","OZEAM",2,1,1,null,null,null,null,null,null,null,null,null,null,null,2,null,0,2,0,0,2,0,0,2,null,2,null,null,null,null,null,null,null,null,null,null,null,2,null,0,2,0,0,2,0,0]
["CARTAGENA","DIPOL",1,null,null,null,null,null,1,null,null,null,null,null,null,null,1,null,0,1,1,0,0,0,0]
["CARTAGENA","JOUET",1,null,null,null,null,null,null,null,1,null,null,null,null,null,1,null,0,1,0,0,0,0,1]
["CARTAGENA","REMUS",1,null,null,null,null,null,1,null,null,null,null,null,null,null,null,1,0,1,1,0,0,0,0]
["CARTAGENA","SEA DOO",1,null,null,null,null,1,null,null,null,null,null,null,null,null,1,null,0,1,1,0,0,0,0]
["CARTAGENA","ZODIAC",1,null,null,null,1,null,null,null,null,null,null,null,null,null,1,null,0,1,0,1,0,0,0,1,null,null,1,null,null,null,null,null,null,null,null,null,null,1,null,0,1,0,1,0,0,0]
["CARTAGENA","BENETEAU",null,null,null,null,null,null,null,null,null,null,null,null,null,null,null,null,null,null,null,null,null,null,null,1,null,null,null,null,null,null,1,null,null,null,null,null,null,1,null,0,1,1,0,0,0,0]
["CARTAGENA","MARETI",null,null,null,null,null,null,null,null,null,null,null,null,null,null,null,null,null,null,null,null,null,null,null,2,null,null,null,2,null,null,null,null,null,null,null,null,null,null,2,0,2,2,0,0,0,0]
["CARTAGENA","OCEAN BAY BOATS",null,null,null,null,null,null,null,null,null,null,null,null,null,null,null,null,null,null,null,null,null,null,null,2,null,null,2,null,null,null,null,null,null,null,null,null,null,2,null,0,2,0,0,2,0,0]
["CARTAGENA","WALKER BAY",null,null,null,null,null,null,null,null,null,null,null,null,null,null,null,null,null,null,null,null,null,null,null,1,1,null,null,null,null,null,null,null,null,null,null,null,null,1,null,0,1,1,0,0,0,0]
["CASTELLON","BOMBARDIER",4,null,null,null,null,null,null,null,null,null,null,null,null,4,1,3,1,3,0,0,0,0,0]
["CASTELLON","JEANNEAU",2,null,null,null,null,null,null,2,null,null,null,null,null,null,null,2,0,2,2,0,0,0,0]
["CASTELLON","DIPOL",1,null,null,null,1,null,null,null,null,null,null,null,null,null,1,null,0,1,1,0,0,0,0]
["CASTELLON","EOLO",1,null,null,null,null,null,1,null,null,null,null,null,null,null,null,1,0,1,1,0,0,0,0]
["CASTELLON","J BOATS",1,null,null,null,null,null,null,null,1,null,null,null,null,null,null,1,0,1,0,0,0,0,1]
["CASTELLON","KYBIN",1,null,1,null,null,null,null,null,null,null,null,null,null,null,null,1,0,1,0,0,1,0,0]
["CASTELLON","PROTENDER",1,1,null,null,null,null,null,null,null,null,null,null,null,null,1,null,0,1,0,0,1,0,0]
["CASTELLON","BENETEAU",null,null,null,null,null,null,null,null,null,null,null,null,null,null,null,null,null,null,null,null,null,null,null,1,null,null,null,null,null,null,1,null,null,null,null,null,null,null,1,0,1,1,0,0,0,0]
["GIJON","FOUR WINNS",1,null,null,null,null,null,1,null,null,null,null,null,null,null,null,1,0,1,1,0,0,0,0]
["GIJON","QUICKSILVER",null,null,null,null,null,null,null,null,null,null,null,null,null,null,null,null,null,null,null,null,null,null,null,1,null,null,null,null,null,1,null,null,null,null,null,null,null,null,1,0,1,1,0,0,0,0]
["GIJON","SENTINEL",null,null,null,null,null,null,null,null,null,null,null,null,null,null,null,null,null,null,null,null,null,null,null,2,null,null,null,null,null,null,2,null,null,null,null,null,null,null,2,0,2,2,0,0,0,0]
["GIJON","ZODIAC",null,null,null,null,null,null,null,null,null,null,null,null,null,null,null,null,null,null,null,null,null,null,null,1,null,null,null,1,null,null,null,null,null,null,null,null,null,1,null,0,1,0,1,0,0,0]
["HUELVA","BOMBARDIER",5,null,null,null,null,null,null,null,null,null,null,null,null,5,4,1,0,5,0,0,0,0,0]
["HUELVA","COBRA INFLABLE",3,null,null,3,null,null,null,null,null,null,null,null,null,null,3,null,3,0,0,0,3,0,0]
["HUELVA","OZEAM",1,1,null,null,null,null,null,null,null,null,null,null,null,null,1,null,0,1,0,0,1,0,0]
["HUELVA","SIN DATOS",1,null,null,null,1,null,null,null,null,null,null,null,null,null,1,null,0,1,0,1,0,0,0]
["HUELVA","WHALY",null,null,null,null,null,null,null,null,null,null,null,null,null,null,null,null,null,null,null,null,null,null,null,1,null,1,null,null,null,null,null,null,null,null,null,null,null,1,null,0,1,1,0,0,0,0]
["HUELVA","YAMAHA",null,null,null,null,null,null,null,null,null,null,null,null,null,null,null,null,null,null,null,null,null,null,null,1,null,null,null,null,null,null,null,null,null,null,null,null,1,1,null,0,1,0,0,0,0,0]
["LAS PALMAS","APEX INFLATABLES",2,null,null,2,null,null,null,null,null,null,null,null,null,null,2,null,0,2,0,2,0,0,0]
["LAS PALMAS","HONDA HONWAVE",2,null,null,2,null,null,null,null,null,null,null,null,null,null,2,null,0,2,0,0,2,0,0]
["LAS PALMAS","LOMAC",2,null,null,2,null,null,null,null,null,null,null,null,null,null,2,null,2,0,0,2,0,0,0]
["LAS PALMAS","AMANAY",1,null,null,null,1,null,null,null,null,null,null,null,null,null,1,null,0,1,0,1,0,0,0]
["LAS PALMAS","BAVARIA",1,null,null,null,null,null,null,null,1,null,null,null,null,null,1,null,1,0,1,0,0,0,0]
["LAS PALMAS","SAVER",1,null,null,null,null,null,1,null,null,null,null,null,null,null,1,null,0,1,1,0,0,0,0]
["LAS PALMAS","UNIESSE",1,null,null,null,null,null,null,null,null,1,null,null,null,null,1,null,1,0,1,0,0,0,0]
["LAS PALMAS","ZURITA",1,null,1,null,null,null,null,null,null,null,null,null,null,null,1,null,0,1,0,0,1,0,0]
["LAS PALMAS","FIBER CRAFT",null,null,null,null,null,null,null,null,null,null,null,null,null,null,null,null,null,null,null,null,null,null,null,1,null,null,null,null,1,null,null,null,null,null,null,null,null,1,null,0,1,1,0,0,0,0]
["LAS PALMAS","FISHERPRO",null,null,null,null,null,null,null,null,null,null,null,null,null,null,null,null,null,null,null,null,null,null,null,2,null,2,null,null,null,null,null,null,null,null,null,null,null,2,null,0,2,0,0,2,0,0]
["LAS PALMAS","HYDRO FORCE",null,null,null,null,null,null,null,null,null,null,null,null,null,null,null,null,null,null,null,null,null,null,null,2,null,2,null,null,null,null,null,null,null,null,null,null,null,2,null,0,2,0,0,2,0,0]
["LAS PALMAS","MERCURY",null,null,null,null,null,null,null,null,null,null,null,null,null,null,null,null,null,null,null,null,null,null,null,2,1,null,null,null,1,null,null,null,null,null,null,null,null,2,null,0,2,0,0,2,0,0]
["LAS PALMAS","SIN DATOS",null,null,null,null,null,null,null,null,null,null,null,null,null,null,null,null,null,null,null,null,null,null,null,1,null,null,null,null,null,null,1,null,null,null,null,null,null,1,null,1,0,1,0,0,0,0]
["LUGO","JEANNEAU",1,null,null,null,null,null,1,null,null,null,null,null,null,null,null,1,0,1,1,0,0,0,0]
["LUGO","SENTINEL",null,null,null,null,null,null,null,null,null,null,null,null,null,null,null,null,null,null,null,null,null,null,null,1,null,null,null,1,null,null,null,null,null,null,null,null,null,null,1,0,1,1,0,0,0,0]
["MALAGA","DIPOL",2,null,null,2,null,null,null,null,null,null,null,null,null,null,2,null,2,0,2,0,0,0,0]
["MALAGA","QUICKSILVER",2,null,1,null,null,null,1,null,null,null,null,null,null,null,1,1,0,2,1,0,1,0,0]
["MALAGA","DUROMAR",1,null,1,null,null,null,null,null,null,null,null,null,null,null,1,null,0,1,0,0,1,0,0]
["MALAGA","GRAUVELL",1,null,1,null,null,null,null,null,null,null,null,null,null,null,1,null,0,1,0,0,1,0,0]
["MALAGA","KARNIC",1,null,null,null,null,null,1,null,null,null,null,null,null,null,1,null,0,1,1,0,0,0,0]
["MALAGA","LA NORIA",1,null,1,null,null,null,null,null,null,null,null,null,null,null,1,null,0,1,1,0,0,0,0]
["MALAGA","SEA RAY",1,null,null,null,null,null,null,1,null,null,null,null,null,null,null,1,0,1,1,0,0,0,0,1,null,null,null,null,null,null,null,null,null,1,null,null,null,null,1,0,1,1,0,0,0,0]
["MALAGA","SEA RIB´S",1,null,null,null,1,null,null,null,null,null,null,null,null,null,1,null,1,0,0,1,0,0,0]
["MALAGA","SIN DATOS",1,null,null,null,null,null,1,null,null,null,null,null,null,null,1,null,0,1,1,0,0,0,0]
["MALAGA","TRIMARCHI ANTONINO ANDREA",1,null,null,null,null,null,1,null,null,null,null,null,null,null,1,null,1,0,1,0,0,0,0]
["MALAGA","WRIGHTON",1,null,null,null,null,null,null,null,1,null,null,null,null,null,1,null,0,1,0,0,0,0,1]
["MALAGA","BOMBARDIER",null,null,null,null,null,null,null,null,null,null,null,null,null,null,null,null,null,null,null,null,null,null,null,3,null,null,null,null,null,null,null,null,null,null,null,null,3,3,null,0,3,0,0,0,0,0]
["MALAGA","ZODIAC",null,null,null,null,null,null,null,null,null,null,null,null,null,null,null,null,null,null,null,null,null,null,null,2,null,2,null,null,null,null,null,null,null,null,null,null,null,1,1,0,2,0,1,1,0,0]
["MELILLA","YAMAHA",2,null,null,null,null,null,null,null,null,null,null,null,null,2,2,null,0,2,0,0,0,0,0,1,null,null,null,null,null,null,null,null,null,null,null,null,1,1,null,0,1,0,0,0,0,0]
["MOTRIL","BOMBARDIER",1,null,null,null,null,null,null,null,null,null,null,null,null,1,1,null,0,1,0,0,0,0,0,4,null,null,null,null,null,null,null,null,null,null,null,null,4,3,1,0,4,0,0,0,0,0]
["MOTRIL","HONDA HONWAVE",null,null,null,null,null,null,null,null,null,null,null,null,null,null,null,null,null,null,null,null,null,null,null,1,null,null,1,null,null,null,null,null,null,null,null,null,null,null,1,0,1,0,0,1,0,0]
["MOTRIL","OCEAN BAY BOATS",null,null,null,null,null,null,null,null,null,null,null,null,null,null,null,null,null,null,null,null,null,null,null,1,null,null,1,null,null,null,null,null,null,null,null,null,null,1,null,0,1,0,0,1,0,0]
["PALAMOS","FAETON",1,null,null,null,null,null,null,1,null,null,null,null,null,null,null,1,0,1,1,0,0,0,0]
["PALAMOS","HARMONY",1,null,null,null,null,null,null,null,null,1,null,null,null,null,1,null,1,0,1,0,0,0,0]
["PALAMOS","HONDA HONWAVE",1,1,null,null,null,null,null,null,null,null,null,null,null,null,1,null,0,1,0,0,1,0,0]
["PALAMOS","SUZUMAR",1,1,null,null,null,null,null,null,null,null,null,null,null,null,null,1,0,1,0,0,1,0,0]
["PALAMOS","BENETEAU",null,null,null,null,null,null,null,null,null,null,null,null,null,null,null,null,null,null,null,null,null,null,null,1,null,null,null,null,null,null,1,null,null,null,null,null,null,1,null,1,0,1,0,0,0,0]
["PALAMOS","JEANNEAU",null,null,null,null,null,null,null,null,null,null,null,null,null,null,null,null,null,null,null,null,null,null,null,1,null,null,null,null,null,null,1,null,null,null,null,null,null,null,1,0,1,1,0,0,0,0]
["PALAMOS","OCEAN BAY BOATS",null,null,null,null,null,null,null,null,null,null,null,null,null,null,null,null,null,null,null,null,null,null,null,1,null,null,1,null,null,null,null,null,null,null,null,null,null,1,null,0,1,0,0,1,0,0]
["PALAMOS","QUICKSILVER",null,null,null,null,null,null,null,null,null,null,null,null,null,null,null,null,null,null,null,null,null,null,null,1,null,null,null,null,null,null,1,null,null,null,null,null,null,null,1,0,1,1,0,0,0,0]
["PALAMOS","VORAZ",null,null,null,null,null,null,null,null,null,null,null,null,null,null,null,null,null,null,null,null,null,null,null,1,null,null,null,null,1,null,null,null,null,null,null,null,null,1,null,1,0,1,0,0,0,0]
["PALMA MALLORCA","BOMBARDIER",3,null,null,null,null,null,null,null,null,null,null,null,null,3,3,null,0,3,0,0,0,0,0]
["PALMA MALLORCA","ZODIAC",3,null,null,1,null,null,1,1,null,null,null,null,null,null,null,3,0,3,0,2,1,0,0]
["PALMA MALLORCA","CANTIERI CAPELLI",2,null,null,null,null,null,null,1,1,null,null,null,null,null,2,null,1,1,0,2,0,0,0,1,null,null,null,null,null,null,null,1,null,null,null,null,null,null,1,0,1,0,1,0,0,0]
["PALMA MALLORCA","DUFOUR",1,null,null,null,null,null,null,null,1,null,null,null,null,null,1,null,0,1,0,0,0,0,1]
["PALMA MALLORCA","INVICTUS",1,null,null,null,null,null,1,null,null,null,null,null,null,null,1,null,1,0,1,0,0,0,0]
["PALMA MALLORCA","JEANNEAU",1,null,null,null,null,null,1,null,null,null,null,null,null,null,1,null,0,1,1,0,0,0,0,2,null,null,null,null,null,null,null,1,1,null,null,null,null,2,null,1,1,1,0,0,0,1]
["PALMA MALLORCA","MAXUM",1,null,null,null,null,null,1,null,null,null,null,null,null,null,1,null,0,1,1,0,0,0,0]
["PALMA MALLORCA","OKI BOATS",1,null,null,null,null,null,1,null,null,null,null,null,null,null,1,null,0,1,1,0,0,0,0]
["PALMA MALLORCA","QUICKSILVER",1,null,null,null,null,null,null,1,null,null,null,null,null,null,1,null,0,1,1,0,0,0,0,3,null,null,null,1,1,1,null,null,null,null,null,null,null,3,null,0,3,3,0,0,0,0]
["PALMA MALLORCA","VANGUARD",1,null,null,null,null,null,null,1,null,null,null,null,null,null,1,null,1,0,0,1,0,0,0,1,null,null,null,null,null,1,null,null,null,null,null,null,null,1,null,0,1,0,1,0,0,0]
["PALMA MALLORCA","WILLIAMS MARINE",1,null,1,null,null,null,null,null,null,null,null,null,null,null,1,null,0,1,0,1,0,0,0]
["PALMA MALLORCA","AVON",null,null,null,null,null,null,null,null,null,null,null,null,null,null,null,null,null,null,null,null,null,null,null,1,null,null,null,1,null,null,null,null,null,null,null,null,null,1,null,0,1,0,1,0,0,0]
["PALMA MALLORCA","BAYLINER",null,null,null,null,null,null,null,null,null,null,null,null,null,null,null,null,null,null,null,null,null,null,null,1,null,null,null,null,null,1,null,null,null,null,null,null,null,null,1,0,1,1,0,0,0,0]
["PALMA MALLORCA","BENETEAU",null,null,null,null,null,null,null,null,null,null,null,null,null,null,null,null,null,null,null,null,null,null,null,1,null,null,null,null,null,null,null,null,1,null,null,null,null,1,null,0,1,0,0,0,0,1]
["PALMA MALLORCA","CAPEADOR",null,null,null,null,null,null,null,null,null,null,null,null,null,null,null,null,null,null,null,null,null,null,null,1,null,null,null,null,null,null,1,null,null,null,null,null,null,1,null,0,1,1,0,0,0,0]
["PALMA MALLORCA","CATANA",null,null,null,null,null,null,null,null,null,null,null,null,null,null,null,null,null,null,null,null,null,null,null,1,null,null,null,null,null,null,null,null,null,1,null,null,null,null,1,0,1,0,0,0,0,1]
["PALMA MALLORCA","DIPOL",null,null,null,null,null,null,null,null,null,null,null,null,null,null,null,null,null,null,null,null,null,null,null,1,null,null,null,1,null,null,null,null,null,null,null,null,null,1,null,0,1,1,0,0,0,0]
["PALMA MALLORCA","DUCAUTO",null,null,null,null,null,null,null,null,null,null,null,null,null,null,null,null,null,null,null,null,null,null,null,1,null,null,1,null,null,null,null,null,null,null,null,null,null,null,1,0,1,1,0,0,0,0]
["PALMA MALLORCA","FAIRLINE",null,null,null,null,null,null,null,null,null,null,null,null,null,null,null,null,null,null,null,null,null,null,null,1,null,null,null,null,null,null,null,1,null,null,null,null,null,1,null,0,1,1,0,0,0,0]
["PALMA MALLORCA","FOUR WINNS",null,null,null,null,null,null,null,null,null,null,null,null,null,null,null,null,null,null,null,null,null,null,null,1,null,null,null,null,null,null,1,null,null,null,null,null,null,1,null,0,1,1,0,0,0,0]
["PALMA MALLORCA","OCQUETEAU",null,null,null,null,null,null,null,null,null,null,null,null,null,null,null,null,null,null,null,null,null,null,null,1,null,null,null,null,null,null,1,null,null,null,null,null,null,null,1,0,1,1,0,0,0,0]
["PALMA MALLORCA","PACIFIC CRAFT",null,null,null,null,null,null,null,null,null,null,null,null,null,null,null,null,null,null,null,null,null,null,null,1,null,null,null,null,null,1,null,null,null,null,null,null,null,1,null,0,1,1,0,0,0,0]
["PALMA MALLORCA","STARFISHER",null,null,null,null,null,null,null,null,null,null,null,null,null,null,null,null,null,null,null,null,null,null,null,1,null,null,null,null,null,1,null,null,null,null,null,null,null,1,null,0,1,1,0,0,0,0]
["PALMA MALLORCA","WINDY",null,null,null,null,null,null,null,null,null,null,null,null,null,null,null,null,null,null,null,null,null,null,null,1,null,null,null,null,null,null,1,null,null,null,null,null,null,1,null,0,1,1,0,0,0,0]
["PALMA MALLORCA","YAMAHA",null,null,null,null,null,null,null,null,null,null,null,null,null,null,null,null,null,null,null,null,null,null,null,1,null,null,null,null,null,null,null,null,null,null,null,null,1,1,null,1,0,0,0,0,0,0]
["PASAJES","LOMAC",null,null,null,null,null,null,null,null,null,null,null,null,null,null,null,null,null,null,null,null,null,null,null,1,null,null,1,null,null,null,null,null,null,null,null,null,null,null,1,0,1,0,1,0,0,0]
["SANTA CRUZ DE TENERIFE","DIPOL",3,null,null,null,null,null,3,null,null,null,null,null,null,null,2,1,0,3,3,0,0,0,0]
["SANTA CRUZ DE TENERIFE","BENETEAU",1,null,null,null,null,null,null,1,null,null,null,null,null,null,null,1,0,1,1,0,0,0,0]
["SANTA CRUZ DE TENERIFE","GOLDEN SHIP",1,null,null,null,null,1,null,null,null,null,null,null,null,null,1,null,0,1,0,0,1,0,0]
["SANTA CRUZ DE TENERIFE","JEANNEAU",1,null,null,null,null,null,null,1,null,null,null,null,null,null,1,null,0,1,1,0,0,0,0]
["SANTA CRUZ DE TENERIFE","OZEAM",1,null,1,null,null,null,null,null,null,null,null,null,null,null,1,null,0,1,0,0,1,0,0]
["SANTA CRUZ DE TENERIFE","SIN DATOS",1,null,null,1,null,null,null,null,null,null,null,null,null,null,1,null,0,1,0,0,0,1,0]
["SANTA CRUZ DE TENERIFE","YAMAHA",1,null,null,null,null,null,null,null,null,null,null,null,null,1,null,1,1,0,0,0,0,0,0]
["SANTA CRUZ DE TENERIFE","PRONAUTICA",null,null,null,null,null,null,null,null,null,null,null,null,null,null,null,null,null,null,null,null,null,null,null,1,null,null,null,null,null,null,null,1,null,null,null,null,null,null,1,1,0,1,0,0,0,0]
["SANTA CRUZ DE TENERIFE","WHALY",null,null,null,null,null,null,null,null,null,null,null,null,null,null,null,null,null,null,null,null,null,null,null,1,null,null,null,1,null,null,null,null,null,null,null,null,null,1,null,1,0,1,0,0,0,0]
["SANTANDER","ASTILUX",1,null,null,null,null,null,1,null,null,null,null,null,null,null,1,null,0,1,1,0,0,0,0]
["SANTANDER","BAYLINER",1,null,null,null,null,null,1,null,null,null,null,null,null,null,1,null,0,1,1,0,0,0,0]
["SANTANDER","BENETEAU",1,null,null,null,null,null,null,1,null,null,null,null,null,null,null,1,0,1,1,0,0,0,0]
["SANTANDER","J BOATS",1,null,null,null,null,null,null,null,1,null,null,null,null,null,null,1,0,1,0,0,0,0,1]
["SANTANDER","JEANNEAU",1,null,null,null,null,null,null,1,null,null,null,null,null,null,1,null,0,1,1,0,0,0,0]
["SANTANDER","NEUVISA",1,null,null,null,null,1,null,null,null,null,null,null,null,null,1,null,0,1,0,1,0,0,0]
["SANTANDER","SIN DATOS",1,null,null,null,1,null,null,null,null,null,null,null,null,null,1,null,0,1,1,0,0,0,0]
["SANTANDER","ZODIAC",1,null,1,null,null,null,null,null,null,null,null,null,null,null,1,null,0,1,0,0,1,0,0]
["SANTANDER","DIPOL",null,null,null,null,null,null,null,null,null,null,null,null,null,null,null,null,null,null,null,null,null,null,null,1,null,null,null,null,null,1,null,null,null,null,null,null,null,1,null,0,1,1,0,0,0,0]
["SEVILLA","FIBRAMAR",1,null,null,null,null,null,null,1,null,null,null,null,null,null,1,null,0,1,1,0,0,0,0]
["SEVILLA","JEANNEAU",1,null,null,null,null,null,1,null,null,null,null,null,null,null,null,1,0,1,1,0,0,0,0]
["SEVILLA","KIMPLE",1,null,null,null,null,1,null,null,null,null,null,null,null,null,null,1,0,1,1,0,0,0,0]
["SEVILLA","FIBERPLAST",null,null,null,null,null,null,null,null,null,null,null,null,null,null,null,null,null,null,null,null,null,null,null,1,null,null,null,1,null,null,null,null,null,null,null,null,null,null,1,0,1,1,0,0,0,0]
["SEVILLA","GRAUVELL",null,null,null,null,null,null,null,null,null,null,null,null,null,null,null,null,null,null,null,null,null,null,null,1,null,null,null,1,null,null,null,null,null,null,null,null,null,1,null,0,1,0,0,1,0,0]
["SEVILLA","KYBIN",null,null,null,null,null,null,null,null,null,null,null,null,null,null,null,null,null,null,null,null,null,null,null,1,1,null,null,null,null,null,null,null,null,null,null,null,null,1,null,0,1,0,0,1,0,0]
["SEVILLA","OCEAN BAY BOATS",null,null,null,null,null,null,null,null,null,null,null,null,null,null,null,null,null,null,null,null,null,null,null,1,null,null,1,null,null,null,null,null,null,null,null,null,null,1,null,0,1,0,0,1,0,0]
["SEVILLA","OZEAM",null,null,null,null,null,null,null,null,null,null,null,null,null,null,null,null,null,null,null,null,null,null,null,1,null,1,null,null,null,null,null,null,null,null,null,null,null,1,null,0,1,0,0,1,0,0]
["SEVILLA","PLASTIMO",null,null,null,null,null,null,null,null,null,null,null,null,null,null,null,null,null,null,null,null,null,null,null,1,null,1,null,null,null,null,null,null,null,null,null,null,null,1,null,1,0,0,0,1,0,0]
["SEVILLA","RIBERA",null,null,null,null,null,null,null,null,null,null,null,null,null,null,null,null,null,null,null,null,null,null,null,1,null,null,null,null,null,null,1,null,null,null,null,null,null,null,1,0,1,0,1,0,0,0]
["SEVILLA","SESSA",null,null,null,null,null,null,null,null,null,null,null,null,null,null,null,null,null,null,null,null,null,null,null,1,null,null,null,null,null,null,null,1,null,null,null,null,null,null,1,0,1,1,0,0,0,0]
["SEVILLA","YAM",null,null,null,null,null,null,null,null,null,null,null,null,null,null,null,null,null,null,null,null,null,null,null,1,null,null,null,null,null,1,null,null,null,null,null,null,null,null,1,0,1,0,1,0,0,0]
["TARRAGONA","AZIMUT",1,null,null,null,null,null,null,null,null,1,null,null,null,null,1,null,0,1,1,0,0,0,0]
["TARRAGONA","MARINE",1,null,null,1,null,null,null,null,null,null,null,null,null,null,1,null,0,1,1,0,0,0,0]
["TARRAGONA","MINIJET",1,1,null,null,null,null,null,null,null,null,null,null,null,null,null,1,0,1,0,1,0,0,0]
["TARRAGONA","OCEAN BAY BOATS",1,null,null,1,null,null,null,null,null,null,null,null,null,null,null,1,0,1,0,0,1,0,0]
["TARRAGONA","BENETEAU",null,null,null,null,null,null,null,null,null,null,null,null,null,null,null,null,null,null,null,null,null,null,null,1,null,null,null,null,null,null,null,null,1,null,null,null,null,1,null,0,1,1,0,0,0,0]
["TARRAGONA","QUICKSILVER",null,null,null,null,null,null,null,null,null,null,null,null,null,null,null,null,null,null,null,null,null,null,null,1,null,null,null,null,null,null,1,null,null,null,null,null,null,null,1,0,1,1,0,0,0,0]
["TARRAGONA","RIO IBERICA",null,null,null,null,null,null,null,null,null,null,null,null,null,null,null,null,null,null,null,null,null,null,null,1,null,null,null,null,null,null,1,null,null,null,null,null,null,1,null,0,1,1,0,0,0,0]
["TARRAGONA","TRACKER MARINE",null,null,null,null,null,null,null,null,null,null,null,null,null,null,null,null,null,null,null,null,null,null,null,1,null,null,null,null,null,1,null,null,null,null,null,null,null,null,1,0,1,1,0,0,0,0]
["VALENCIA","BENETEAU",1,null,null,null,null,null,null,null,1,null,null,null,null,null,1,null,0,1,0,0,0,0,1,2,null,null,null,null,null,null,null,1,1,null,null,null,null,1,1,0,2,0,0,0,0,2]
["VALENCIA","DIPOL",1,null,null,null,null,null,1,null,null,null,null,null,null,null,1,null,0,1,1,0,0,0,0]
["VALENCIA","QUICKSILVER",1,null,null,null,null,null,null,1,null,null,null,null,null,null,null,1,0,1,1,0,0,0,0]
["VALENCIA","AQUAPARX",null,null,null,null,null,null,null,null,null,null,null,null,null,null,null,null,null,null,null,null,null,null,null,1,1,null,null,null,null,null,null,null,null,null,null,null,null,1,null,0,1,0,0,1,0,0]
["VALENCIA","CYP",null,null,null,null,null,null,null,null,null,null,null,null,null,null,null,null,null,null,null,null,null,null,null,1,null,null,null,null,null,1,null,null,null,null,null,null,null,1,null,0,1,1,0,0,0,0]
["VALENCIA","SABOR",null,null,null,null,null,null,null,null,null,null,null,null,null,null,null,null,null,null,null,null,null,null,null,1,null,null,null,null,1,null,null,null,null,null,null,null,null,1,null,0,1,1,0,0,0,0]
["VALENCIA","SIN DATOS",null,null,null,null,null,null,null,null,null,null,null,null,null,null,null,null,null,null,null,null,null,null,null,1,null,null,1,null,null,null,null,null,null,null,null,null,null,1,null,0,1,1,0,0,0,0]
["VIGO","AGF",2,null,null,null,null,1,null,1,null,null,null,null,null,null,1,1,0,2,2,0,0,0,0,1,null,null,null,null,null,1,null,null,null,null,null,null,null,null,1,0,1,1,0,0,0,0]
["VIGO","ASTEC",2,null,null,1,null,null,null,1,null,null,null,null,null,null,1,1,0,2,1,1,0,0,0]
["VIGO","QUICKSILVER",2,null,null,null,null,null,null,2,null,null,null,null,null,null,null,2,1,1,2,0,0,0,0,1,null,null,null,null,null,1,null,null,null,null,null,null,null,1,null,0,1,1,0,0,0,0]
["VIGO","YAMAHA",2,null,null,null,null,null,null,null,null,null,null,null,null,2,2,null,1,1,0,0,0,0,0,1,null,null,null,null,null,null,null,null,null,null,null,null,1,null,1,0,1,0,0,0,0,0]
["VIGO","GOLDEN SHIP",1,null,null,null,null,null,1,null,null,null,null,null,null,null,null,1,0,1,0,1,0,0,0]
["VIGO","JEANNEAU",1,null,null,null,null,null,null,null,1,null,null,null,null,null,1,null,0,1,0,0,0,0,1]
["VIGO","NARWHAL",1,null,null,null,null,1,null,null,null,null,null,null,null,null,1,null,0,1,0,1,0,0,0]
["VIGO","PECOSI",1,null,null,null,null,null,1,null,null,null,null,null,null,null,1,null,0,1,1,0,0,0,0]
["VIGO","SEA RIB´S",1,null,null,null,null,null,1,null,null,null,null,null,null,null,1,null,0,1,0,1,0,0,0]
["VIGO","SIN DATOS",1,null,null,null,null,null,null,null,null,1,null,null,null,null,null,1,1,0,0,0,0,0,1,2,null,null,null,null,null,null,null,1,1,null,null,null,null,1,1,0,2,1,0,0,0,1]
["VIGO","VANGUARD",null,null,null,null,null,null,null,null,null,null,null,null,null,null,null,null,null,null,null,null,null,null,null,1,null,null,null,null,null,null,1,null,null,null,null,null,null,1,null,0,1,0,1,0,0,0]
["VILAGARCIA DE AROUSA","ASTIXANO",11,null,null,null,2,2,6,1,null,null,null,null,null,null,2,9,0,11,11,0,0,0,0,10,null,1,7,1,null,1,null,null,null,null,null,null,null,null,10,0,10,10,0,0,0,0]
["VILAGARCIA DE AROUSA","BOMBARDIER",2,null,null,null,null,null,null,null,null,null,null,null,null,2,1,1,0,2,0,0,0,0,0,2,null,null,null,null,null,null,null,null,null,null,null,null,2,2,null,0,2,0,0,0,0,0]
["VILAGARCIA DE AROUSA","DIPOL",1,null,null,null,1,null,null,null,null,null,null,null,null,null,null,1,0,1,1,0,0,0,0]
["VILAGARCIA DE AROUSA","OTERO & LOSADA",1,null,null,null,null,1,null,null,null,null,null,null,null,null,null,1,0,1,1,0,0,0,0]

{"sheet":"Hoja7","index":6,"n_rows":146,"n_cols":47,"rows_kept":146,"cut":false,"hidden":true,"merged":[]}
["ASTILLERO","Numero Total","<03","<03,5","<04","<04,5","<05","<06","<08","<12","<15","<20","<24",">=24","MOTOS","Misma Provincia","Diferente Provincia","Lista 6","Lista 7","RIGIDO","SEMIRIGIDO","NEUMATICO","Sin Datos","VELA","SumaDeTotal ANT","SumaDe03 ANT","SumaDe035 ANT","SumaDe04 ANT","SumaDe045 ANT","SumaDe05 ANT","SumaDe06 ANT","SumaDe08 ANT","SumaDe12 ANT","SumaDe15 ANT","SumaDe20 ANT","SumaDe24 ANT","SumaDe>24 ANT","SumaDeMotos ANT","SumaDeMisma ANT","SumaDeDif ANT","SumaDe6 ANT","SumaDe7 ANT","SumaDeRig ANT","SumaDeSemi ANT","SumaDeneu ANT","SumaDesd ANT","SumaDeVela ANT"]
["BOMBARDIER",36,null,null,null,null,null,null,null,null,null,null,null,null,36,19,17,10,26,0,0,0,0,0,17,null,null,null,null,null,null,null,null,null,null,null,null,17,11,6,0,17,0,0,0,0,0]
["JEANNEAU",13,null,null,null,null,null,3,7,3,null,null,null,null,null,4,9,0,13,11,0,0,0,2,8,null,null,null,null,null,null,4,1,2,1,null,null,null,2,6,1,7,7,0,0,0,1]
["QUICKSILVER",13,1,1,1,null,1,4,5,null,null,null,null,null,null,7,6,1,12,10,0,3,0,0,15,null,null,null,1,4,4,6,null,null,null,null,null,null,5,10,0,15,15,0,0,0,0]
["ASTIXANO",11,null,null,null,2,2,6,1,null,null,null,null,null,null,2,9,0,11,11,0,0,0,0,10,null,1,7,1,null,1,null,null,null,null,null,null,null,null,10,0,10,10,0,0,0,0]
["DIPOL",9,null,null,2,2,null,5,null,null,null,null,null,null,null,7,2,2,7,9,0,0,0,0,2,null,null,null,1,null,1,null,null,null,null,null,null,null,2,null,0,2,2,0,0,0,0]
["BENETEAU",7,null,null,null,null,null,null,5,1,1,null,null,null,null,2,5,0,7,4,0,0,0,3,8,null,null,null,null,null,null,3,1,4,null,null,null,null,5,3,1,7,4,0,0,0,4]
["SIN DATOS",7,null,null,1,2,null,1,1,1,1,null,null,null,null,4,3,1,6,3,1,0,1,2,4,null,null,1,null,null,null,1,1,1,null,null,null,null,3,1,1,3,3,0,0,0,1]
["YAMAHA",7,null,null,null,null,null,null,null,null,null,null,null,null,7,5,2,2,5,0,0,0,0,0,9,null,null,null,null,null,null,null,null,null,null,null,null,9,6,3,2,7,0,0,0,0,0]
["OZEAM",6,3,3,null,null,null,null,null,null,null,null,null,null,null,4,2,0,6,0,0,6,0,0,3,null,3,null,null,null,null,null,null,null,null,null,null,null,3,null,0,3,0,0,3,0,0]
["ZODIAC",6,null,2,1,1,null,1,1,null,null,null,null,null,null,2,4,0,6,0,4,2,0,0,6,1,2,1,1,null,1,null,null,null,null,null,null,null,3,3,0,6,0,4,2,0,0]
["COBRA INFLABLE",5,1,null,3,null,null,1,null,null,null,null,null,null,null,4,1,3,2,0,1,4,0,0,1,null,null,null,null,null,1,null,null,null,null,null,null,null,null,1,0,1,0,1,0,0,0]
["HONDA HONWAVE",4,1,1,2,null,null,null,null,null,null,null,null,null,null,4,null,0,4,0,0,4,0,0,1,null,null,1,null,null,null,null,null,null,null,null,null,null,null,1,0,1,0,0,1,0,0]
["BAVARIA",3,null,null,null,null,null,null,null,3,null,null,null,null,null,2,1,2,1,2,0,0,0,1,1,null,null,null,null,null,null,null,1,null,null,null,null,null,1,null,0,1,1,0,0,0,0]
["J BOATS",3,null,null,null,null,null,null,null,3,null,null,null,null,null,1,2,1,2,0,0,0,0,3]
["SEA RIB´S",3,null,null,null,1,null,2,null,null,null,null,null,null,null,2,1,1,2,0,3,0,0,0,1,null,null,null,null,null,1,null,null,null,null,null,null,null,1,null,0,1,0,1,0,0,0]
["AGF",2,null,null,null,null,1,null,1,null,null,null,null,null,null,1,1,0,2,2,0,0,0,0,1,null,null,null,null,null,1,null,null,null,null,null,null,null,null,1,0,1,1,0,0,0,0]
["APEX INFLATABLES",2,null,null,2,null,null,null,null,null,null,null,null,null,null,2,null,0,2,0,2,0,0,0]
["ASTEC",2,null,null,1,null,null,null,1,null,null,null,null,null,null,1,1,0,2,1,1,0,0,0]
["AZIMUT",2,null,null,null,null,null,null,null,null,1,1,null,null,null,1,1,0,2,2,0,0,0,0]
["BAYLINER",2,null,null,null,null,null,2,null,null,null,null,null,null,null,1,1,0,2,2,0,0,0,0,5,null,null,null,null,1,3,1,null,null,null,null,null,null,1,4,0,5,5,0,0,0,0]
["BOMBARD",2,null,null,null,null,null,2,null,null,null,null,null,null,null,1,1,1,1,0,2,0,0,0]
["CANTIERI CAPELLI",2,null,null,null,null,null,null,1,1,null,null,null,null,null,2,null,1,1,0,2,0,0,0,1,null,null,null,null,null,null,null,1,null,null,null,null,null,null,1,0,1,0,1,0,0,0]
["GOLDEN SHIP",2,null,null,null,null,1,1,null,null,null,null,null,null,null,1,1,0,2,0,1,1,0,0]
["INVICTUS",2,null,null,null,null,null,1,1,null,null,null,null,null,null,1,1,2,0,2,0,0,0,0]
["LOMAC",2,null,null,2,null,null,null,null,null,null,null,null,null,null,2,null,2,0,0,2,0,0,0,1,null,null,1,null,null,null,null,null,null,null,null,null,null,null,1,0,1,0,1,0,0,0]
["OBE & CARMEN",2,null,null,null,null,1,null,1,null,null,null,null,null,null,1,1,0,2,2,0,0,0,0]
["OKI BOATS",2,null,null,null,null,null,2,null,null,null,null,null,null,null,1,1,0,2,2,0,0,0,0,1,null,null,null,null,null,1,null,null,null,null,null,null,null,1,null,0,1,1,0,0,0,0]
["PROTENDER",2,1,1,null,null,null,null,null,null,null,null,null,null,null,2,null,0,2,0,0,2,0,0]
["WILLIAMS MARINE",2,null,2,null,null,null,null,null,null,null,null,null,null,null,1,1,0,2,0,2,0,0,0]
["ACHA",1,null,null,null,null,null,null,null,1,null,null,null,null,null,null,1,1,0,1,0,0,0,0]
["ALLEGRA",1,null,null,null,null,null,1,null,null,null,null,null,null,null,1,null,1,0,1,0,0,0,0]
["AMANAY",1,null,null,null,1,null,null,null,null,null,null,null,null,null,1,null,0,1,0,1,0,0,0]
["ASTILLEROS HAZ",1,null,null,null,null,null,1,null,null,null,null,null,null,null,null,1,0,1,1,0,0,0,0,1,null,null,null,null,1,null,null,null,null,null,null,null,null,null,1,0,1,1,0,0,0,0]
["ASTILUX",1,null,null,null,null,null,1,null,null,null,null,null,null,null,1,null,0,1,1,0,0,0,0]
["B2 MARINE",1,null,null,null,null,null,1,null,null,null,null,null,null,null,1,null,0,1,1,0,0,0,0]
["BOSTON WHALER",1,null,null,null,null,null,null,null,1,null,null,null,null,null,1,null,0,1,1,0,0,0,0]
["BWA",1,null,null,null,null,null,1,null,null,null,null,null,null,null,null,1,0,1,0,1,0,0,0,1,null,null,null,null,null,1,null,null,null,null,null,null,null,null,1,0,1,0,1,0,0,0]
["CEREIXO",1,null,null,null,null,null,1,null,null,null,null,null,null,null,1,null,0,1,1,0,0,0,0]
["CHAPARRAL",1,null,null,null,null,null,null,1,null,null,null,null,null,null,null,1,0,1,1,0,0,0,0]
["CRANCHI",1,null,null,null,null,null,null,null,1,null,null,null,null,null,1,null,0,1,1,0,0,0,0,1,null,null,null,null,null,null,null,1,null,null,null,null,null,null,1,0,1,1,0,0,0,0]
["DAGANZ",1,null,null,null,null,1,null,null,null,null,null,null,null,null,1,null,0,1,1,0,0,0,0]
["DUFOUR",1,null,null,null,null,null,null,null,1,null,null,null,null,null,1,null,0,1,0,0,0,0,1]
["DUROMAR",1,null,1,null,null,null,null,null,null,null,null,null,null,null,1,null,0,1,0,0,1,0,0]
["EOLO",1,null,null,null,null,null,1,null,null,null,null,null,null,null,null,1,0,1,1,0,0,0,0]
["FAETON",1,null,null,null,null,null,null,1,null,null,null,null,null,null,null,1,0,1,1,0,0,0,0]
["FIBRAMAR",1,null,null,null,null,null,null,1,null,null,null,null,null,null,1,null,0,1,1,0,0,0,0]
["FOUR WINNS",1,null,null,null,null,null,1,null,null,null,null,null,null,null,null,1,0,1,1,0,0,0,0,1,null,null,null,null,null,null,1,null,null,null,null,null,null,1,null,0,1,1,0,0,0,0]
["GENESIS",1,1,null,null,null,null,null,null,null,null,null,null,null,null,1,null,0,1,0,1,0,0,0]
["GIRBAU",1,null,null,null,null,null,null,1,null,null,null,null,null,null,null,1,0,1,1,0,0,0,0]
["GRAUVELL",1,null,1,null,null,null,null,null,null,null,null,null,null,null,1,null,0,1,0,0,1,0,0,1,null,null,null,1,null,null,null,null,null,null,null,null,null,1,null,0,1,0,0,1,0,0]
["GROSTAR",1,null,null,null,null,null,null,1,null,null,null,null,null,null,null,1,0,1,1,0,0,0,0]
["HALLBERG RASSY",1,null,null,null,null,null,null,null,1,null,null,null,null,null,1,null,0,1,0,0,0,0,1]
["HARMONY",1,null,null,null,null,null,null,null,null,1,null,null,null,null,1,null,1,0,1,0,0,0,0]
["JACKSON KAYAK",1,null,null,null,null,1,null,null,null,null,null,null,null,null,1,null,0,1,1,0,0,0,0]
["JAGO",1,null,1,null,null,null,null,null,null,null,null,null,null,null,1,null,0,1,0,0,1,0,0]
["JOUET",1,null,null,null,null,null,null,null,1,null,null,null,null,null,1,null,0,1,0,0,0,0,1]
["KARNIC",1,null,null,null,null,null,1,null,null,null,null,null,null,null,1,null,0,1,1,0,0,0,0]
["KIMPLE",1,null,null,null,null,1,null,null,null,null,null,null,null,null,null,1,0,1,1,0,0,0,0]
["KYBIN",1,null,1,null,null,null,null,null,null,null,null,null,null,null,null,1,0,1,0,0,1,0,0,1,1,null,null,null,null,null,null,null,null,null,null,null,null,1,null,0,1,0,0,1,0,0]
["LA NORIA",1,null,1,null,null,null,null,null,null,null,null,null,null,null,1,null,0,1,1,0,0,0,0]
["LAGOON",1,null,null,null,null,null,null,null,1,null,null,null,null,null,null,1,1,0,1,0,0,0,0]
["LEMA",1,null,null,null,null,null,null,1,null,null,null,null,null,null,null,1,0,1,1,0,0,0,0,1,null,null,null,null,null,1,null,null,null,null,null,null,null,null,1,0,1,1,0,0,0,0]
["LODESTAR",1,null,null,null,null,1,null,null,null,null,null,null,null,null,null,1,0,1,0,1,0,0,0,3,null,null,null,3,null,null,null,null,null,null,null,null,null,1,2,0,3,0,3,0,0,0]
["MARINE",1,null,null,1,null,null,null,null,null,null,null,null,null,null,1,null,0,1,1,0,0,0,0]
["MAXUM",1,null,null,null,null,null,1,null,null,null,null,null,null,null,1,null,0,1,1,0,0,0,0]
["MERCURY",1,null,null,null,1,null,null,null,null,null,null,null,null,null,1,null,0,1,0,1,0,0,0,3,1,1,null,null,1,null,null,null,null,null,null,null,null,2,1,0,3,0,0,3,0,0]
["MERY NAUTIC",1,null,null,null,null,null,1,null,null,null,null,null,null,null,1,null,0,1,1,0,0,0,0]
["MINIJET",1,1,null,null,null,null,null,null,null,null,null,null,null,null,null,1,0,1,0,1,0,0,0]
["MONTEREY BOATS",1,null,null,null,null,null,null,1,null,null,null,null,null,null,null,1,0,1,1,0,0,0,0,1,null,null,null,null,null,1,null,null,null,null,null,null,null,1,null,0,1,1,0,0,0,0]
["NARWHAL",1,null,null,null,null,1,null,null,null,null,null,null,null,null,1,null,0,1,0,1,0,0,0,1,null,null,null,null,null,1,null,null,null,null,null,null,null,1,null,0,1,0,1,0,0,0]
["NAUTITECH",1,null,null,null,null,null,null,null,1,null,null,null,null,null,null,1,0,1,0,0,0,0,1]
["NEUVISA",1,null,null,null,null,1,null,null,null,null,null,null,null,null,1,null,0,1,0,1,0,0,0,1,null,null,1,null,null,null,null,null,null,null,null,null,null,null,1,0,1,0,1,0,0,0]
["OCEAN BAY BOATS",1,null,null,1,null,null,null,null,null,null,null,null,null,null,null,1,0,1,0,0,1,0,0,7,null,null,7,null,null,null,null,null,null,null,null,null,null,6,1,0,7,0,0,7,0,0]
["ORCA",1,null,null,null,null,null,null,1,null,null,null,null,null,null,1,null,0,1,1,0,0,0,0,1,null,null,null,null,null,1,null,null,null,null,null,null,null,1,null,0,1,1,0,0,0,0]
["OTERO & LOSADA",1,null,null,null,null,1,null,null,null,null,null,null,null,null,null,1,0,1,1,0,0,0,0]
["PECOSI",1,null,null,null,null,null,1,null,null,null,null,null,null,null,1,null,0,1,1,0,0,0,0]
["REMUS",1,null,null,null,null,null,1,null,null,null,null,null,null,null,null,1,0,1,1,0,0,0,0]
["RIBERA",1,null,null,null,null,null,null,1,null,null,null,null,null,null,1,null,0,1,0,1,0,0,0,1,null,null,null,null,null,null,1,null,null,null,null,null,null,null,1,0,1,0,1,0,0,0]
["RODMAN",1,null,null,null,null,null,null,null,1,null,null,null,null,null,1,null,0,1,1,0,0,0,0]
["SACS",1,null,null,null,null,null,null,1,null,null,null,null,null,null,null,1,0,1,0,1,0,0,0]
["SAVER",1,null,null,null,null,null,1,null,null,null,null,null,null,null,1,null,0,1,1,0,0,0,0]
["SEA DOO",1,null,null,null,null,1,null,null,null,null,null,null,null,null,1,null,0,1,1,0,0,0,0]
["SEA PRO",1,null,null,null,null,null,null,1,null,null,null,null,null,null,null,1,0,1,1,0,0,0,0]
["SEA RAY",1,null,null,null,null,null,null,1,null,null,null,null,null,null,null,1,0,1,1,0,0,0,0,2,null,null,null,null,null,1,null,null,null,1,null,null,null,1,1,0,2,2,0,0,0,0]
["SEVIPOL",1,null,null,null,null,null,null,null,1,null,null,null,null,null,null,1,0,1,0,0,0,0,1]
["SUZUMAR",1,1,null,null,null,null,null,null,null,null,null,null,null,null,null,1,0,1,0,0,1,0,0]
["TECNOFIBER",1,null,null,null,null,null,null,1,null,null,null,null,null,null,1,null,1,0,1,0,0,0,0]
["TRIMARCHI ANTONINO ANDREA",1,null,null,null,null,null,1,null,null,null,null,null,null,null,1,null,1,0,1,0,0,0,0]
["UNIESSE",1,null,null,null,null,null,null,null,null,1,null,null,null,null,1,null,1,0,1,0,0,0,0]
["VALIANT",1,null,null,null,null,null,1,null,null,null,null,null,null,null,null,1,0,1,0,1,0,0,0]
["VANGUARD",1,null,null,null,null,null,null,1,null,null,null,null,null,null,1,null,1,0,0,1,0,0,0,2,null,null,null,null,null,1,1,null,null,null,null,null,null,2,null,0,2,0,2,0,0,0]
["WRIGHTON",1,null,null,null,null,null,null,null,1,null,null,null,null,null,1,null,0,1,0,0,0,0,1]
["ZURITA",1,null,1,null,null,null,null,null,null,null,null,null,null,null,1,null,0,1,0,0,1,0,0]
["AQUAPARX",null,null,null,null,null,null,null,null,null,null,null,null,null,null,null,null,null,null,null,null,null,null,null,2,1,1,null,null,null,null,null,null,null,null,null,null,null,2,null,0,2,0,0,2,0,0]
["ARVOR",null,null,null,null,null,null,null,null,null,null,null,null,null,null,null,null,null,null,null,null,null,null,null,1,null,null,null,null,null,1,null,null,null,null,null,null,null,1,null,0,1,1,0,0,0,0]
["AUXINAVY",null,null,null,null,null,null,null,null,null,null,null,null,null,null,null,null,null,null,null,null,null,null,null,1,null,null,null,null,null,1,null,null,null,null,null,null,null,null,1,0,1,1,0,0,0,0]
["AVON",null,null,null,null,null,null,null,null,null,null,null,null,null,null,null,null,null,null,null,null,null,null,null,2,null,1,null,1,null,null,null,null,null,null,null,null,null,1,1,0,2,0,2,0,0,0]
["BIANCA",null,null,null,null,null,null,null,null,null,null,null,null,null,null,null,null,null,null,null,null,null,null,null,1,null,null,null,null,null,null,null,1,null,null,null,null,null,1,null,0,1,0,0,0,0,1]
["CANTIERI DEL PARDO",null,null,null,null,null,null,null,null,null,null,null,null,null,null,null,null,null,null,null,null,null,null,null,1,null,null,null,null,null,null,null,null,1,null,null,null,null,null,1,0,1,1,0,0,0,0]
["CAPEADOR",null,null,null,null,null,null,null,null,null,null,null,null,null,null,null,null,null,null,null,null,null,null,null,1,null,null,null,null,null,null,1,null,null,null,null,null,null,1,null,0,1,1,0,0,0,0]
["CATANA",null,null,null,null,null,null,null,null,null,null,null,null,null,null,null,null,null,null,null,null,null,null,null,1,null,null,null,null,null,null,null,null,null,1,null,null,null,null,1,0,1,0,0,0,0,1]
["CHARACTER BOATS",null,null,null,null,null,null,null,null,null,null,null,null,null,null,null,null,null,null,null,null,null,null,null,1,null,null,null,null,null,1,null,null,null,null,null,null,null,null,1,0,1,0,0,0,0,1]
["CONSTRUCCIONES DE BARCOS DEL SUR",null,null,null,null,null,null,null,null,null,null,null,null,null,null,null,null,null,null,null,null,null,null,null,1,null,null,null,null,null,null,1,null,null,null,null,null,null,1,null,0,1,0,1,0,0,0]
["CYP",null,null,null,null,null,null,null,null,null,null,null,null,null,null,null,null,null,null,null,null,null,null,null,1,null,null,null,null,null,1,null,null,null,null,null,null,null,1,null,0,1,1,0,0,0,0]
["DUBHE",null,null,null,null,null,null,null,null,null,null,null,null,null,null,null,null,null,null,null,null,null,null,null,1,null,null,null,null,null,null,1,null,null,null,null,null,null,1,null,0,1,1,0,0,0,0]
["DUCAUTO",null,null,null,null,null,null,null,null,null,null,null,null,null,null,null,null,null,null,null,null,null,null,null,1,null,null,1,null,null,null,null,null,null,null,null,null,null,null,1,0,1,1,0,0,0,0]
["ELAN MARINE",null,null,null,null,null,null,null,null,null,null,null,null,null,null,null,null,null,null,null,null,null,null,null,1,null,null,null,null,null,null,null,1,null,null,null,null,null,1,null,0,1,0,0,0,0,1]
["ELIMAT",null,null,null,null,null,null,null,null,null,null,null,null,null,null,null,null,null,null,null,null,null,null,null,1,null,null,null,null,null,1,null,null,null,null,null,null,null,null,1,1,0,1,0,0,0,0]
["ESTABLE",null,null,null,null,null,null,null,null,null,null,null,null,null,null,null,null,null,null,null,null,null,null,null,1,null,null,null,1,null,null,null,null,null,null,null,null,null,1,null,0,1,1,0,0,0,0]
["FAIRLINE",null,null,null,null,null,null,null,null,null,null,null,null,null,null,null,null,null,null,null,null,null,null,null,1,null,null,null,null,null,null,null,1,null,null,null,null,null,1,null,0,1,1,0,0,0,0]
["FIBER CRAFT",null,null,null,null,null,null,null,null,null,null,null,null,null,null,null,null,null,null,null,null,null,null,null,2,null,null,null,1,1,null,null,null,null,null,null,null,null,2,null,0,2,2,0,0,0,0]
["FIBERPLAST",null,null,null,null,null,null,null,null,null,null,null,null,null,null,null,null,null,null,null,null,null,null,null,1,null,null,null,1,null,null,null,null,null,null,null,null,null,null,1,0,1,1,0,0,0,0]
["FISHERPRO",null,null,null,null,null,null,null,null,null,null,null,null,null,null,null,null,null,null,null,null,null,null,null,2,null,2,null,null,null,null,null,null,null,null,null,null,null,2,null,0,2,0,0,2,0,0]
["FISHING",null,null,null,null,null,null,null,null,null,null,null,null,null,null,null,null,null,null,null,null,null,null,null,1,null,null,null,null,null,null,1,null,null,null,null,null,null,1,null,1,0,1,0,0,0,0]
["FREZETWELT GARHERR",null,null,null,null,null,null,null,null,null,null,null,null,null,null,null,null,null,null,null,null,null,null,null,1,null,null,null,null,null,1,null,null,null,null,null,null,null,1,null,0,1,0,0,1,0,0]
["HYDRO FORCE",null,null,null,null,null,null,null,null,null,null,null,null,null,null,null,null,null,null,null,null,null,null,null,2,null,2,null,null,null,null,null,null,null,null,null,null,null,2,null,0,2,0,0,2,0,0]
["JEMAR",null,null,null,null,null,null,null,null,null,null,null,null,null,null,null,null,null,null,null,null,null,null,null,1,null,null,null,null,null,1,null,null,null,null,null,null,null,1,null,0,1,0,0,0,1,0]
["KAWASAKI",null,null,null,null,null,null,null,null,null,null,null,null,null,null,null,null,null,null,null,null,null,null,null,1,null,null,null,null,null,null,null,null,null,null,null,null,1,null,1,0,1,0,0,0,0,0]
["LATREX",null,null,null,null,null,null,null,null,null,null,null,null,null,null,null,null,null,null,null,null,null,null,null,1,null,1,null,null,null,null,null,null,null,null,null,null,null,1,null,0,1,1,0,0,0,0]
["LIAN YA",null,null,null,null,null,null,null,null,null,null,null,null,null,null,null,null,null,null,null,null,null,null,null,1,null,null,null,1,null,null,null,null,null,null,null,null,null,1,null,0,1,0,0,1,0,0]
["MARETI",null,null,null,null,null,null,null,null,null,null,null,null,null,null,null,null,null,null,null,null,null,null,null,2,null,null,null,2,null,null,null,null,null,null,null,null,null,null,2,0,2,2,0,0,0,0]
["NAUTICA ESPOSITO",null,null,null,null,null,null,null,null,null,null,null,null,null,null,null,null,null,null,null,null,null,null,null,1,null,null,null,null,null,null,1,null,null,null,null,null,null,null,1,0,1,1,0,0,0,0]
["OCQUETEAU",null,null,null,null,null,null,null,null,null,null,null,null,null,null,null,null,null,null,null,null,null,null,null,2,null,null,null,null,null,null,2,null,null,null,null,null,null,1,1,0,2,2,0,0,0,0]
["PACIFIC CRAFT",null,null,null,null,null,null,null,null,null,null,null,null,null,null,null,null,null,null,null,null,null,null,null,2,null,null,null,null,null,2,null,null,null,null,null,null,null,2,null,0,2,2,0,0,0,0]
["PLASTIMO",null,null,null,null,null,null,null,null,null,null,null,null,null,null,null,null,null,null,null,null,null,null,null,1,null,1,null,null,null,null,null,null,null,null,null,null,null,1,null,1,0,0,0,1,0,0]
["POST CONSTRUCCION",null,null,null,null,null,null,null,null,null,null,null,null,null,null,null,null,null,null,null,null,null,null,null,1,null,null,null,null,null,null,null,null,1,null,null,null,null,null,1,0,1,1,0,0,0,0]
["PRONAUTICA",null,null,null,null,null,null,null,null,null,null,null,null,null,null,null,null,null,null,null,null,null,null,null,1,null,null,null,null,null,null,null,1,null,null,null,null,null,null,1,1,0,1,0,0,0,0]
["RIO IBERICA",null,null,null,null,null,null,null,null,null,null,null,null,null,null,null,null,null,null,null,null,null,null,null,1,null,null,null,null,null,null,1,null,null,null,null,null,null,1,null,0,1,1,0,0,0,0]
["SABOR",null,null,null,null,null,null,null,null,null,null,null,null,null,null,null,null,null,null,null,null,null,null,null,2,null,null,null,null,1,1,null,null,null,null,null,null,null,1,1,0,2,2,0,0,0,0]
["SELVA",null,null,null,null,null,null,null,null,null,null,null,null,null,null,null,null,null,null,null,null,null,null,null,1,null,null,null,null,null,1,null,null,null,null,null,null,null,null,1,0,1,1,0,0,0,0]
["SENTINEL",null,null,null,null,null,null,null,null,null,null,null,null,null,null,null,null,null,null,null,null,null,null,null,3,null,null,null,1,null,null,2,null,null,null,null,null,null,null,3,0,3,3,0,0,0,0]
["SESSA",null,null,null,null,null,null,null,null,null,null,null,null,null,null,null,null,null,null,null,null,null,null,null,1,null,null,null,null,null,null,null,1,null,null,null,null,null,null,1,0,1,1,0,0,0,0]
["STARFISHER",null,null,null,null,null,null,null,null,null,null,null,null,null,null,null,null,null,null,null,null,null,null,null,1,null,null,null,null,null,1,null,null,null,null,null,null,null,1,null,0,1,1,0,0,0,0]
["TARGA",null,null,null,null,null,null,null,null,null,null,null,null,null,null,null,null,null,null,null,null,null,null,null,1,null,null,null,null,null,null,null,1,null,null,null,null,null,1,null,0,1,1,0,0,0,0]
["TRACKER MARINE",null,null,null,null,null,null,null,null,null,null,null,null,null,null,null,null,null,null,null,null,null,null,null,1,null,null,null,null,null,1,null,null,null,null,null,null,null,null,1,0,1,1,0,0,0,0]
["TWISTER BOATS",null,null,null,null,null,null,null,null,null,null,null,null,null,null,null,null,null,null,null,null,null,null,null,3,null,null,null,1,null,2,null,null,null,null,null,null,null,3,null,0,3,0,0,3,0,0]
["VETUS",null,null,null,null,null,null,null,null,null,null,null,null,null,null,null,null,null,null,null,null,null,null,null,1,1,null,null,null,null,null,null,null,null,null,null,null,null,null,1,0,1,0,0,1,0,0]
["VIAMARE",null,null,null,null,null,null,null,null,null,null,null,null,null,null,null,null,null,null,null,null,null,null,null,1,null,1,null,null,null,null,null,null,null,null,null,null,null,1,null,0,1,0,0,1,0,0]
["VORAZ",null,null,null,null,null,null,null,null,null,null,null,null,null,null,null,null,null,null,null,null,null,null,null,1,null,null,null,null,1,null,null,null,null,null,null,null,null,1,null,1,0,1,0,0,0,0]
["WALKER BAY",null,null,null,null,null,null,null,null,null,null,null,null,null,null,null,null,null,null,null,null,null,null,null,1,1,null,null,null,null,null,null,null,null,null,null,null,null,1,null,0,1,1,0,0,0,0]
["WAUQUIEZ",null,null,null,null,null,null,null,null,null,null,null,null,null,null,null,null,null,null,null,null,null,null,null,1,null,null,null,null,null,null,null,1,null,null,null,null,null,1,null,0,1,0,0,0,0,1]
["WHALY",null,null,null,null,null,null,null,null,null,null,null,null,null,null,null,null,null,null,null,null,null,null,null,3,null,1,null,1,1,null,null,null,null,null,null,null,null,2,1,1,2,3,0,0,0,0]
["WINDY",null,null,null,null,null,null,null,null,null,null,null,null,null,null,null,null,null,null,null,null,null,null,null,2,null,null,null,null,null,null,1,null,1,null,null,null,null,1,1,0,2,2,0,0,0,0]
["YAM",null,null,null,null,null,null,null,null,null,null,null,null,null,null,null,null,null,null,null,null,null,null,null,1,null,null,null,null,null,1,null,null,null,null,null,null,null,null,1,0,1,0,1,0,0,0]
["ZEBEC",null,null,null,null,null,null,null,null,null,null,null,null,null,null,null,null,null,null,null,null,null,null,null,1,null,1,null,null,null,null,null,null,null,null,null,null,null,1,null,0,1,0,1,0,0,0]

{"sheet":"Hoja8","index":7,"n_rows":282,"n_cols":48,"rows_kept":282,"cut":false,"hidden":true,"merged":[]}
["CAPITANIA","ASTILLERO","Numero Total","<03","<03,5","<04","<04,5","<05","<06","<08","<12","<15","<20","<24",">=24","MOTOS","Misma Provincia","Diferente Provincia","Lista 6","Lista 7","RIGIDO","SEMIRIGIDO","NEUMATICO","Sin Datos","VELA","Total ANT","03 ANT","035 ANT","04 ANT","045 ANT","05 ANT","06 ANT","08 ANT","12 ANT","15 ANT","20 ANT","24 ANT",">24 ANT","Motos ANT","Misma ANT","Dif ANT","6 ANT","7 ANT","Rig ANT","Semi ANT","neu ANT","sd ANT","Vela ANT"]
["A CORUÑA","ACHA",1,null,null,null,null,null,null,null,1,null,null,null,null,null,null,1,1,0,1,0,0,0,0]
["A CORUÑA","BAVARIA",1,null,null,null,null,null,null,null,1,null,null,null,null,null,null,1,1,0,1,0,0,0,0]
["A CORUÑA","CEREIXO",1,null,null,null,null,null,1,null,null,null,null,null,null,null,1,null,0,1,1,0,0,0,0]
["A CORUÑA","CHAPARRAL",1,null,null,null,null,null,null,1,null,null,null,null,null,null,null,1,0,1,1,0,0,0,0]
["A CORUÑA","GROSTAR",1,null,null,null,null,null,null,1,null,null,null,null,null,null,null,1,0,1,1,0,0,0,0]
["A CORUÑA","JEANNEAU",1,null,null,null,null,null,null,1,null,null,null,null,null,null,null,1,0,1,1,0,0,0,0]
["A CORUÑA","LAGOON",1,null,null,null,null,null,null,null,1,null,null,null,null,null,null,1,1,0,1,0,0,0,0]
["A CORUÑA","NAUTITECH",1,null,null,null,null,null,null,null,1,null,null,null,null,null,null,1,0,1,0,0,0,0,1]
["A CORUÑA","SIN DATOS",1,null,null,null,null,null,null,null,1,null,null,null,null,null,null,1,0,1,0,0,0,0,1]
["A CORUÑA","YAMAHA",1,null,null,null,null,null,null,null,null,null,null,null,null,1,1,null,0,1,0,0,0,0,0]
["A CORUÑA","BAYLINER",null,null,null,null,null,null,null,null,null,null,null,null,null,null,null,null,null,null,null,null,null,null,null,1,null,null,null,null,null,1,null,null,null,null,null,null,null,null,1,0,1,1,0,0,0,0]
["A CORUÑA","LEMA",null,null,null,null,null,null,null,null,null,null,null,null,null,null,null,null,null,null,null,null,null,null,null,1,null,null,null,null,null,1,null,null,null,null,null,null,null,null,1,0,1,1,0,0,0,0]
["A CORUÑA","NARWHAL",null,null,null,null,null,null,null,null,null,null,null,null,null,null,null,null,null,null,null,null,null,null,null,1,null,null,null,null,null,1,null,null,null,null,null,null,null,1,null,0,1,0,1,0,0,0]
["A CORUÑA","QUICKSILVER",null,null,null,null,null,null,null,null,null,null,null,null,null,null,null,null,null,null,null,null,null,null,null,2,null,null,null,null,2,null,null,null,null,null,null,null,null,null,2,0,2,2,0,0,0,0]
["A CORUÑA","SELVA",null,null,null,null,null,null,null,null,null,null,null,null,null,null,null,null,null,null,null,null,null,null,null,1,null,null,null,null,null,1,null,null,null,null,null,null,null,null,1,0,1,1,0,0,0,0]
["A CORUÑA","WAUQUIEZ",null,null,null,null,null,null,null,null,null,null,null,null,null,null,null,null,null,null,null,null,null,null,null,1,null,null,null,null,null,null,null,1,null,null,null,null,null,1,null,0,1,0,0,0,0,1]
["ALGECIRAS","AZIMUT",1,null,null,null,null,null,null,null,null,null,1,null,null,null,null,1,0,1,1,0,0,0,0]
["ALGECIRAS","BOMBARDIER",1,null,null,null,null,null,null,null,null,null,null,null,null,1,null,1,0,1,0,0,0,0,0]
["ALGECIRAS","INVICTUS",1,null,null,null,null,null,null,1,null,null,null,null,null,null,null,1,1,0,1,0,0,0,0]
["ALGECIRAS","JEANNEAU",1,null,null,null,null,null,null,1,null,null,null,null,null,null,null,1,0,1,1,0,0,0,0]
["ALGECIRAS","LODESTAR",1,null,null,null,null,1,null,null,null,null,null,null,null,null,null,1,0,1,0,1,0,0,0]
["ALGECIRAS","MONTEREY BOATS",1,null,null,null,null,null,null,1,null,null,null,null,null,null,null,1,0,1,1,0,0,0,0]
["ALGECIRAS","OZEAM",1,null,1,null,null,null,null,null,null,null,null,null,null,null,null,1,0,1,0,0,1,0,0]
["ALGECIRAS","RIBERA",1,null,null,null,null,null,null,1,null,null,null,null,null,null,1,null,0,1,0,1,0,0,0]
["ALGECIRAS","SEA RIB´S",1,null,null,null,null,null,1,null,null,null,null,null,null,null,null,1,0,1,0,1,0,0,0]
["ALGECIRAS","YAMAHA",1,null,null,null,null,null,null,null,null,null,null,null,null,1,null,1,0,1,0,0,0,0,0]
["ALGECIRAS","CONSTRUCCIONES DE BARCOS DEL SUR",null,null,null,null,null,null,null,null,null,null,null,null,null,null,null,null,null,null,null,null,null,null,null,1,null,null,null,null,null,null,1,null,null,null,null,null,null,1,null,0,1,0,1,0,0,0]
["ALGECIRAS","DUBHE",null,null,null,null,null,null,null,null,null,null,null,null,null,null,null,null,null,null,null,null,null,null,null,1,null,null,null,null,null,null,1,null,null,null,null,null,null,1,null,0,1,1,0,0,0,0]
["ALGECIRAS","LIAN YA",null,null,null,null,null,null,null,null,null,null,null,null,null,null,null,null,null,null,null,null,null,null,null,1,null,null,null,1,null,null,null,null,null,null,null,null,null,1,null,0,1,0,0,1,0,0]
["ALGECIRAS","NEUVISA",null,null,null,null,null,null,null,null,null,null,null,null,null,null,null,null,null,null,null,null,null,null,null,1,null,null,1,null,null,null,null,null,null,null,null,null,null,null,1,0,1,0,1,0,0,0]
["ALGECIRAS","OCEAN BAY BOATS",null,null,null,null,null,null,null,null,null,null,null,null,null,null,null,null,null,null,null,null,null,null,null,1,null,null,1,null,null,null,null,null,null,null,null,null,null,null,1,0,1,0,0,1,0,0]
["ALGECIRAS","WHALY",null,null,null,null,null,null,null,null,null,null,null,null,null,null,null,null,null,null,null,null,null,null,null,1,null,null,null,null,1,null,null,null,null,null,null,null,null,null,1,0,1,1,0,0,0,0]
["ALGECIRAS","WINDY",null,null,null,null,null,null,null,null,null,null,null,null,null,null,null,null,null,null,null,null,null,null,null,1,null,null,null,null,null,null,null,null,1,null,null,null,null,null,1,0,1,1,0,0,0,0]
["ALICANTE","BOMBARDIER",5,null,null,null,null,null,null,null,null,null,null,null,null,5,3,2,3,2,0,0,0,0,0,3,null,null,null,null,null,null,null,null,null,null,null,null,3,2,1,0,3,0,0,0,0,0]
["ALICANTE","ALLEGRA",1,null,null,null,null,null,1,null,null,null,null,null,null,null,1,null,1,0,1,0,0,0,0]
["ALICANTE","BAYLINER",1,null,null,null,null,null,1,null,null,null,null,null,null,null,null,1,0,1,1,0,0,0,0,1,null,null,null,null,null,1,null,null,null,null,null,null,null,null,1,0,1,1,0,0,0,0]
["ALICANTE","BENETEAU",1,null,null,null,null,null,null,1,null,null,null,null,null,null,1,null,0,1,0,0,0,0,1]
["ALICANTE","BWA",1,null,null,null,null,null,1,null,null,null,null,null,null,null,null,1,0,1,0,1,0,0,0,1,null,null,null,null,null,1,null,null,null,null,null,null,null,null,1,0,1,0,1,0,0,0]
["ALICANTE","GENESIS",1,1,null,null,null,null,null,null,null,null,null,null,null,null,1,null,0,1,0,1,0,0,0]
["ALICANTE","OKI BOATS",1,null,null,null,null,null,1,null,null,null,null,null,null,null,null,1,0,1,1,0,0,0,0,1,null,null,null,null,null,1,null,null,null,null,null,null,null,1,null,0,1,1,0,0,0,0]
["ALICANTE","QUICKSILVER",1,null,null,null,null,null,1,null,null,null,null,null,null,null,null,1,0,1,1,0,0,0,0,2,null,null,null,null,1,1,null,null,null,null,null,null,null,1,1,0,2,2,0,0,0,0]
["ALICANTE","TECNOFIBER",1,null,null,null,null,null,null,1,null,null,null,null,null,null,1,null,1,0,1,0,0,0,0]
["ALICANTE","VALIANT",1,null,null,null,null,null,1,null,null,null,null,null,null,null,null,1,0,1,0,1,0,0,0]
["ALICANTE","AUXINAVY",null,null,null,null,null,null,null,null,null,null,null,null,null,null,null,null,null,null,null,null,null,null,null,1,null,null,null,null,null,1,null,null,null,null,null,null,null,null,1,0,1,1,0,0,0,0]
["ALICANTE","BIANCA",null,null,null,null,null,null,null,null,null,null,null,null,null,null,null,null,null,null,null,null,null,null,null,1,null,null,null,null,null,null,null,1,null,null,null,null,null,1,null,0,1,0,0,0,0,1]
["ALICANTE","CHARACTER BOATS",null,null,null,null,null,null,null,null,null,null,null,null,null,null,null,null,null,null,null,null,null,null,null,1,null,null,null,null,null,1,null,null,null,null,null,null,null,null,1,0,1,0,0,0,0,1]
["ALICANTE","ESTABLE",null,null,null,null,null,null,null,null,null,null,null,null,null,null,null,null,null,null,null,null,null,null,null,1,null,null,null,1,null,null,null,null,null,null,null,null,null,1,null,0,1,1,0,0,0,0]
["ALICANTE","FREZETWELT GARHERR",null,null,null,null,null,null,null,null,null,null,null,null,null,null,null,null,null,null,null,null,null,null,null,1,null,null,null,null,null,1,null,null,null,null,null,null,null,1,null,0,1,0,0,1,0,0]
["ALICANTE","JEANNEAU",null,null,null,null,null,null,null,null,null,null,null,null,null,null,null,null,null,null,null,null,null,null,null,3,null,null,null,null,null,null,3,null,null,null,null,null,null,null,3,0,3,3,0,0,0,0]
["ALICANTE","LATREX",null,null,null,null,null,null,null,null,null,null,null,null,null,null,null,null,null,null,null,null,null,null,null,1,null,1,null,null,null,null,null,null,null,null,null,null,null,1,null,0,1,1,0,0,0,0]
["ALICANTE","MONTEREY BOATS",null,null,null,null,null,null,null,null,null,null,null,null,null,null,null,null,null,null,null,null,null,null,null,1,null,null,null,null,null,1,null,null,null,null,null,null,null,1,null,0,1,1,0,0,0,0]
["ALICANTE","SEA RAY",null,null,null,null,null,null,null,null,null,null,null,null,null,null,null,null,null,null,null,null,null,null,null,1,null,null,null,null,null,1,null,null,null,null,null,null,null,1,null,0,1,1,0,0,0,0]
["ALICANTE","VETUS",null,null,null,null,null,null,null,null,null,null,null,null,null,null,null,null,null,null,null,null,null,null,null,1,1,null,null,null,null,null,null,null,null,null,null,null,null,null,1,0,1,0,0,1,0,0]
["ALICANTE","VIAMARE",null,null,null,null,null,null,null,null,null,null,null,null,null,null,null,null,null,null,null,null,null,null,null,1,null,1,null,null,null,null,null,null,null,null,null,null,null,1,null,0,1,0,0,1,0,0]
["ALICANTE","YAMAHA",null,null,null,null,null,null,null,null,null,null,null,null,null,null,null,null,null,null,null,null,null,null,null,2,null,null,null,null,null,null,null,null,null,null,null,null,2,2,null,0,2,0,0,0,0,0]
["ALICANTE","ZEBEC",null,null,null,null,null,null,null,null,null,null,null,null,null,null,null,null,null,null,null,null,null,null,null,1,null,1,null,null,null,null,null,null,null,null,null,null,null,1,null,0,1,0,1,0,0,0]
["ALMERIA","BOMBARD",2,null,null,null,null,null,2,null,null,null,null,null,null,null,1,1,1,1,0,2,0,0,0]
["ALMERIA","BOMBARDIER",2,null,null,null,null,null,null,null,null,null,null,null,null,2,2,null,0,2,0,0,0,0,0]
["ALMERIA","COBRA INFLABLE",2,1,null,null,null,null,1,null,null,null,null,null,null,null,1,1,0,2,0,1,1,0,0]
["ALMERIA","QUICKSILVER",2,1,null,null,null,1,null,null,null,null,null,null,null,null,1,1,0,2,1,0,1,0,0,3,null,null,null,null,null,null,3,null,null,null,null,null,null,null,3,0,3,3,0,0,0,0]
["ALMERIA","JAGO",1,null,1,null,null,null,null,null,null,null,null,null,null,null,1,null,0,1,0,0,1,0,0]
["ALMERIA","LEMA",1,null,null,null,null,null,null,1,null,null,null,null,null,null,null,1,0,1,1,0,0,0,0]
["ALMERIA","OZEAM",1,1,null,null,null,null,null,null,null,null,null,null,null,null,null,1,0,1,0,0,1,0,0]
["ALMERIA","AQUAPARX",null,null,null,null,null,null,null,null,null,null,null,null,null,null,null,null,null,null,null,null,null,null,null,1,null,1,null,null,null,null,null,null,null,null,null,null,null,1,null,0,1,0,0,1,0,0]
["ALMERIA","ASTILLEROS HAZ",null,null,null,null,null,null,null,null,null,null,null,null,null,null,null,null,null,null,null,null,null,null,null,1,null,null,null,null,1,null,null,null,null,null,null,null,null,null,1,0,1,1,0,0,0,0]
["ALMERIA","BAYLINER",null,null,null,null,null,null,null,null,null,null,null,null,null,null,null,null,null,null,null,null,null,null,null,1,null,null,null,null,null,null,1,null,null,null,null,null,null,null,1,0,1,1,0,0,0,0]
["ALMERIA","OCEAN BAY BOATS",null,null,null,null,null,null,null,null,null,null,null,null,null,null,null,null,null,null,null,null,null,null,null,1,null,null,1,null,null,null,null,null,null,null,null,null,null,1,null,0,1,0,0,1,0,0]
["ALMERIA","YAMAHA",null,null,null,null,null,null,null,null,null,null,null,null,null,null,null,null,null,null,null,null,null,null,null,1,null,null,null,null,null,null,null,null,null,null,null,null,1,1,null,0,1,0,0,0,0,0]
["AVILES","JEMAR",null,null,null,null,null,null,null,null,null,null,null,null,null,null,null,null,null,null,null,null,null,null,null,1,null,null,null,null,null,1,null,null,null,null,null,null,null,1,null,0,1,0,0,0,1,0]
["BARCELONA","QUICKSILVER",4,null,null,1,null,null,2,1,null,null,null,null,null,null,4,null,0,4,3,0,1,0,0]
["BARCELONA","BENETEAU",3,null,null,null,null,null,null,2,null,1,null,null,null,null,null,3,0,3,2,0,0,0,1]
["BARCELONA","B2 MARINE",1,null,null,null,null,null,1,null,null,null,null,null,null,null,1,null,0,1,1,0,0,0,0]
["BARCELONA","BAVARIA",1,null,null,null,null,null,null,null,1,null,null,null,null,null,1,null,0,1,0,0,0,0,1,1,null,null,null,null,null,null,null,1,null,null,null,null,null,1,null,0,1,1,0,0,0,0]
["BARCELONA","BOMBARDIER",1,null,null,null,null,null,null,null,null,null,null,null,null,1,null,1,0,1,0,0,0,0,0]
["BARCELONA","BOSTON WHALER",1,null,null,null,null,null,null,null,1,null,null,null,null,null,1,null,0,1,1,0,0,0,0]
["BARCELONA","CRANCHI",1,null,null,null,null,null,null,null,1,null,null,null,null,null,1,null,0,1,1,0,0,0,0,1,null,null,null,null,null,null,null,1,null,null,null,null,null,null,1,0,1,1,0,0,0,0]
["BARCELONA","GIRBAU",1,null,null,null,null,null,null,1,null,null,null,null,null,null,null,1,0,1,1,0,0,0,0]
["BARCELONA","JEANNEAU",1,null,null,null,null,null,null,null,1,null,null,null,null,null,null,1,0,1,1,0,0,0,0,1,null,null,null,null,null,null,null,null,null,1,null,null,null,null,1,0,1,1,0,0,0,0]
["BARCELONA","OBE & CARMEN",1,null,null,null,null,null,null,1,null,null,null,null,null,null,null,1,0,1,1,0,0,0,0]
["BARCELONA","ORCA",1,null,null,null,null,null,null,1,null,null,null,null,null,null,1,null,0,1,1,0,0,0,0]
["BARCELONA","PROTENDER",1,null,1,null,null,null,null,null,null,null,null,null,null,null,1,null,0,1,0,0,1,0,0]
["BARCELONA","RODMAN",1,null,null,null,null,null,null,null,1,null,null,null,null,null,1,null,0,1,1,0,0,0,0]
["BARCELONA","SACS",1,null,null,null,null,null,null,1,null,null,null,null,null,null,null,1,0,1,0,1,0,0,0]
["BARCELONA","SEA PRO",1,null,null,null,null,null,null,1,null,null,null,null,null,null,null,1,0,1,1,0,0,0,0]
["BARCELONA","AVON",null,null,null,null,null,null,null,null,null,null,null,null,null,null,null,null,null,null,null,null,null,null,null,1,null,1,null,null,null,null,null,null,null,null,null,null,null,null,1,0,1,0,1,0,0,0]
["BARCELONA","BAYLINER",null,null,null,null,null,null,null,null,null,null,null,null,null,null,null,null,null,null,null,null,null,null,null,1,null,null,null,null,1,null,null,null,null,null,null,null,null,1,null,0,1,1,0,0,0,0]
["BARCELONA","CANTIERI DEL PARDO",null,null,null,null,null,null,null,null,null,null,null,null,null,null,null,null,null,null,null,null,null,null,null,1,null,null,null,null,null,null,null,null,1,null,null,null,null,null,1,0,1,1,0,0,0,0]
["BARCELONA","ELAN MARINE",null,null,null,null,null,null,null,null,null,null,null,null,null,null,null,null,null,null,null,null,null,null,null,1,null,null,null,null,null,null,null,1,null,null,null,null,null,1,null,0,1,0,0,0,0,1]
["BARCELONA","ELIMAT",null,null,null,null,null,null,null,null,null,null,null,null,null,null,null,null,null,null,null,null,null,null,null,1,null,null,null,null,null,1,null,null,null,null,null,null,null,null,1,1,0,1,0,0,0,0]
["BARCELONA","FISHING",null,null,null,null,null,null,null,null,null,null,null,null,null,null,null,null,null,null,null,null,null,null,null,1,null,null,null,null,null,null,1,null,null,null,null,null,null,1,null,1,0,1,0,0,0,0]
["BARCELONA","NAUTICA ESPOSITO",null,null,null,null,null,null,null,null,null,null,null,null,null,null,null,null,null,null,null,null,null,null,null,1,null,null,null,null,null,null,1,null,null,null,null,null,null,null,1,0,1,1,0,0,0,0]
["BARCELONA","TARGA",null,null,null,null,null,null,null,null,null,null,null,null,null,null,null,null,null,null,null,null,null,null,null,1,null,null,null,null,null,null,null,1,null,null,null,null,null,1,null,0,1,1,0,0,0,0]
["BARCELONA","TWISTER BOATS",null,null,null,null,null,null,null,null,null,null,null,null,null,null,null,null,null,null,null,null,null,null,null,3,null,null,null,1,null,2,null,null,null,null,null,null,null,3,null,0,3,0,0,3,0,0]
["BARCELONA","YAMAHA",null,null,null,null,null,null,null,null,null,null,null,null,null,null,null,null,null,null,null,null,null,null,null,1,null,null,null,null,null,null,null,null,null,null,null,null,1,null,1,1,0,0,0,0,0,0]
["BILBAO","BOMBARDIER",4,null,null,null,null,null,null,null,null,null,null,null,null,4,1,3,1,3,0,0,0,0,0,3,null,null,null,null,null,null,null,null,null,null,null,null,3,null,3,0,3,0,0,0,0,0]
["BILBAO","JEANNEAU",2,null,null,null,null,null,null,1,1,null,null,null,null,null,null,2,0,2,1,0,0,0,1,1,null,null,null,null,null,null,null,null,1,null,null,null,null,null,1,0,1,1,0,0,0,0]
["BILBAO","ASTILLEROS HAZ",1,null,null,null,null,null,1,null,null,null,null,null,null,null,null,1,0,1,1,0,0,0,0]
["BILBAO","HALLBERG RASSY",1,null,null,null,null,null,null,null,1,null,null,null,null,null,1,null,0,1,0,0,0,0,1]
["BILBAO","HONDA HONWAVE",1,null,1,null,null,null,null,null,null,null,null,null,null,null,1,null,0,1,0,0,1,0,0]
["BILBAO","J BOATS",1,null,null,null,null,null,null,null,1,null,null,null,null,null,1,null,1,0,0,0,0,0,1]
["BILBAO","JACKSON KAYAK",1,null,null,null,null,1,null,null,null,null,null,null,null,null,1,null,0,1,1,0,0,0,0]
["BILBAO","SEVIPOL",1,null,null,null,null,null,null,null,1,null,null,null,null,null,null,1,0,1,0,0,0,0,1]
["BILBAO","WILLIAMS MARINE",1,null,1,null,null,null,null,null,null,null,null,null,null,null,null,1,0,1,0,1,0,0,0]
["BILBAO","ZODIAC",1,null,1,null,null,null,null,null,null,null,null,null,null,null,null,1,0,1,0,1,0,0,0,1,null,null,null,null,null,1,null,null,null,null,null,null,null,null,1,0,1,0,1,0,0,0]
["BILBAO","BENETEAU",null,null,null,null,null,null,null,null,null,null,null,null,null,null,null,null,null,null,null,null,null,null,null,1,null,null,null,null,null,null,null,null,1,null,null,null,null,null,1,0,1,0,0,0,0,1]
["BILBAO","KAWASAKI",null,null,null,null,null,null,null,null,null,null,null,null,null,null,null,null,null,null,null,null,null,null,null,1,null,null,null,null,null,null,null,null,null,null,null,null,1,null,1,0,1,0,0,0,0,0]
["BILBAO","PACIFIC CRAFT",null,null,null,null,null,null,null,null,null,null,null,null,null,null,null,null,null,null,null,null,null,null,null,1,null,null,null,null,null,1,null,null,null,null,null,null,null,1,null,0,1,1,0,0,0,0]
["BILBAO","POST CONSTRUCCION",null,null,null,null,null,null,null,null,null,null,null,null,null,null,null,null,null,null,null,null,null,null,null,1,null,null,null,null,null,null,null,null,1,null,null,null,null,null,1,0,1,1,0,0,0,0]
["BILBAO","QUICKSILVER",null,null,null,null,null,null,null,null,null,null,null,null,null,null,null,null,null,null,null,null,null,null,null,1,null,null,null,null,null,null,1,null,null,null,null,null,null,null,1,0,1,1,0,0,0,0]
["BILBAO","SABOR",null,null,null,null,null,null,null,null,null,null,null,null,null,null,null,null,null,null,null,null,null,null,null,1,null,null,null,null,null,1,null,null,null,null,null,null,null,null,1,0,1,1,0,0,0,0]
["BILBAO","SEA RIB´S",null,null,null,null,null,null,null,null,null,null,null,null,null,null,null,null,null,null,null,null,null,null,null,1,null,null,null,null,null,1,null,null,null,null,null,null,null,1,null,0,1,0,1,0,0,0]
["BILBAO","YAMAHA",null,null,null,null,null,null,null,null,null,null,null,null,null,null,null,null,null,null,null,null,null,null,null,1,null,null,null,null,null,null,null,null,null,null,null,null,1,null,1,0,1,0,0,0,0,0]
["CADIZ","BOMBARDIER",1,null,null,null,null,null,null,null,null,null,null,null,null,1,null,1,0,1,0,0,0,0,0,1,null,null,null,null,null,null,null,null,null,null,null,null,1,1,null,0,1,0,0,0,0,0]
["CADIZ","DAGANZ",1,null,null,null,null,1,null,null,null,null,null,null,null,null,1,null,0,1,1,0,0,0,0]
["CADIZ","MERCURY",1,null,null,null,1,null,null,null,null,null,null,null,null,null,1,null,0,1,0,1,0,0,0,1,null,1,null,null,null,null,null,null,null,null,null,null,null,null,1,0,1,0,0,1,0,0]
["CADIZ","MERY NAUTIC",1,null,null,null,null,null,1,null,null,null,null,null,null,null,1,null,0,1,1,0,0,0,0]
["CADIZ","OBE & CARMEN",1,null,null,null,null,1,null,null,null,null,null,null,null,null,1,null,0,1,1,0,0,0,0]
["CADIZ","SIN DATOS",1,null,null,null,null,null,null,1,null,null,null,null,null,null,null,1,0,1,1,0,0,0,0]
["CADIZ","ARVOR",null,null,null,null,null,null,null,null,null,null,null,null,null,null,null,null,null,null,null,null,null,null,null,1,null,null,null,null,null,1,null,null,null,null,null,null,null,1,null,0,1,1,0,0,0,0]
["CADIZ","COBRA INFLABLE",null,null,null,null,null,null,null,null,null,null,null,null,null,null,null,null,null,null,null,null,null,null,null,1,null,null,null,null,null,1,null,null,null,null,null,null,null,null,1,0,1,0,1,0,0,0]
["CADIZ","FIBER CRAFT",null,null,null,null,null,null,null,null,null,null,null,null,null,null,null,null,null,null,null,null,null,null,null,1,null,null,null,1,null,null,null,null,null,null,null,null,null,1,null,0,1,1,0,0,0,0]
["CADIZ","LODESTAR",null,null,null,null,null,null,null,null,null,null,null,null,null,null,null,null,null,null,null,null,null,null,null,3,null,null,null,3,null,null,null,null,null,null,null,null,null,1,2,0,3,0,3,0,0,0]
["CADIZ","OCQUETEAU",null,null,null,null,null,null,null,null,null,null,null,null,null,null,null,null,null,null,null,null,null,null,null,1,null,null,null,null,null,null,1,null,null,null,null,null,null,1,null,0,1,1,0,0,0,0]
["CADIZ","ORCA",null,null,null,null,null,null,null,null,null,null,null,null,null,null,null,null,null,null,null,null,null,null,null,1,null,null,null,null,null,1,null,null,null,null,null,null,null,1,null,0,1,1,0,0,0,0]
["CADIZ","ZODIAC",null,null,null,null,null,null,null,null,null,null,null,null,null,null,null,null,null,null,null,null,null,null,null,1,1,null,null,null,null,null,null,null,null,null,null,null,null,null,1,0,1,0,0,1,0,0]
["CARTAGENA","BOMBARDIER",7,null,null,null,null,null,null,null,null,null,null,null,null,7,3,4,5,2,0,0,0,0,0,1,null,null,null,null,null,null,null,null,null,null,null,null,1,null,1,0,1,0,0,0,0,0]
["CARTAGENA","OZEAM",2,1,1,null,null,null,null,null,null,null,null,null,null,null,2,null,0,2,0,0,2,0,0,2,null,2,null,null,null,null,null,null,null,null,null,null,null,2,null,0,2,0,0,2,0,0]
["CARTAGENA","DIPOL",1,null,null,null,null,null,1,null,null,null,null,null,null,null,1,null,0,1,1,0,0,0,0]
["CARTAGENA","JOUET",1,null,null,null,null,null,null,null,1,null,null,null,null,null,1,null,0,1,0,0,0,0,1]
["CARTAGENA","REMUS",1,null,null,null,null,null,1,null,null,null,null,null,null,null,null,1,0,1,1,0,0,0,0]
["CARTAGENA","SEA DOO",1,null,null,null,null,1,null,null,null,null,null,null,null,null,1,null,0,1,1,0,0,0,0]
["CARTAGENA","ZODIAC",1,null,null,null,1,null,null,null,null,null,null,null,null,null,1,null,0,1,0,1,0,0,0,1,null,null,1,null,null,null,null,null,null,null,null,null,null,1,null,0,1,0,1,0,0,0]
["CARTAGENA","BENETEAU",null,null,null,null,null,null,null,null,null,null,null,null,null,null,null,null,null,null,null,null,null,null,null,1,null,null,null,null,null,null,1,null,null,null,null,null,null,1,null,0,1,1,0,0,0,0]
["CARTAGENA","MARETI",null,null,null,null,null,null,null,null,null,null,null,null,null,null,null,null,null,null,null,null,null,null,null,2,null,null,null,2,null,null,null,null,null,null,null,null,null,null,2,0,2,2,0,0,0,0]
["CARTAGENA","OCEAN BAY BOATS",null,null,null,null,null,null,null,null,null,null,null,null,null,null,null,null,null,null,null,null,null,null,null,2,null,null,2,null,null,null,null,null,null,null,null,null,null,2,null,0,2,0,0,2,0,0]
["CARTAGENA","WALKER BAY",null,null,null,null,null,null,null,null,null,null,null,null,null,null,null,null,null,null,null,null,null,null,null,1,1,null,null,null,null,null,null,null,null,null,null,null,null,1,null,0,1,1,0,0,0,0]
["CASTELLON","BOMBARDIER",4,null,null,null,null,null,null,null,null,null,null,null,null,4,1,3,1,3,0,0,0,0,0]
["CASTELLON","JEANNEAU",2,null,null,null,null,null,null,2,null,null,null,null,null,null,null,2,0,2,2,0,0,0,0]
["CASTELLON","DIPOL",1,null,null,null,1,null,null,null,null,null,null,null,null,null,1,null,0,1,1,0,0,0,0]
["CASTELLON","EOLO",1,null,null,null,null,null,1,null,null,null,null,null,null,null,null,1,0,1,1,0,0,0,0]
["CASTELLON","J BOATS",1,null,null,null,null,null,null,null,1,null,null,null,null,null,null,1,0,1,0,0,0,0,1]
["CASTELLON","KYBIN",1,null,1,null,null,null,null,null,null,null,null,null,null,null,null,1,0,1,0,0,1,0,0]
["CASTELLON","PROTENDER",1,1,null,null,null,null,null,null,null,null,null,null,null,null,1,null,0,1,0,0,1,0,0]
["CASTELLON","BENETEAU",null,null,null,null,null,null,null,null,null,null,null,null,null,null,null,null,null,null,null,null,null,null,null,1,null,null,null,null,null,null,1,null,null,null,null,null,null,null,1,0,1,1,0,0,0,0]
["GIJON","FOUR WINNS",1,null,null,null,null,null,1,null,null,null,null,null,null,null,null,1,0,1,1,0,0,0,0]
["GIJON","QUICKSILVER",null,null,null,null,null,null,null,null,null,null,null,null,null,null,null,null,null,null,null,null,null,null,null,1,null,null,null,null,null,1,null,null,null,null,null,null,null,null,1,0,1,1,0,0,0,0]
["GIJON","SENTINEL",null,null,null,null,null,null,null,null,null,null,null,null,null,null,null,null,null,null,null,null,null,null,null,2,null,null,null,null,null,null,2,null,null,null,null,null,null,null,2,0,2,2,0,0,0,0]
["GIJON","ZODIAC",null,null,null,null,null,null,null,null,null,null,null,null,null,null,null,null,null,null,null,null,null,null,null,1,null,null,null,1,null,null,null,null,null,null,null,null,null,1,null,0,1,0,1,0,0,0]
["HUELVA","BOMBARDIER",5,null,null,null,null,null,null,null,null,null,null,null,null,5,4,1,0,5,0,0,0,0,0]
["HUELVA","COBRA INFLABLE",3,null,null,3,null,null,null,null,null,null,null,null,null,null,3,null,3,0,0,0,3,0,0]
["HUELVA","OZEAM",1,1,null,null,null,null,null,null,null,null,null,null,null,null,1,null,0,1,0,0,1,0,0]
["HUELVA","SIN DATOS",1,null,null,null,1,null,null,null,null,null,null,null,null,null,1,null,0,1,0,1,0,0,0]
["HUELVA","WHALY",null,null,null,null,null,null,null,null,null,null,null,null,null,null,null,null,null,null,null,null,null,null,null,1,null,1,null,null,null,null,null,null,null,null,null,null,null,1,null,0,1,1,0,0,0,0]
["HUELVA","YAMAHA",null,null,null,null,null,null,null,null,null,null,null,null,null,null,null,null,null,null,null,null,null,null,null,1,null,null,null,null,null,null,null,null,null,null,null,null,1,1,null,0,1,0,0,0,0,0]
["LAS PALMAS","APEX INFLATABLES",2,null,null,2,null,null,null,null,null,null,null,null,null,null,2,null,0,2,0,2,0,0,0]
["LAS PALMAS","HONDA HONWAVE",2,null,null,2,null,null,null,null,null,null,null,null,null,null,2,null,0,2,0,0,2,0,0]
["LAS PALMAS","LOMAC",2,null,null,2,null,null,null,null,null,null,null,null,null,null,2,null,2,0,0,2,0,0,0]
["LAS PALMAS","AMANAY",1,null,null,null,1,null,null,null,null,null,null,null,null,null,1,null,0,1,0,1,0,0,0]
["LAS PALMAS","BAVARIA",1,null,null,null,null,null,null,null,1,null,null,null,null,null,1,null,1,0,1,0,0,0,0]
["LAS PALMAS","SAVER",1,null,null,null,null,null,1,null,null,null,null,null,null,null,1,null,0,1,1,0,0,0,0]
["LAS PALMAS","UNIESSE",1,null,null,null,null,null,null,null,null,1,null,null,null,null,1,null,1,0,1,0,0,0,0]
["LAS PALMAS","ZURITA",1,null,1,null,null,null,null,null,null,null,null,null,null,null,1,null,0,1,0,0,1,0,0]
["LAS PALMAS","FIBER CRAFT",null,null,null,null,null,null,null,null,null,null,null,null,null,null,null,null,null,null,null,null,null,null,null,1,null,null,null,null,1,null,null,null,null,null,null,null,null,1,null,0,1,1,0,0,0,0]
["LAS PALMAS","FISHERPRO",null,null,null,null,null,null,null,null,null,null,null,null,null,null,null,null,null,null,null,null,null,null,null,2,null,2,null,null,null,null,null,null,null,null,null,null,null,2,null,0,2,0,0,2,0,0]
["LAS PALMAS","HYDRO FORCE",null,null,null,null,null,null,null,null,null,null,null,null,null,null,null,null,null,null,null,null,null,null,null,2,null,2,null,null,null,null,null,null,null,null,null,null,null,2,null,0,2,0,0,2,0,0]
["LAS PALMAS","MERCURY",null,null,null,null,null,null,null,null,null,null,null,null,null,null,null,null,null,null,null,null,null,null,null,2,1,null,null,null,1,null,null,null,null,null,null,null,null,2,null,0,2,0,0,2,0,0]
["LAS PALMAS","SIN DATOS",null,null,null,null,null,null,null,null,null,null,null,null,null,null,null,null,null,null,null,null,null,null,null,1,null,null,null,null,null,null,1,null,null,null,null,null,null,1,null,1,0,1,0,0,0,0]
["LUGO","JEANNEAU",1,null,null,null,null,null,1,null,null,null,null,null,null,null,null,1,0,1,1,0,0,0,0]
["LUGO","SENTINEL",null,null,null,null,null,null,null,null,null,null,null,null,null,null,null,null,null,null,null,null,null,null,null,1,null,null,null,1,null,null,null,null,null,null,null,null,null,null,1,0,1,1,0,0,0,0]
["MALAGA","DIPOL",2,null,null,2,null,null,null,null,null,null,null,null,null,null,2,null,2,0,2,0,0,0,0]
["MALAGA","QUICKSILVER",2,null,1,null,null,null,1,null,null,null,null,null,null,null,1,1,0,2,1,0,1,0,0]
["MALAGA","DUROMAR",1,null,1,null,null,null,null,null,null,null,null,null,null,null,1,null,0,1,0,0,1,0,0]
["MALAGA","GRAUVELL",1,null,1,null,null,null,null,null,null,null,null,null,null,null,1,null,0,1,0,0,1,0,0]
["MALAGA","KARNIC",1,null,null,null,null,null,1,null,null,null,null,null,null,null,1,null,0,1,1,0,0,0,0]
["MALAGA","LA NORIA",1,null,1,null,null,null,null,null,null,null,null,null,null,null,1,null,0,1,1,0,0,0,0]
["MALAGA","SEA RAY",1,null,null,null,null,null,null,1,null,null,null,null,null,null,null,1,0,1,1,0,0,0,0,1,null,null,null,null,null,null,null,null,null,1,null,null,null,null,1,0,1,1,0,0,0,0]
["MALAGA","SEA RIB´S",1,null,null,null,1,null,null,null,null,null,null,null,null,null,1,null,1,0,0,1,0,0,0]
["MALAGA","SIN DATOS",1,null,null,null,null,null,1,null,null,null,null,null,null,null,1,null,0,1,1,0,0,0,0]
["MALAGA","TRIMARCHI ANTONINO ANDREA",1,null,null,null,null,null,1,null,null,null,null,null,null,null,1,null,1,0,1,0,0,0,0]
["MALAGA","WRIGHTON",1,null,null,null,null,null,null,null,1,null,null,null,null,null,1,null,0,1,0,0,0,0,1]
["MALAGA","BOMBARDIER",null,null,null,null,null,null,null,null,null,null,null,null,null,null,null,null,null,null,null,null,null,null,null,3,null,null,null,null,null,null,null,null,null,null,null,null,3,3,null,0,3,0,0,0,0,0]
["MALAGA","ZODIAC",null,null,null,null,null,null,null,null,null,null,null,null,null,null,null,null,null,null,null,null,null,null,null,2,null,2,null,null,null,null,null,null,null,null,null,null,null,1,1,0,2,0,1,1,0,0]
["MELILLA","YAMAHA",2,null,null,null,null,null,null,null,null,null,null,null,null,2,2,null,0,2,0,0,0,0,0,1,null,null,null,null,null,null,null,null,null,null,null,null,1,1,null,0,1,0,0,0,0,0]
["MOTRIL","BOMBARDIER",1,null,null,null,null,null,null,null,null,null,null,null,null,1,1,null,0,1,0,0,0,0,0,4,null,null,null,null,null,null,null,null,null,null,null,null,4,3,1,0,4,0,0,0,0,0]
["MOTRIL","HONDA HONWAVE",null,null,null,null,null,null,null,null,null,null,null,null,null,null,null,null,null,null,null,null,null,null,null,1,null,null,1,null,null,null,null,null,null,null,null,null,null,null,1,0,1,0,0,1,0,0]
["MOTRIL","OCEAN BAY BOATS",null,null,null,null,null,null,null,null,null,null,null,null,null,null,null,null,null,null,null,null,null,null,null,1,null,null,1,null,null,null,null,null,null,null,null,null,null,1,null,0,1,0,0,1,0,0]
["PALAMOS","FAETON",1,null,null,null,null,null,null,1,null,null,null,null,null,null,null,1,0,1,1,0,0,0,0]
["PALAMOS","HARMONY",1,null,null,null,null,null,null,null,null,1,null,null,null,null,1,null,1,0,1,0,0,0,0]
["PALAMOS","HONDA HONWAVE",1,1,null,null,null,null,null,null,null,null,null,null,null,null,1,null,0,1,0,0,1,0,0]
["PALAMOS","SUZUMAR",1,1,null,null,null,null,null,null,null,null,null,null,null,null,null,1,0,1,0,0,1,0,0]
["PALAMOS","BENETEAU",null,null,null,null,null,null,null,null,null,null,null,null,null,null,null,null,null,null,null,null,null,null,null,1,null,null,null,null,null,null,1,null,null,null,null,null,null,1,null,1,0,1,0,0,0,0]
["PALAMOS","JEANNEAU",null,null,null,null,null,null,null,null,null,null,null,null,null,null,null,null,null,null,null,null,null,null,null,1,null,null,null,null,null,null,1,null,null,null,null,null,null,null,1,0,1,1,0,0,0,0]
["PALAMOS","OCEAN BAY BOATS",null,null,null,null,null,null,null,null,null,null,null,null,null,null,null,null,null,null,null,null,null,null,null,1,null,null,1,null,null,null,null,null,null,null,null,null,null,1,null,0,1,0,0,1,0,0]
["PALAMOS","QUICKSILVER",null,null,null,null,null,null,null,null,null,null,null,null,null,null,null,null,null,null,null,null,null,null,null,1,null,null,null,null,null,null,1,null,null,null,null,null,null,null,1,0,1,1,0,0,0,0]
["PALAMOS","VORAZ",null,null,null,null,null,null,null,null,null,null,null,null,null,null,null,null,null,null,null,null,null,null,null,1,null,null,null,null,1,null,null,null,null,null,null,null,null,1,null,1,0,1,0,0,0,0]
["PALMA MALLORCA","BOMBARDIER",3,null,null,null,null,null,null,null,null,null,null,null,null,3,3,null,0,3,0,0,0,0,0]
["PALMA MALLORCA","ZODIAC",3,null,null,1,null,null,1,1,null,null,null,null,null,null,null,3,0,3,0,2,1,0,0]
["PALMA MALLORCA","CANTIERI CAPELLI",2,null,null,null,null,null,null,1,1,null,null,null,null,null,2,null,1,1,0,2,0,0,0,1,null,null,null,null,null,null,null,1,null,null,null,null,null,null,1,0,1,0,1,0,0,0]
["PALMA MALLORCA","DUFOUR",1,null,null,null,null,null,null,null,1,null,null,null,null,null,1,null,0,1,0,0,0,0,1]
["PALMA MALLORCA","INVICTUS",1,null,null,null,null,null,1,null,null,null,null,null,null,null,1,null,1,0,1,0,0,0,0]
["PALMA MALLORCA","JEANNEAU",1,null,null,null,null,null,1,null,null,null,null,null,null,null,1,null,0,1,1,0,0,0,0,2,null,null,null,null,null,null,null,1,1,null,null,null,null,2,null,1,1,1,0,0,0,1]
["PALMA MALLORCA","MAXUM",1,null,null,null,null,null,1,null,null,null,null,null,null,null,1,null,0,1,1,0,0,0,0]
["PALMA MALLORCA","OKI BOATS",1,null,null,null,null,null,1,null,null,null,null,null,null,null,1,null,0,1,1,0,0,0,0]
["PALMA MALLORCA","QUICKSILVER",1,null,null,null,null,null,null,1,null,null,null,null,null,null,1,null,0,1,1,0,0,0,0,3,null,null,null,1,1,1,null,null,null,null,null,null,null,3,null,0,3,3,0,0,0,0]
["PALMA MALLORCA","VANGUARD",1,null,null,null,null,null,null,1,null,null,null,null,null,null,1,null,1,0,0,1,0,0,0,1,null,null,null,null,null,1,null,null,null,null,null,null,null,1,null,0,1,0,1,0,0,0]
["PALMA MALLORCA","WILLIAMS MARINE",1,null,1,null,null,null,null,null,null,null,null,null,null,null,1,null,0,1,0,1,0,0,0]
["PALMA MALLORCA","AVON",null,null,null,null,null,null,null,null,null,null,null,null,null,null,null,null,null,null,null,null,null,null,null,1,null,null,null,1,null,null,null,null,null,null,null,null,null,1,null,0,1,0,1,0,0,0]
["PALMA MALLORCA","BAYLINER",null,null,null,null,null,null,null,null,null,null,null,null,null,null,null,null,null,null,null,null,null,null,null,1,null,null,null,null,null,1,null,null,null,null,null,null,null,null,1,0,1,1,0,0,0,0]
["PALMA MALLORCA","BENETEAU",null,null,null,null,null,null,null,null,null,null,null,null,null,null,null,null,null,null,null,null,null,null,null,1,null,null,null,null,null,null,null,null,1,null,null,null,null,1,null,0,1,0,0,0,0,1]
["PALMA MALLORCA","CAPEADOR",null,null,null,null,null,null,null,null,null,null,null,null,null,null,null,null,null,null,null,null,null,null,null,1,null,null,null,null,null,null,1,null,null,null,null,null,null,1,null,0,1,1,0,0,0,0]
["PALMA MALLORCA","CATANA",null,null,null,null,null,null,null,null,null,null,null,null,null,null,null,null,null,null,null,null,null,null,null,1,null,null,null,null,null,null,null,null,null,1,null,null,null,null,1,0,1,0,0,0,0,1]
["PALMA MALLORCA","DIPOL",null,null,null,null,null,null,null,null,null,null,null,null,null,null,null,null,null,null,null,null,null,null,null,1,null,null,null,1,null,null,null,null,null,null,null,null,null,1,null,0,1,1,0,0,0,0]
["PALMA MALLORCA","DUCAUTO",null,null,null,null,null,null,null,null,null,null,null,null,null,null,null,null,null,null,null,null,null,null,null,1,null,null,1,null,null,null,null,null,null,null,null,null,null,null,1,0,1,1,0,0,0,0]
["PALMA MALLORCA","FAIRLINE",null,null,null,null,null,null,null,null,null,null,null,null,null,null,null,null,null,null,null,null,null,null,null,1,null,null,null,null,null,null,null,1,null,null,null,null,null,1,null,0,1,1,0,0,0,0]
["PALMA MALLORCA","FOUR WINNS",null,null,null,null,null,null,null,null,null,null,null,null,null,null,null,null,null,null,null,null,null,null,null,1,null,null,null,null,null,null,1,null,null,null,null,null,null,1,null,0,1,1,0,0,0,0]
["PALMA MALLORCA","OCQUETEAU",null,null,null,null,null,null,null,null,null,null,null,null,null,null,null,null,null,null,null,null,null,null,null,1,null,null,null,null,null,null,1,null,null,null,null,null,null,null,1,0,1,1,0,0,0,0]
["PALMA MALLORCA","PACIFIC CRAFT",null,null,null,null,null,null,null,null,null,null,null,null,null,null,null,null,null,null,null,null,null,null,null,1,null,null,null,null,null,1,null,null,null,null,null,null,null,1,null,0,1,1,0,0,0,0]
["PALMA MALLORCA","STARFISHER",null,null,null,null,null,null,null,null,null,null,null,null,null,null,null,null,null,null,null,null,null,null,null,1,null,null,null,null,null,1,null,null,null,null,null,null,null,1,null,0,1,1,0,0,0,0]
["PALMA MALLORCA","WINDY",null,null,null,null,null,null,null,null,null,null,null,null,null,null,null,null,null,null,null,null,null,null,null,1,null,null,null,null,null,null,1,null,null,null,null,null,null,1,null,0,1,1,0,0,0,0]
["PALMA MALLORCA","YAMAHA",null,null,null,null,null,null,null,null,null,null,null,null,null,null,null,null,null,null,null,null,null,null,null,1,null,null,null,null,null,null,null,null,null,null,null,null,1,1,null,1,0,0,0,0,0,0]
["PASAJES","LOMAC",null,null,null,null,null,null,null,null,null,null,null,null,null,null,null,null,null,null,null,null,null,null,null,1,null,null,1,null,null,null,null,null,null,null,null,null,null,null,1,0,1,0,1,0,0,0]
["SANTA CRUZ DE TENERIFE","DIPOL",3,null,null,null,null,null,3,null,null,null,null,null,null,null,2,1,0,3,3,0,0,0,0]
["SANTA CRUZ DE TENERIFE","BENETEAU",1,null,null,null,null,null,null,1,null,null,null,null,null,null,null,1,0,1,1,0,0,0,0]
["SANTA CRUZ DE TENERIFE","GOLDEN SHIP",1,null,null,null,null,1,null,null,null,null,null,null,null,null,1,null,0,1,0,0,1,0,0]
["SANTA CRUZ DE TENERIFE","JEANNEAU",1,null,null,null,null,null,null,1,null,null,null,null,null,null,1,null,0,1,1,0,0,0,0]
["SANTA CRUZ DE TENERIFE","OZEAM",1,null,1,null,null,null,null,null,null,null,null,null,null,null,1,null,0,1,0,0,1,0,0]
["SANTA CRUZ DE TENERIFE","SIN DATOS",1,null,null,1,null,null,null,null,null,null,null,null,null,null,1,null,0,1,0,0,0,1,0]
["SANTA CRUZ DE TENERIFE","YAMAHA",1,null,null,null,null,null,null,null,null,null,null,null,null,1,null,1,1,0,0,0,0,0,0]
["SANTA CRUZ DE TENERIFE","PRONAUTICA",null,null,null,null,null,null,null,null,null,null,null,null,null,null,null,null,null,null,null,null,null,null,null,1,null,null,null,null,null,null,null,1,null,null,null,null,null,null,1,1,0,1,0,0,0,0]
["SANTA CRUZ DE TENERIFE","WHALY",null,null,null,null,null,null,null,null,null,null,null,null,null,null,null,null,null,null,null,null,null,null,null,1,null,null,null,1,null,null,null,null,null,null,null,null,null,1,null,1,0,1,0,0,0,0]
["SANTANDER","ASTILUX",1,null,null,null,null,null,1,null,null,null,null,null,null,null,1,null,0,1,1,0,0,0,0]
["SANTANDER","BAYLINER",1,null,null,null,null,null,1,null,null,null,null,null,null,null,1,null,0,1,1,0,0,0,0]
["SANTANDER","BENETEAU",1,null,null,null,null,null,null,1,null,null,null,null,null,null,null,1,0,1,1,0,0,0,0]
["SANTANDER","J BOATS",1,null,null,null,null,null,null,null,1,null,null,null,null,null,null,1,0,1,0,0,0,0,1]
["SANTANDER","JEANNEAU",1,null,null,null,null,null,null,1,null,null,null,null,null,null,1,null,0,1,1,0,0,0,0]
["SANTANDER","NEUVISA",1,null,null,null,null,1,null,null,null,null,null,null,null,null,1,null,0,1,0,1,0,0,0]
["SANTANDER","SIN DATOS",1,null,null,null,1,null,null,null,null,null,null,null,null,null,1,null,0,1,1,0,0,0,0]
["SANTANDER","ZODIAC",1,null,1,null,null,null,null,null,null,null,null,null,null,null,1,null,0,1,0,0,1,0,0]
["SANTANDER","DIPOL",null,null,null,null,null,null,null,null,null,null,null,null,null,null,null,null,null,null,null,null,null,null,null,1,null,null,null,null,null,1,null,null,null,null,null,null,null,1,null,0,1,1,0,0,0,0]
["SEVILLA","FIBRAMAR",1,null,null,null,null,null,null,1,null,null,null,null,null,null,1,null,0,1,1,0,0,0,0]
["SEVILLA","JEANNEAU",1,null,null,null,null,null,1,null,null,null,null,null,null,null,null,1,0,1,1,0,0,0,0]
["SEVILLA","KIMPLE",1,null,null,null,null,1,null,null,null,null,null,null,null,null,null,1,0,1,1,0,0,0,0]
["SEVILLA","FIBERPLAST",null,null,null,null,null,null,null,null,null,null,null,null,null,null,null,null,null,null,null,null,null,null,null,1,null,null,null,1,null,null,null,null,null,null,null,null,null,null,1,0,1,1,0,0,0,0]
["SEVILLA","GRAUVELL",null,null,null,null,null,null,null,null,null,null,null,null,null,null,null,null,null,null,null,null,null,null,null,1,null,null,null,1,null,null,null,null,null,null,null,null,null,1,null,0,1,0,0,1,0,0]
["SEVILLA","KYBIN",null,null,null,null,null,null,null,null,null,null,null,null,null,null,null,null,null,null,null,null,null,null,null,1,1,null,null,null,null,null,null,null,null,null,null,null,null,1,null,0,1,0,0,1,0,0]
["SEVILLA","OCEAN BAY BOATS",null,null,null,null,null,null,null,null,null,null,null,null,null,null,null,null,null,null,null,null,null,null,null,1,null,null,1,null,null,null,null,null,null,null,null,null,null,1,null,0,1,0,0,1,0,0]
["SEVILLA","OZEAM",null,null,null,null,null,null,null,null,null,null,null,null,null,null,null,null,null,null,null,null,null,null,null,1,null,1,null,null,null,null,null,null,null,null,null,null,null,1,null,0,1,0,0,1,0,0]
["SEVILLA","PLASTIMO",null,null,null,null,null,null,null,null,null,null,null,null,null,null,null,null,null,null,null,null,null,null,null,1,null,1,null,null,null,null,null,null,null,null,null,null,null,1,null,1,0,0,0,1,0,0]
["SEVILLA","RIBERA",null,null,null,null,null,null,null,null,null,null,null,null,null,null,null,null,null,null,null,null,null,null,null,1,null,null,null,null,null,null,1,null,null,null,null,null,null,null,1,0,1,0,1,0,0,0]
["SEVILLA","SESSA",null,null,null,null,null,null,null,null,null,null,null,null,null,null,null,null,null,null,null,null,null,null,null,1,null,null,null,null,null,null,null,1,null,null,null,null,null,null,1,0,1,1,0,0,0,0]
["SEVILLA","YAM",null,null,null,null,null,null,null,null,null,null,null,null,null,null,null,null,null,null,null,null,null,null,null,1,null,null,null,null,null,1,null,null,null,null,null,null,null,null,1,0,1,0,1,0,0,0]
["TARRAGONA","AZIMUT",1,null,null,null,null,null,null,null,null,1,null,null,null,null,1,null,0,1,1,0,0,0,0]
["TARRAGONA","MARINE",1,null,null,1,null,null,null,null,null,null,null,null,null,null,1,null,0,1,1,0,0,0,0]
["TARRAGONA","MINIJET",1,1,null,null,null,null,null,null,null,null,null,null,null,null,null,1,0,1,0,1,0,0,0]
["TARRAGONA","OCEAN BAY BOATS",1,null,null,1,null,null,null,null,null,null,null,null,null,null,null,1,0,1,0,0,1,0,0]
["TARRAGONA","BENETEAU",null,null,null,null,null,null,null,null,null,null,null,null,null,null,null,null,null,null,null,null,null,null,null,1,null,null,null,null,null,null,null,null,1,null,null,null,null,1,null,0,1,1,0,0,0,0]
["TARRAGONA","QUICKSILVER",null,null,null,null,null,null,null,null,null,null,null,null,null,null,null,null,null,null,null,null,null,null,null,1,null,null,null,null,null,null,1,null,null,null,null,null,null,null,1,0,1,1,0,0,0,0]
["TARRAGONA","RIO IBERICA",null,null,null,null,null,null,null,null,null,null,null,null,null,null,null,null,null,null,null,null,null,null,null,1,null,null,null,null,null,null,1,null,null,null,null,null,null,1,null,0,1,1,0,0,0,0]
["TARRAGONA","TRACKER MARINE",null,null,null,null,null,null,null,null,null,null,null,null,null,null,null,null,null,null,null,null,null,null,null,1,null,null,null,null,null,1,null,null,null,null,null,null,null,null,1,0,1,1,0,0,0,0]
["VALENCIA","BENETEAU",1,null,null,null,null,null,null,null,1,null,null,null,null,null,1,null,0,1,0,0,0,0,1,2,null,null,null,null,null,null,null,1,1,null,null,null,null,1,1,0,2,0,0,0,0,2]
["VALENCIA","DIPOL",1,null,null,null,null,null,1,null,null,null,null,null,null,null,1,null,0,1,1,0,0,0,0]
["VALENCIA","QUICKSILVER",1,null,null,null,null,null,null,1,null,null,null,null,null,null,null,1,0,1,1,0,0,0,0]
["VALENCIA","AQUAPARX",null,null,null,null,null,null,null,null,null,null,null,null,null,null,null,null,null,null,null,null,null,null,null,1,1,null,null,null,null,null,null,null,null,null,null,null,null,1,null,0,1,0,0,1,0,0]
["VALENCIA","CYP",null,null,null,null,null,null,null,null,null,null,null,null,null,null,null,null,null,null,null,null,null,null,null,1,null,null,null,null,null,1,null,null,null,null,null,null,null,1,null,0,1,1,0,0,0,0]
["VALENCIA","SABOR",null,null,null,null,null,null,null,null,null,null,null,null,null,null,null,null,null,null,null,null,null,null,null,1,null,null,null,null,1,null,null,null,null,null,null,null,null,1,null,0,1,1,0,0,0,0]
["VALENCIA","SIN DATOS",null,null,null,null,null,null,null,null,null,null,null,null,null,null,null,null,null,null,null,null,null,null,null,1,null,null,1,null,null,null,null,null,null,null,null,null,null,1,null,0,1,1,0,0,0,0]
["VIGO","AGF",2,null,null,null,null,1,null,1,null,null,null,null,null,null,1,1,0,2,2,0,0,0,0,1,null,null,null,null,null,1,null,null,null,null,null,null,null,null,1,0,1,1,0,0,0,0]
["VIGO","ASTEC",2,null,null,1,null,null,null,1,null,null,null,null,null,null,1,1,0,2,1,1,0,0,0]
["VIGO","QUICKSILVER",2,null,null,null,null,null,null,2,null,null,null,null,null,null,null,2,1,1,2,0,0,0,0,1,null,null,null,null,null,1,null,null,null,null,null,null,null,1,null,0,1,1,0,0,0,0]
["VIGO","YAMAHA",2,null,null,null,null,null,null,null,null,null,null,null,null,2,2,null,1,1,0,0,0,0,0,1,null,null,null,null,null,null,null,null,null,null,null,null,1,null,1,0,1,0,0,0,0,0]
["VIGO","GOLDEN SHIP",1,null,null,null,null,null,1,null,null,null,null,null,null,null,null,1,0,1,0,1,0,0,0]
["VIGO","JEANNEAU",1,null,null,null,null,null,null,null,1,null,null,null,null,null,1,null,0,1,0,0,0,0,1]
["VIGO","NARWHAL",1,null,null,null,null,1,null,null,null,null,null,null,null,null,1,null,0,1,0,1,0,0,0]
["VIGO","PECOSI",1,null,null,null,null,null,1,null,null,null,null,null,null,null,1,null,0,1,1,0,0,0,0]
["VIGO","SEA RIB´S",1,null,null,null,null,null,1,null,null,null,null,null,null,null,1,null,0,1,0,1,0,0,0]
["VIGO","SIN DATOS",1,null,null,null,null,null,null,null,null,1,null,null,null,null,null,1,1,0,0,0,0,0,1,2,null,null,null,null,null,null,null,1,1,null,null,null,null,1,1,0,2,1,0,0,0,1]
["VIGO","VANGUARD",null,null,null,null,null,null,null,null,null,null,null,null,null,null,null,null,null,null,null,null,null,null,null,1,null,null,null,null,null,null,1,null,null,null,null,null,null,1,null,0,1,0,1,0,0,0]
["VILAGARCIA DE AROUSA","ASTIXANO",11,null,null,null,2,2,6,1,null,null,null,null,null,null,2,9,0,11,11,0,0,0,0,10,null,1,7,1,null,1,null,null,null,null,null,null,null,null,10,0,10,10,0,0,0,0]
["VILAGARCIA DE AROUSA","BOMBARDIER",2,null,null,null,null,null,null,null,null,null,null,null,null,2,1,1,0,2,0,0,0,0,0,2,null,null,null,null,null,null,null,null,null,null,null,null,2,2,null,0,2,0,0,0,0,0]
["VILAGARCIA DE AROUSA","DIPOL",1,null,null,null,1,null,null,null,null,null,null,null,null,null,null,1,0,1,1,0,0,0,0]
["VILAGARCIA DE AROUSA","OTERO & LOSADA",1,null,null,null,null,1,null,null,null,null,null,null,null,null,null,1,0,1,1,0,0,0,0]

{"sheet":"Hoja9","index":8,"n_rows":38,"n_cols":47,"rows_kept":38,"cut":false,"hidden":true,"merged":[]}
["CAPITANIA","Numero Total","<03","<03,5","<04","<04,5","<05","<06","<08","<12","<15","<20","<24",">=24","MOTOS","Misma Provincia","Diferente Provincia","Lista 6","Lista 7","RIGIDO","SEMIRIGIDO","NEUMATICO","Sin Datos","VELA","Total ANT","03 ANT","035 ANT","04 ANT","045 ANT","05 ANT","06 ANT","075 ANT","12 ANT","15 ANT","20 ANT","24 ANT",">24 ANT","Motos ANT","Misma ANT","Dif ANT","6 ANT","7 ANT","Rig ANT","Semi ANT","neu ANT","sd ANT","Vela ANT"]
[" SIN DATOS",2,null,1,null,null,null,1,null,null,null,null,null,null,null,null,2,0,2,0,1,1,0,0,4,null,null,1,2,1,null,null,null,null,null,null,null,null,null,4,0,4,1,2,1,0,0]
["Alicante",8,1,null,null,null,null,1,3,null,null,null,null,null,3,7,1,5,3,3,1,0,0,1,19,null,3,null,3,1,5,null,2,1,null,null,null,4,14,5,0,19,8,3,2,0,2]
["Almería",9,2,1,null,null,null,3,null,null,null,null,null,null,3,6,3,1,8,1,2,3,0,0,4,null,1,1,null,null,1,null,null,null,null,null,null,1,3,1,0,4,0,1,2,0,0]
["Asturias (Oviedo)",1,null,null,null,null,null,null,1,null,null,null,null,null,null,null,1,1,0,1,0,0,0,0,5,null,null,null,2,null,2,null,null,null,null,null,null,1,2,3,0,5,2,1,0,1,0]
["Badajoz",1,null,null,null,null,null,null,null,null,null,null,null,null,1,null,1,0,1,0,0,0,0,0,1,1,null,null,null,null,null,null,null,null,null,null,null,null,null,1,0,1,0,0,1,0,0]
["Baleares (Palma de Mallorca)",27,null,1,null,null,null,7,10,5,null,null,null,null,4,13,14,3,24,16,4,0,0,3,27,null,null,null,3,2,6,8,2,4,1,null,null,1,16,11,2,25,20,3,0,0,3]
["Barcelona",16,2,1,1,null,null,4,3,5,null,null,null,null,null,11,5,0,16,9,2,3,0,2,14,null,null,null,1,2,5,3,3,null,null,null,null,null,8,6,1,13,10,0,3,0,1]
["Burgos",1,null,null,null,null,null,null,null,1,null,null,null,null,null,null,1,0,1,0,0,0,0,1]
["Cáceres",null,null,null,null,null,null,null,null,null,null,null,null,null,null,null,null,null,null,null,null,null,null,null,1,null,1,null,null,null,null,null,null,null,null,null,null,null,null,1,0,1,1,0,0,0,0]
["Cádiz",6,null,null,null,1,2,1,1,null,null,null,null,null,1,5,1,0,6,3,2,0,0,0,13,null,null,null,4,null,3,4,null,null,null,null,null,2,9,4,0,13,7,3,1,0,0]
["Cantabria (Santander)",7,null,1,null,1,1,2,2,null,null,null,null,null,null,6,1,0,7,5,1,1,0,0,2,null,null,null,null,null,2,null,null,null,null,null,null,null,1,1,0,2,2,0,0,0,0]
["Castellón",3,1,null,null,1,null,null,null,null,null,null,null,null,1,3,null,1,2,1,0,1,0,0,1,null,null,null,null,null,null,null,null,null,null,null,null,1,null,1,0,1,0,0,0,0,0]
["Córdoba",1,null,null,null,null,1,null,null,null,null,null,null,null,null,null,1,0,1,1,0,0,0,0,1,null,1,null,null,null,null,null,null,null,null,null,null,null,null,1,0,1,0,0,1,0,0]
["Coruña",8,null,null,null,1,1,3,1,null,null,null,null,null,2,2,6,0,8,6,0,0,0,0,7,null,null,4,null,null,1,null,1,null,null,null,null,1,2,5,0,7,4,1,0,0,1]
["Gerona",5,1,null,null,null,null,null,2,null,2,null,null,null,null,2,3,1,4,2,1,1,0,1,7,null,1,1,null,2,1,1,1,null,null,null,null,null,3,4,3,4,5,1,1,0,0]
["Granada",3,null,null,null,null,null,null,1,1,null,null,null,null,1,1,2,1,2,2,0,0,0,0,7,null,null,3,null,null,null,1,null,null,null,null,null,3,4,3,0,7,3,0,1,0,0]
["Guadalajara",1,null,null,null,null,null,null,null,null,null,null,null,null,1,null,1,0,1,0,0,0,0,0]
["Guipúzcoa (San Sebastián)",1,null,null,null,null,null,1,null,null,null,null,null,null,null,null,1,0,1,1,0,0,0,0,1,null,null,1,null,null,null,null,null,null,null,null,null,null,null,1,0,1,0,1,0,0,0]
["Huelva",13,1,null,3,2,1,null,2,null,null,null,null,null,4,9,4,3,10,4,1,4,0,0,5,null,1,null,1,null,null,null,1,null,null,null,null,2,2,3,1,4,3,0,0,0,0]
["Jaén",null,null,null,null,null,null,null,null,null,null,null,null,null,null,null,null,null,null,null,null,null,null,null,1,null,null,null,null,null,null,1,null,null,null,null,null,null,null,1,0,1,1,0,0,0,0]
["La Rioja (Logroño)",2,1,null,null,null,null,null,null,1,null,null,null,null,null,null,2,0,2,0,0,1,0,1,1,null,null,null,null,null,1,null,null,null,null,null,null,null,null,1,0,1,1,0,0,0,0]
["Las Palmas",15,null,1,6,1,null,2,1,2,1,null,null,null,1,11,4,6,9,6,5,3,0,0,10,1,4,null,null,2,null,1,null,1,null,null,null,1,8,2,1,9,3,0,6,0,0]
["León",1,null,null,null,null,null,1,null,null,null,null,null,null,null,null,1,0,1,1,0,0,0,0,1,null,null,null,null,null,1,null,null,null,null,null,null,null,null,1,0,1,1,0,0,0,0]
["Lérida",1,null,null,1,null,null,null,null,null,null,null,null,null,null,null,1,0,1,0,0,1,0,0,1,null,null,null,null,null,null,1,null,null,null,null,null,null,null,1,0,1,1,0,0,0,0]
["Madrid",11,null,2,2,null,null,3,1,null,1,null,null,null,2,null,11,1,10,3,2,2,0,2,11,1,1,1,null,null,1,2,1,null,2,null,null,2,null,11,0,11,5,0,2,0,2]
["Málaga",21,null,4,2,1,1,7,1,1,null,1,null,null,3,11,10,5,16,12,2,3,0,1,8,null,1,null,null,null,null,null,null,2,null,null,null,5,4,4,0,8,2,1,0,0,0]
["Melilla",2,null,null,null,null,null,null,null,null,null,null,null,null,2,2,null,0,2,0,0,0,0,0,1,null,null,null,null,null,null,null,null,null,null,null,null,1,1,null,0,1,0,0,0,0,0]
["Murcia",14,1,1,null,1,2,4,1,1,null,null,null,null,3,9,5,3,11,4,4,2,0,1,11,1,2,3,null,null,3,2,null,null,null,null,null,null,7,4,0,11,4,2,4,0,1]
["Navarra (Pamplona)",null,null,null,null,null,null,null,null,null,null,null,null,null,null,null,null,null,null,null,null,null,null,null,3,null,null,2,null,null,null,1,null,null,null,null,null,null,null,3,0,3,1,1,1,0,0]
["Pontevedra",14,null,null,1,1,2,2,2,3,null,null,null,null,3,11,3,2,12,7,2,0,0,2,5,null,null,null,null,null,1,1,null,1,null,null,null,2,5,null,0,5,2,1,0,0,0]
["Santa Cruz de Tenerife",10,null,1,1,null,1,3,4,null,null,null,null,null,null,6,4,1,9,5,2,2,1,0,1,null,null,null,1,null,null,null,null,null,null,null,null,null,1,null,1,0,1,0,0,0,0]
["Sevilla",5,null,null,null,null,1,1,1,null,null,null,null,null,2,1,4,0,5,3,0,0,0,0,6,1,2,2,1,null,null,null,null,null,null,null,null,null,5,1,1,5,1,0,5,0,0]
["Tarragona",3,null,null,1,null,null,null,1,null,1,null,null,null,null,2,1,0,3,3,0,0,0,0,3,null,null,null,null,null,null,2,null,1,null,null,null,null,2,1,0,3,3,0,0,0,0]
["Valencia",6,null,null,null,null,null,1,null,1,null,null,null,null,4,2,4,2,4,1,0,0,0,1,6,1,null,1,null,1,2,null,1,null,null,null,null,null,5,1,0,6,4,0,1,0,1]
["Valladolid",1,null,1,null,null,null,null,null,null,null,null,null,null,null,null,1,0,1,0,1,0,0,0]
["Vizcaya (Bilbao)",5,null,1,null,null,1,null,null,2,null,null,null,null,1,5,null,1,4,1,0,1,0,2,4,null,null,null,null,null,2,1,1,null,null,null,null,null,2,2,1,3,3,1,0,0,0]
["Zaragoza",2,null,null,null,null,null,null,1,null,null,null,null,null,1,null,2,0,2,1,0,0,0,0]

{"sheet":"Hoja11","index":9,"n_rows":38,"n_cols":47,"rows_kept":38,"cut":false,"hidden":true,"merged":[]}
["CAPITANIA","Numero Total","<03","<03,5","<04","<04,5","<05","<06","<08","<12","<15","<20","<24",">=24","MOTOS","Misma Provincia","Diferente Provincia","Lista 6","Lista 7","RIGIDO","SEMIRIGIDO","NEUMATICO","Sin Datos","VELA","Total ANT","03 ANT","035 ANT","04 ANT","045 ANT","05 ANT","06 ANT","075 ANT","12 ANT","15 ANT","20 ANT","24 ANT",">24 ANT","Motos ANT","Misma ANT","Dif ANT","6 ANT","7 ANT","Rig ANT","Semi ANT","neu ANT","sd ANT","Vela ANT"]
[" SIN DATOS",2,null,1,null,null,null,1,null,null,null,null,null,null,null,null,2,0,2,0,1,1,0,0,4,null,null,1,2,1,null,null,null,null,null,null,null,null,null,4,0,4,1,2,1,0,0]
["Alicante",8,1,null,null,null,null,1,3,null,null,null,null,null,3,7,1,5,3,3,1,0,0,1,19,null,3,null,3,1,5,null,2,1,null,null,null,4,14,5,0,19,8,3,2,0,2]
["Almería",9,2,1,null,null,null,3,null,null,null,null,null,null,3,6,3,1,8,1,2,3,0,0,4,null,1,1,null,null,1,null,null,null,null,null,null,1,3,1,0,4,0,1,2,0,0]
["Asturias (Oviedo)",1,null,null,null,null,null,null,1,null,null,null,null,null,null,null,1,1,0,1,0,0,0,0,5,null,null,null,2,null,2,null,null,null,null,null,null,1,2,3,0,5,2,1,0,1,0]
["Badajoz",1,null,null,null,null,null,null,null,null,null,null,null,null,1,null,1,0,1,0,0,0,0,0,1,1,null,null,null,null,null,null,null,null,null,null,null,null,null,1,0,1,0,0,1,0,0]
["Baleares (Palma de Mallorca)",27,null,1,null,null,null,7,10,5,null,null,null,null,4,13,14,3,24,16,4,0,0,3,27,null,null,null,3,2,6,8,2,4,1,null,null,1,16,11,2,25,20,3,0,0,3]
["Barcelona",16,2,1,1,null,null,4,3,5,null,null,null,null,null,11,5,0,16,9,2,3,0,2,14,null,null,null,1,2,5,3,3,null,null,null,null,null,8,6,1,13,10,0,3,0,1]
["Burgos",1,null,null,null,null,null,null,null,1,null,null,null,null,null,null,1,0,1,0,0,0,0,1]
["Cáceres",null,null,null,null,null,null,null,null,null,null,null,null,null,null,null,null,null,null,null,null,null,null,null,1,null,1,null,null,null,null,null,null,null,null,null,null,null,null,1,0,1,1,0,0,0,0]
["Cádiz",6,null,null,null,1,2,1,1,null,null,null,null,null,1,5,1,0,6,3,2,0,0,0,13,null,null,null,4,null,3,4,null,null,null,null,null,2,9,4,0,13,7,3,1,0,0]
["Cantabria (Santander)",7,null,1,null,1,1,2,2,null,null,null,null,null,null,6,1,0,7,5,1,1,0,0,2,null,null,null,null,null,2,null,null,null,null,null,null,null,1,1,0,2,2,0,0,0,0]
["Castellón",3,1,null,null,1,null,null,null,null,null,null,null,null,1,3,null,1,2,1,0,1,0,0,1,null,null,null,null,null,null,null,null,null,null,null,null,1,null,1,0,1,0,0,0,0,0]
["Córdoba",1,null,null,null,null,1,null,null,null,null,null,null,null,null,null,1,0,1,1,0,0,0,0,1,null,1,null,null,null,null,null,null,null,null,null,null,null,null,1,0,1,0,0,1,0,0]
["Coruña",8,null,null,null,1,1,3,1,null,null,null,null,null,2,2,6,0,8,6,0,0,0,0,7,null,null,4,null,null,1,null,1,null,null,null,null,1,2,5,0,7,4,1,0,0,1]
["Gerona",5,1,null,null,null,null,null,2,null,2,null,null,null,null,2,3,1,4,2,1,1,0,1,7,null,1,1,null,2,1,1,1,null,null,null,null,null,3,4,3,4,5,1,1,0,0]
["Granada",3,null,null,null,null,null,null,1,1,null,null,null,null,1,1,2,1,2,2,0,0,0,0,7,null,null,3,null,null,null,1,null,null,null,null,null,3,4,3,0,7,3,0,1,0,0]
["Guadalajara",1,null,null,null,null,null,null,null,null,null,null,null,null,1,null,1,0,1,0,0,0,0,0]
["Guipúzcoa (San Sebastián)",1,null,null,null,null,null,1,null,null,null,null,null,null,null,null,1,0,1,1,0,0,0,0,1,null,null,1,null,null,null,null,null,null,null,null,null,null,null,1,0,1,0,1,0,0,0]
["Huelva",13,1,null,3,2,1,null,2,null,null,null,null,null,4,9,4,3,10,4,1,4,0,0,5,null,1,null,1,null,null,null,1,null,null,null,null,2,2,3,1,4,3,0,0,0,0]
["Jaén",null,null,null,null,null,null,null,null,null,null,null,null,null,null,null,null,null,null,null,null,null,null,null,1,null,null,null,null,null,null,1,null,null,null,null,null,null,null,1,0,1,1,0,0,0,0]
["La Rioja (Logroño)",2,1,null,null,null,null,null,null,1,null,null,null,null,null,null,2,0,2,0,0,1,0,1,1,null,null,null,null,null,1,null,null,null,null,null,null,null,null,1,0,1,1,0,0,0,0]
["Las Palmas",15,null,1,6,1,null,2,1,2,1,null,null,null,1,11,4,6,9,6,5,3,0,0,10,1,4,null,null,2,null,1,null,1,null,null,null,1,8,2,1,9,3,0,6,0,0]
["León",1,null,null,null,null,null,1,null,null,null,null,null,null,null,null,1,0,1,1,0,0,0,0,1,null,null,null,null,null,1,null,null,null,null,null,null,null,null,1,0,1,1,0,0,0,0]
["Lérida",1,null,null,1,null,null,null,null,null,null,null,null,null,null,null,1,0,1,0,0,1,0,0,1,null,null,null,null,null,null,1,null,null,null,null,null,null,null,1,0,1,1,0,0,0,0]
["Madrid",11,null,2,2,null,null,3,1,null,1,null,null,null,2,null,11,1,10,3,2,2,0,2,11,1,1,1,null,null,1,2,1,null,2,null,null,2,null,11,0,11,5,0,2,0,2]
["Málaga",21,null,4,2,1,1,7,1,1,null,1,null,null,3,11,10,5,16,12,2,3,0,1,8,null,1,null,null,null,null,null,null,2,null,null,null,5,4,4,0,8,2,1,0,0,0]
["Melilla",2,null,null,null,null,null,null,null,null,null,null,null,null,2,2,null,0,2,0,0,0,0,0,1,null,null,null,null,null,null,null,null,null,null,null,null,1,1,null,0,1,0,0,0,0,0]
["Murcia",14,1,1,null,1,2,4,1,1,null,null,null,null,3,9,5,3,11,4,4,2,0,1,11,1,2,3,null,null,3,2,null,null,null,null,null,null,7,4,0,11,4,2,4,0,1]
["Navarra (Pamplona)",null,null,null,null,null,null,null,null,null,null,null,null,null,null,null,null,null,null,null,null,null,null,null,3,null,null,2,null,null,null,1,null,null,null,null,null,null,null,3,0,3,1,1,1,0,0]
["Pontevedra",14,null,null,1,1,2,2,2,3,null,null,null,null,3,11,3,2,12,7,2,0,0,2,5,null,null,null,null,null,1,1,null,1,null,null,null,2,5,null,0,5,2,1,0,0,0]
["Santa Cruz de Tenerife",10,null,1,1,null,1,3,4,null,null,null,null,null,null,6,4,1,9,5,2,2,1,0,1,null,null,null,1,null,null,null,null,null,null,null,null,null,1,null,1,0,1,0,0,0,0]
["Sevilla",5,null,null,null,null,1,1,1,null,null,null,null,null,2,1,4,0,5,3,0,0,0,0,6,1,2,2,1,null,null,null,null,null,null,null,null,null,5,1,1,5,1,0,5,0,0]
["Tarragona",3,null,null,1,null,null,null,1,null,1,null,null,null,null,2,1,0,3,3,0,0,0,0,3,null,null,null,null,null,null,2,null,1,null,null,null,null,2,1,0,3,3,0,0,0,0]
["Valencia",6,null,null,null,null,null,1,null,1,null,null,null,null,4,2,4,2,4,1,0,0,0,1,6,1,null,1,null,1,2,null,1,null,null,null,null,null,5,1,0,6,4,0,1,0,1]
["Valladolid",1,null,1,null,null,null,null,null,null,null,null,null,null,null,null,1,0,1,0,1,0,0,0]
["Vizcaya (Bilbao)",5,null,1,null,null,1,null,null,2,null,null,null,null,1,5,null,1,4,1,0,1,0,2,4,null,null,null,null,null,2,1,1,null,null,null,null,null,2,2,1,3,3,1,0,0,0]
["Zaragoza",2,null,null,null,null,null,null,1,null,null,null,null,null,1,null,2,0,2,1,0,0,0,0]